Workbook

Sheet 【記載例】看多機
C1: （参考様式） | J1: 従業者の勤務の体制及び勤務形態一覧表 | AP1: サービス種別（ | AQ1: 看護小規模多機能型居宅介護 | BG1: ）
Y2: 令和 | Z2: 2 | AB2: ( | AC2: =IF(Z2=0,"",YEAR(DATE(2018+Z2,1,1))) -> 2020 | AE2: ) | AF2: 年 | AG2: 4 | AI2: 月 | AP2: 事業所名（ | AQ2: ○○サービス | BG2: ）
BA3: (1) | BB3: 計画
AH5: (2) 事業所における常勤の従業者が勤務すべき時間数 | AT5: 8 | AV5: 時間/日 | AX5: 40 | AZ5: 時間/週 | BB5: 160 | BD5: 時間/月
AY7: 当月の日数 | BB7: =DAY(EOMONTH(DATE(AC2,AG2,1),0)) -> 30 | BD7: 日
AN9: (4) 定員 | AX9: (5) 利用者数（通いサービス）
B10: (3) 日中／夜間及び深夜の時間帯の区分 | AO10: 登録定員 | AT10: 24 | AV10: 人 | AY10: 前年度の平均値 | BC10: 10 | BE10: 人
B11: 利用者の生活時間帯（日中） | J11: 07:00:00 | M11: ～ | N11: 20:00:00 | AO11: 通いサービスの定員 | AT11: 15 | AV11: 人 | AY11: （新規に指定を受ける場合）
B12: 夜間及び深夜の時間帯 | J12: 20:00:00 | M12: ～ | N12: 07:00:00 | AO12: 宿泊サービスの定員 | AT12: 9 | AV12: 人 | AY12: 推定数 | BE12: 人
B14: No | C14: (6) 職種 | G14: (7) 勤務 形態 | H14: (8) 資格 | L14: (9) 氏 名 | O14: 日中／夜間及び深夜 の区分 | AH14: (10) 勤 務 時 間 数 | AM14: （宿直 ･･･ | AP14: ） | AY14: =IF(BB3="計画","(11)1～4週目の勤務時間数合計","(11)1か月の勤務時間数 合計") -> (11)1～4週目の勤務時間数合計 | BA14: (12) 週平均 勤務時間数 | BC14: (13) 兼務状況 （兼務先/兼務する職務の内容 /兼務時間数）
T15: 1週目 | AA15: 2週目 | AH15: 3週目 | AO15: 4週目 | AV15: 5週目
T16: 1 | U16: 2 | V16: 3 | W16: 4 | X16: 5 | Y16: 6 | Z16: 7 | AA16: 8 | AB16: 9 | AC16: 10 | AD16: 11 | AE16: 12 | AF16: 13 | AG16: 14 | AH16: 15 | AI16: 16 | AJ16: 17 | AK16: 18 | AL16: 19 | AM16: 20 | AN16: 21 | AO16: 22 | AP16: 23 | AQ16: 24 | AR16: 25 | AS16: 26 | AT16: 27 | AU16: 28 | AV16: =IF($BB$3="実績",IF(DAY(DATE($AC$2,$AG$2,29))=29,29,""),"") ->  | AW16: =IF($BB$3="実績",IF(DAY(DATE($AC$2,$AG$2,30))=30,30,""),"") ->  | AX16: =IF($BB$3="実績",IF(DAY(DATE($AC$2,$AG$2,31))=31,31,""),"") -> 
T17: =WEEKDAY(DATE($AC$2,$AG$2,1)) -> 4 | U17: =WEEKDAY(DATE($AC$2,$AG$2,2)) -> 5 | V17: =WEEKDAY(DATE($AC$2,$AG$2,3)) -> 6 | W17: =WEEKDAY(DATE($AC$2,$AG$2,4)) -> 7 | X17: =WEEKDAY(DATE($AC$2,$AG$2,5)) -> 1 | Y17: =WEEKDAY(DATE($AC$2,$AG$2,6)) -> 2 | Z17: =WEEKDAY(DATE($AC$2,$AG$2,7)) -> 3 | AA17: =WEEKDAY(DATE($AC$2,$AG$2,8)) -> 4 | AB17: =WEEKDAY(DATE($AC$2,$AG$2,9)) -> 5 | AC17: =WEEKDAY(DATE($AC$2,$AG$2,10)) -> 6 | AD17: =WEEKDAY(DATE($AC$2,$AG$2,11)) -> 7 | AE17: =WEEKDAY(DATE($AC$2,$AG$2,12)) -> 1 | AF17: =WEEKDAY(DATE($AC$2,$AG$2,13)) -> 2 | AG17: =WEEKDAY(DATE($AC$2,$AG$2,14)) -> 3 | AH17: =WEEKDAY(DATE($AC$2,$AG$2,15)) -> 4 | AI17: =WEEKDAY(DATE($AC$2,$AG$2,16)) -> 5 | AJ17: =WEEKDAY(DATE($AC$2,$AG$2,17)) -> 6 | AK17: =WEEKDAY(DATE($AC$2,$AG$2,18)) -> 7 | AL17: =WEEKDAY(DATE($AC$2,$AG$2,19)) -> 1 | AM17: =WEEKDAY(DATE($AC$2,$AG$2,20)) -> 2 | AN17: =WEEKDAY(DATE($AC$2,$AG$2,21)) -> 3 | AO17: =WEEKDAY(DATE($AC$2,$AG$2,22)) -> 4 | AP17: =WEEKDAY(DATE($AC$2,$AG$2,23)) -> 5 | AQ17: =WEEKDAY(DATE($AC$2,$AG$2,24)) -> 6 | AR17: =WEEKDAY(DATE($AC$2,$AG$2,25)) -> 7 | AS17: =WEEKDAY(DATE($AC$2,$AG$2,26)) -> 1 | AT17: =WEEKDAY(DATE($AC$2,$AG$2,27)) -> 2 | AU17: =WEEKDAY(DATE($AC$2,$AG$2,28)) -> 3 | AV17: =IF(AV16=29,WEEKDAY(DATE($AC$2,$AG$2,29)),0) -> 0 | AW17: =IF(AW16=30,WEEKDAY(DATE($AC$2,$AG$2,30)),0) -> 0 | AX17: =IF(AX16=31,WEEKDAY(DATE($AC$2,$AG$2,31)),0) -> 0
T18: =IF(T17=1,"日",IF(T17=2,"月",IF(T17=3,"火",IF(T17=4,"水",IF(T17=5,"木",IF(T17=6,"金","土")))))) -> 水 | U18: =IF(U17=1,"日",IF(U17=2,"月",IF(U17=3,"火",IF(U17=4,"水",IF(U17=5,"木",IF(U17=6,"金","土")))))) -> 木 | V18: 金 | W18: 土 | X18: 日 | Y18: 月 | Z18: 火 | AA18: =IF(AA17=1,"日",IF(AA17=2,"月",IF(AA17=3,"火",IF(AA17=4,"水",IF(AA17=5,"木",IF(AA17=6,"金","土")))))) -> 水 | AB18: 木 | AC18: 金 | AD18: 土 | AE18: 日 | AF18: 月 | AG18: 火 | AH18: =IF(AH17=1,"日",IF(AH17=2,"月",IF(AH17=3,"火",IF(AH17=4,"水",IF(AH17=5,"木",IF(AH17=6,"金","土")))))) -> 水 | AI18: 木 | AJ18: 金 | AK18: 土 | AL18: 日 | AM18: 月 | AN18: 火 | AO18: =IF(AO17=1,"日",IF(AO17=2,"月",IF(AO17=3,"火",IF(AO17=4,"水",IF(AO17=5,"木",IF(AO17=6,"金","土")))))) -> 水 | AP18: 木 | AQ18: 金 | AR18: 土 | AS18: 日 | AT18: 月 | AU18: 火 | AV18: =IF(AV17=1,"日",IF(AV17=2,"月",IF(AV17=3,"火",IF(AV17=4,"水",IF(AV17=5,"木",IF(AV17=6,"金",IF(AV17=0,"","土"))))))) ->  | AW18: =IF(AW17=1,"日",IF(AW17=2,"月",IF(AW17=3,"火",IF(AW17=4,"水",IF(AW17=5,"木",IF(AW17=6,"金",IF(AW17=0,"","土"))))))) ->  | AX18: =IF(AX17=1,"日",IF(AX17=2,"月",IF(AX17=3,"火",IF(AX17=4,"水",IF(AX17=5,"木",IF(AX17=6,"金",IF(AX17=0,"","土"))))))) -> 
G19: A | L19: 厚労 太郎 | O19: シフト記号 | T19: c | U19: c | V19: c | W19: 休 | X19: c | Y19: a | Z19: 休 | AA19: c | AB19: 休 | AC19: 休 | AD19: c | AE19: c | AF19: 休 | AG19: c | AH19: 休 | AI19: c | AJ19: c | AK19: c | AL19: c | AM19: c | AN19: 休 | AO19: 休 | AP19: c | AQ19: c | AR19: c | AS19: c | AT19: c | AU19: 休
B20: 1 | C20: 管理者 | H20: 保健師 | O20: 日中の勤務時間数 | T20: =IF(T19="","",VLOOKUP(T19,'【記載例】シフト記号表（勤務時間帯）'!$C$5:$W$46,21,FALSE)) -> 8 | U20: =IF(U19="","",VLOOKUP(U19,'【記載例】シフト記号表（勤務時間帯）'!$C$5:$W$46,21,FALSE)) -> 8 | V20: =IF(V19="","",VLOOKUP(V19,'【記載例】シフト記号表（勤務時間帯）'!$C$5:$W$46,21,FALSE)) -> 8 | W20: =IF(W19="","",VLOOKUP(W19,'【記載例】シフト記号表（勤務時間帯）'!$C$5:$W$46,21,FALSE)) -> - | X20: =IF(X19="","",VLOOKUP(X19,'【記載例】シフト記号表（勤務時間帯）'!$C$5:$W$46,21,FALSE)) -> 8 | Y20: =IF(Y19="","",VLOOKUP(Y19,'【記載例】シフト記号表（勤務時間帯）'!$C$5:$W$46,21,FALSE)) -> 8 | Z20: =IF(Z19="","",VLOOKUP(Z19,'【記載例】シフト記号表（勤務時間帯）'!$C$5:$W$46,21,FALSE)) -> - | AA20: =IF(AA19="","",VLOOKUP(AA19,'【記載例】シフト記号表（勤務時間帯）'!$C$5:$W$46,21,FALSE)) -> 8 | AB20: =IF(AB19="","",VLOOKUP(AB19,'【記載例】シフト記号表（勤務時間帯）'!$C$5:$W$46,21,FALSE)) -> - | AC20: =IF(AC19="","",VLOOKUP(AC19,'【記載例】シフト記号表（勤務時間帯）'!$C$5:$W$46,21,FALSE)) -> - | AD20: =IF(AD19="","",VLOOKUP(AD19,'【記載例】シフト記号表（勤務時間帯）'!$C$5:$W$46,21,FALSE)) -> 8 | AE20: =IF(AE19="","",VLOOKUP(AE19,'【記載例】シフト記号表（勤務時間帯）'!$C$5:$W$46,21,FALSE)) -> 8 | AF20: =IF(AF19="","",VLOOKUP(AF19,'【記載例】シフト記号表（勤務時間帯）'!$C$5:$W$46,21,FALSE)) -> - | AG20: =IF(AG19="","",VLOOKUP(AG19,'【記載例】シフト記号表（勤務時間帯）'!$C$5:$W$46,21,FALSE)) -> 8 | AH20: =IF(AH19="","",VLOOKUP(AH19,'【記載例】シフト記号表（勤務時間帯）'!$C$5:$W$46,21,FALSE)) -> - | AI20: =IF(AI19="","",VLOOKUP(AI19,'【記載例】シフト記号表（勤務時間帯）'!$C$5:$W$46,21,FALSE)) -> 8 | AJ20: =IF(AJ19="","",VLOOKUP(AJ19,'【記載例】シフト記号表（勤務時間帯）'!$C$5:$W$46,21,FALSE)) -> 8 | AK20: =IF(AK19="","",VLOOKUP(AK19,'【記載例】シフト記号表（勤務時間帯）'!$C$5:$W$46,21,FALSE)) -> 8 | AL20: =IF(AL19="","",VLOOKUP(AL19,'【記載例】シフト記号表（勤務時間帯）'!$C$5:$W$46,21,FALSE)) -> 8 | AM20: =IF(AM19="","",VLOOKUP(AM19,'【記載例】シフト記号表（勤務時間帯）'!$C$5:$W$46,21,FALSE)) -> 8 | AN20: =IF(AN19="","",VLOOKUP(AN19,'【記載例】シフト記号表（勤務時間帯）'!$C$5:$W$46,21,FALSE)) -> - | AO20: =IF(AO19="","",VLOOKUP(AO19,'【記載例】シフト記号表（勤務時間帯）'!$C$5:$W$46,21,FALSE)) -> - | AP20: =IF(AP19="","",VLOOKUP(AP19,'【記載例】シフト記号表（勤務時間帯）'!$C$5:$W$46,21,FALSE)) -> 8 | AQ20: =IF(AQ19="","",VLOOKUP(AQ19,'【記載例】シフト記号表（勤務時間帯）'!$C$5:$W$46,21,FALSE)) -> 8 | AR20: =IF(AR19="","",VLOOKUP(AR19,'【記載例】シフト記号表（勤務時間帯）'!$C$5:$W$46,21,FALSE)) -> 8 | AS20: =IF(AS19="","",VLOOKUP(AS19,'【記載例】シフト記号表（勤務時間帯）'!$C$5:$W$46,21,FALSE)) -> 8 | AT20: =IF(AT19="","",VLOOKUP(AT19,'【記載例】シフト記号表（勤務時間帯）'!$C$5:$W$46,21,FALSE)) -> 8 | AU20: =IF(AU19="","",VLOOKUP(AU19,'【記載例】シフト記号表（勤務時間帯）'!$C$5:$W$46,21,FALSE)) -> - | AV20: =IF(AV19="","",VLOOKUP(AV19,'【記載例】シフト記号表（勤務時間帯）'!$C$5:$W$46,21,FALSE)) ->  | AW20: =IF(AW19="","",VLOOKUP(AW19,'【記載例】シフト記号表（勤務時間帯）'!$C$5:$W$46,21,FALSE)) ->  | AX20: =IF(AX19="","",VLOOKUP(AX19,'【記載例】シフト記号表（勤務時間帯）'!$C$5:$W$46,21,FALSE)) ->  | AY20: =IF($BB$3="計画",SUM(T20:AU20),IF($BB$3="実績",SUM(T20:AX20),"")) -> 152 | BA20: =IF($BB$3="計画",AY20/4,IF($BB$3="実績",(AY20/($BB$7/7)),"")) -> 38
F21: =C20 -> 管理者 | O21: 夜間・深夜の勤務時間数 | T21: =IF(T19="","",VLOOKUP(T19,'【記載例】シフト記号表（勤務時間帯）'!$C$5:$Y$46,23,FALSE)) -> - | U21: =IF(U19="","",VLOOKUP(U19,'【記載例】シフト記号表（勤務時間帯）'!$C$5:$Y$46,23,FALSE)) -> - | V21: =IF(V19="","",VLOOKUP(V19,'【記載例】シフト記号表（勤務時間帯）'!$C$5:$Y$46,23,FALSE)) -> - | W21: =IF(W19="","",VLOOKUP(W19,'【記載例】シフト記号表（勤務時間帯）'!$C$5:$Y$46,23,FALSE)) -> - | X21: =IF(X19="","",VLOOKUP(X19,'【記載例】シフト記号表（勤務時間帯）'!$C$5:$Y$46,23,FALSE)) -> - | Y21: =IF(Y19="","",VLOOKUP(Y19,'【記載例】シフト記号表（勤務時間帯）'!$C$5:$Y$46,23,FALSE)) -> - | Z21: =IF(Z19="","",VLOOKUP(Z19,'【記載例】シフト記号表（勤務時間帯）'!$C$5:$Y$46,23,FALSE)) -> - | AA21: =IF(AA19="","",VLOOKUP(AA19,'【記載例】シフト記号表（勤務時間帯）'!$C$5:$Y$46,23,FALSE)) -> - | AB21: =IF(AB19="","",VLOOKUP(AB19,'【記載例】シフト記号表（勤務時間帯）'!$C$5:$Y$46,23,FALSE)) -> - | AC21: =IF(AC19="","",VLOOKUP(AC19,'【記載例】シフト記号表（勤務時間帯）'!$C$5:$Y$46,23,FALSE)) -> - | AD21: =IF(AD19="","",VLOOKUP(AD19,'【記載例】シフト記号表（勤務時間帯）'!$C$5:$Y$46,23,FALSE)) -> - | AE21: =IF(AE19="","",VLOOKUP(AE19,'【記載例】シフト記号表（勤務時間帯）'!$C$5:$Y$46,23,FALSE)) -> - | AF21: =IF(AF19="","",VLOOKUP(AF19,'【記載例】シフト記号表（勤務時間帯）'!$C$5:$Y$46,23,FALSE)) -> - | AG21: =IF(AG19="","",VLOOKUP(AG19,'【記載例】シフト記号表（勤務時間帯）'!$C$5:$Y$46,23,FALSE)) -> - | AH21: =IF(AH19="","",VLOOKUP(AH19,'【記載例】シフト記号表（勤務時間帯）'!$C$5:$Y$46,23,FALSE)) -> - | AI21: =IF(AI19="","",VLOOKUP(AI19,'【記載例】シフト記号表（勤務時間帯）'!$C$5:$Y$46,23,FALSE)) -> - | AJ21: =IF(AJ19="","",VLOOKUP(AJ19,'【記載例】シフト記号表（勤務時間帯）'!$C$5:$Y$46,23,FALSE)) -> - | AK21: =IF(AK19="","",VLOOKUP(AK19,'【記載例】シフト記号表（勤務時間帯）'!$C$5:$Y$46,23,FALSE)) -> - | AL21: =IF(AL19="","",VLOOKUP(AL19,'【記載例】シフト記号表（勤務時間帯）'!$C$5:$Y$46,23,FALSE)) -> - | AM21: =IF(AM19="","",VLOOKUP(AM19,'【記載例】シフト記号表（勤務時間帯）'!$C$5:$Y$46,23,FALSE)) -> - | AN21: =IF(AN19="","",VLOOKUP(AN19,'【記載例】シフト記号表（勤務時間帯）'!$C$5:$Y$46,23,FALSE)) -> - | AO21: =IF(AO19="","",VLOOKUP(AO19,'【記載例】シフト記号表（勤務時間帯）'!$C$5:$Y$46,23,FALSE)) -> - | AP21: =IF(AP19="","",VLOOKUP(AP19,'【記載例】シフト記号表（勤務時間帯）'!$C$5:$Y$46,23,FALSE)) -> - | AQ21: =IF(AQ19="","",VLOOKUP(AQ19,'【記載例】シフト記号表（勤務時間帯）'!$C$5:$Y$46,23,FALSE)) -> - | AR21: =IF(AR19="","",VLOOKUP(AR19,'【記載例】シフト記号表（勤務時間帯）'!$C$5:$Y$46,23,FALSE)) -> - | AS21: =IF(AS19="","",VLOOKUP(AS19,'【記載例】シフト記号表（勤務時間帯）'!$C$5:$Y$46,23,FALSE)) -> - | AT21: =IF(AT19="","",VLOOKUP(AT19,'【記載例】シフト記号表（勤務時間帯）'!$C$5:$Y$46,23,FALSE)) -> - | AU21: =IF(AU19="","",VLOOKUP(AU19,'【記載例】シフト記号表（勤務時間帯）'!$C$5:$Y$46,23,FALSE)) -> - | AV21: =IF(AV19="","",VLOOKUP(AV19,'【記載例】シフト記号表（勤務時間帯）'!$C$5:$Y$46,23,FALSE)) ->  | AW21: =IF(AW19="","",VLOOKUP(AW19,'【記載例】シフト記号表（勤務時間帯）'!$C$5:$Y$46,23,FALSE)) ->  | AX21: =IF(AX19="","",VLOOKUP(AX19,'【記載例】シフト記号表（勤務時間帯）'!$C$5:$Y$46,23,FALSE)) ->  | AY21: =IF($BB$3="計画",SUM(T21:AU21),IF($BB$3="実績",SUM(T21:AX21),"")) -> 0 | BA21: =IF($BB$3="計画",AY21/4,IF($BB$3="実績",(AY21/($BB$7/7)),"")) -> 0
G22: A | L22: ○○ A男 | O22: シフト記号 | T22: d | U22: d | V22: d | W22: d | X22: 休 | Y22: d | Z22: d | AA22: 休 | AB22: d | AC22: d | AD22: d | AE22: 休 | AF22: 休 | AG22: d | AH22: d | AI22: d | AJ22: 休 | AK22: d | AL22: d | AM22: d | AN22: d | AO22: d | AP22: 休 | AQ22: d | AR22: 休 | AS22: d | AT22: 休 | AU22: d
B23: =B20+1 -> 2 | C23: 介護支援専門員 | H23: 介護支援専門員 | O23: 日中の勤務時間数 | T23: =IF(T22="","",VLOOKUP(T22,'【記載例】シフト記号表（勤務時間帯）'!$C$5:$W$46,21,FALSE)) -> 8 | U23: =IF(U22="","",VLOOKUP(U22,'【記載例】シフト記号表（勤務時間帯）'!$C$5:$W$46,21,FALSE)) -> 8 | V23: =IF(V22="","",VLOOKUP(V22,'【記載例】シフト記号表（勤務時間帯）'!$C$5:$W$46,21,FALSE)) -> 8 | W23: =IF(W22="","",VLOOKUP(W22,'【記載例】シフト記号表（勤務時間帯）'!$C$5:$W$46,21,FALSE)) -> 8 | X23: =IF(X22="","",VLOOKUP(X22,'【記載例】シフト記号表（勤務時間帯）'!$C$5:$W$46,21,FALSE)) -> - | Y23: =IF(Y22="","",VLOOKUP(Y22,'【記載例】シフト記号表（勤務時間帯）'!$C$5:$W$46,21,FALSE)) -> 8 | Z23: =IF(Z22="","",VLOOKUP(Z22,'【記載例】シフト記号表（勤務時間帯）'!$C$5:$W$46,21,FALSE)) -> 8 | AA23: =IF(AA22="","",VLOOKUP(AA22,'【記載例】シフト記号表（勤務時間帯）'!$C$5:$W$46,21,FALSE)) -> - | AB23: =IF(AB22="","",VLOOKUP(AB22,'【記載例】シフト記号表（勤務時間帯）'!$C$5:$W$46,21,FALSE)) -> 8 | AC23: =IF(AC22="","",VLOOKUP(AC22,'【記載例】シフト記号表（勤務時間帯）'!$C$5:$W$46,21,FALSE)) -> 8 | AD23: =IF(AD22="","",VLOOKUP(AD22,'【記載例】シフト記号表（勤務時間帯）'!$C$5:$W$46,21,FALSE)) -> 8 | AE23: =IF(AE22="","",VLOOKUP(AE22,'【記載例】シフト記号表（勤務時間帯）'!$C$5:$W$46,21,FALSE)) -> - | AF23: =IF(AF22="","",VLOOKUP(AF22,'【記載例】シフト記号表（勤務時間帯）'!$C$5:$W$46,21,FALSE)) -> - | AG23: =IF(AG22="","",VLOOKUP(AG22,'【記載例】シフト記号表（勤務時間帯）'!$C$5:$W$46,21,FALSE)) -> 8 | AH23: =IF(AH22="","",VLOOKUP(AH22,'【記載例】シフト記号表（勤務時間帯）'!$C$5:$W$46,21,FALSE)) -> 8 | AI23: =IF(AI22="","",VLOOKUP(AI22,'【記載例】シフト記号表（勤務時間帯）'!$C$5:$W$46,21,FALSE)) -> 8 | AJ23: =IF(AJ22="","",VLOOKUP(AJ22,'【記載例】シフト記号表（勤務時間帯）'!$C$5:$W$46,21,FALSE)) -> - | AK23: =IF(AK22="","",VLOOKUP(AK22,'【記載例】シフト記号表（勤務時間帯）'!$C$5:$W$46,21,FALSE)) -> 8 | AL23: =IF(AL22="","",VLOOKUP(AL22,'【記載例】シフト記号表（勤務時間帯）'!$C$5:$W$46,21,FALSE)) -> 8 | AM23: =IF(AM22="","",VLOOKUP(AM22,'【記載例】シフト記号表（勤務時間帯）'!$C$5:$W$46,21,FALSE)) -> 8 | AN23: =IF(AN22="","",VLOOKUP(AN22,'【記載例】シフト記号表（勤務時間帯）'!$C$5:$W$46,21,FALSE)) -> 8 | AO23: =IF(AO22="","",VLOOKUP(AO22,'【記載例】シフト記号表（勤務時間帯）'!$C$5:$W$46,21,FALSE)) -> 8 | AP23: =IF(AP22="","",VLOOKUP(AP22,'【記載例】シフト記号表（勤務時間帯）'!$C$5:$W$46,21,FALSE)) -> - | AQ23: =IF(AQ22="","",VLOOKUP(AQ22,'【記載例】シフト記号表（勤務時間帯）'!$C$5:$W$46,21,FALSE)) -> 8 | AR23: =IF(AR22="","",VLOOKUP(AR22,'【記載例】シフト記号表（勤務時間帯）'!$C$5:$W$46,21,FALSE)) -> - | AS23: =IF(AS22="","",VLOOKUP(AS22,'【記載例】シフト記号表（勤務時間帯）'!$C$5:$W$46,21,FALSE)) -> 8 | AT23: =IF(AT22="","",VLOOKUP(AT22,'【記載例】シフト記号表（勤務時間帯）'!$C$5:$W$46,21,FALSE)) -> - | AU23: =IF(AU22="","",VLOOKUP(AU22,'【記載例】シフト記号表（勤務時間帯）'!$C$5:$W$46,21,FALSE)) -> 8 | AV23: =IF(AV22="","",VLOOKUP(AV22,'【記載例】シフト記号表（勤務時間帯）'!$C$5:$W$46,21,FALSE)) ->  | AW23: =IF(AW22="","",VLOOKUP(AW22,'【記載例】シフト記号表（勤務時間帯）'!$C$5:$W$46,21,FALSE)) ->  | AX23: =IF(AX22="","",VLOOKUP(AX22,'【記載例】シフト記号表（勤務時間帯）'!$C$5:$W$46,21,FALSE)) ->  | AY23: =IF($BB$3="計画",SUM(T23:AU23),IF($BB$3="実績",SUM(T23:AX23),"")) -> 160 | BA23: =IF($BB$3="計画",AY23/4,IF($BB$3="実績",(AY23/($BB$7/7)),"")) -> 40
F24: =C23 -> 介護支援専門員 | O24: 夜間・深夜の勤務時間数 | T24: =IF(T22="","",VLOOKUP(T22,'【記載例】シフト記号表（勤務時間帯）'!$C$5:$Y$46,23,FALSE)) -> - | U24: =IF(U22="","",VLOOKUP(U22,'【記載例】シフト記号表（勤務時間帯）'!$C$5:$Y$46,23,FALSE)) -> - | V24: =IF(V22="","",VLOOKUP(V22,'【記載例】シフト記号表（勤務時間帯）'!$C$5:$Y$46,23,FALSE)) -> - | W24: =IF(W22="","",VLOOKUP(W22,'【記載例】シフト記号表（勤務時間帯）'!$C$5:$Y$46,23,FALSE)) -> - | X24: =IF(X22="","",VLOOKUP(X22,'【記載例】シフト記号表（勤務時間帯）'!$C$5:$Y$46,23,FALSE)) -> - | Y24: =IF(Y22="","",VLOOKUP(Y22,'【記載例】シフト記号表（勤務時間帯）'!$C$5:$Y$46,23,FALSE)) -> - | Z24: =IF(Z22="","",VLOOKUP(Z22,'【記載例】シフト記号表（勤務時間帯）'!$C$5:$Y$46,23,FALSE)) -> - | AA24: =IF(AA22="","",VLOOKUP(AA22,'【記載例】シフト記号表（勤務時間帯）'!$C$5:$Y$46,23,FALSE)) -> - | AB24: =IF(AB22="","",VLOOKUP(AB22,'【記載例】シフト記号表（勤務時間帯）'!$C$5:$Y$46,23,FALSE)) -> - | AC24: =IF(AC22="","",VLOOKUP(AC22,'【記載例】シフト記号表（勤務時間帯）'!$C$5:$Y$46,23,FALSE)) -> - | AD24: =IF(AD22="","",VLOOKUP(AD22,'【記載例】シフト記号表（勤務時間帯）'!$C$5:$Y$46,23,FALSE)) -> - | AE24: =IF(AE22="","",VLOOKUP(AE22,'【記載例】シフト記号表（勤務時間帯）'!$C$5:$Y$46,23,FALSE)) -> - | AF24: =IF(AF22="","",VLOOKUP(AF22,'【記載例】シフト記号表（勤務時間帯）'!$C$5:$Y$46,23,FALSE)) -> - | AG24: =IF(AG22="","",VLOOKUP(AG22,'【記載例】シフト記号表（勤務時間帯）'!$C$5:$Y$46,23,FALSE)) -> - | AH24: =IF(AH22="","",VLOOKUP(AH22,'【記載例】シフト記号表（勤務時間帯）'!$C$5:$Y$46,23,FALSE)) -> - | AI24: =IF(AI22="","",VLOOKUP(AI22,'【記載例】シフト記号表（勤務時間帯）'!$C$5:$Y$46,23,FALSE)) -> - | AJ24: =IF(AJ22="","",VLOOKUP(AJ22,'【記載例】シフト記号表（勤務時間帯）'!$C$5:$Y$46,23,FALSE)) -> - | AK24: =IF(AK22="","",VLOOKUP(AK22,'【記載例】シフト記号表（勤務時間帯）'!$C$5:$Y$46,23,FALSE)) -> - | AL24: =IF(AL22="","",VLOOKUP(AL22,'【記載例】シフト記号表（勤務時間帯）'!$C$5:$Y$46,23,FALSE)) -> - | AM24: =IF(AM22="","",VLOOKUP(AM22,'【記載例】シフト記号表（勤務時間帯）'!$C$5:$Y$46,23,FALSE)) -> - | AN24: =IF(AN22="","",VLOOKUP(AN22,'【記載例】シフト記号表（勤務時間帯）'!$C$5:$Y$46,23,FALSE)) -> - | AO24: =IF(AO22="","",VLOOKUP(AO22,'【記載例】シフト記号表（勤務時間帯）'!$C$5:$Y$46,23,FALSE)) -> - | AP24: =IF(AP22="","",VLOOKUP(AP22,'【記載例】シフト記号表（勤務時間帯）'!$C$5:$Y$46,23,FALSE)) -> - | AQ24: =IF(AQ22="","",VLOOKUP(AQ22,'【記載例】シフト記号表（勤務時間帯）'!$C$5:$Y$46,23,FALSE)) -> - | AR24: =IF(AR22="","",VLOOKUP(AR22,'【記載例】シフト記号表（勤務時間帯）'!$C$5:$Y$46,23,FALSE)) -> - | AS24: =IF(AS22="","",VLOOKUP(AS22,'【記載例】シフト記号表（勤務時間帯）'!$C$5:$Y$46,23,FALSE)) -> - | AT24: =IF(AT22="","",VLOOKUP(AT22,'【記載例】シフト記号表（勤務時間帯）'!$C$5:$Y$46,23,FALSE)) -> - | AU24: =IF(AU22="","",VLOOKUP(AU22,'【記載例】シフト記号表（勤務時間帯）'!$C$5:$Y$46,23,FALSE)) -> - | AV24: =IF(AV22="","",VLOOKUP(AV22,'【記載例】シフト記号表（勤務時間帯）'!$C$5:$Y$46,23,FALSE)) ->  | AW24: =IF(AW22="","",VLOOKUP(AW22,'【記載例】シフト記号表（勤務時間帯）'!$C$5:$Y$46,23,FALSE)) ->  | AX24: =IF(AX22="","",VLOOKUP(AX22,'【記載例】シフト記号表（勤務時間帯）'!$C$5:$Y$46,23,FALSE)) ->  | AY24: =IF($BB$3="計画",SUM(T24:AU24),IF($BB$3="実績",SUM(T24:AX24),"")) -> 0 | BA24: =IF($BB$3="計画",AY24/4,IF($BB$3="実績",(AY24/($BB$7/7)),"")) -> 0
G25: A | L25: ○○ B子 | O25: シフト記号 | T25: i | U25: j | V25: 休 | W25: a | X25: c | Y25: 休 | Z25: a | AA25: i | AB25: j | AC25: c | AD25: 休 | AE25: a | AF25: c | AG25: 休 | AH25: c | AI25: i | AJ25: j | AK25: 休 | AL25: 休 | AM25: i | AN25: j | AO25: 休 | AP25: a | AQ25: c | AR25: i | AS25: j | AT25: 休 | AU25: 休
B26: =B23+1 -> 3 | C26: 看護職員 | H26: 保健師 | O26: 日中の勤務時間数 | T26: =IF(T25="","",VLOOKUP(T25,'【記載例】シフト記号表（勤務時間帯）'!$C$5:$W$46,21,FALSE)) -> 3 | U26: =IF(U25="","",VLOOKUP(U25,'【記載例】シフト記号表（勤務時間帯）'!$C$5:$W$46,21,FALSE)) -> 5 | V26: =IF(V25="","",VLOOKUP(V25,'【記載例】シフト記号表（勤務時間帯）'!$C$5:$W$46,21,FALSE)) -> - | W26: =IF(W25="","",VLOOKUP(W25,'【記載例】シフト記号表（勤務時間帯）'!$C$5:$W$46,21,FALSE)) -> 8 | X26: =IF(X25="","",VLOOKUP(X25,'【記載例】シフト記号表（勤務時間帯）'!$C$5:$W$46,21,FALSE)) -> 8 | Y26: =IF(Y25="","",VLOOKUP(Y25,'【記載例】シフト記号表（勤務時間帯）'!$C$5:$W$46,21,FALSE)) -> - | Z26: =IF(Z25="","",VLOOKUP(Z25,'【記載例】シフト記号表（勤務時間帯）'!$C$5:$W$46,21,FALSE)) -> 8 | AA26: =IF(AA25="","",VLOOKUP(AA25,'【記載例】シフト記号表（勤務時間帯）'!$C$5:$W$46,21,FALSE)) -> 3 | AB26: =IF(AB25="","",VLOOKUP(AB25,'【記載例】シフト記号表（勤務時間帯）'!$C$5:$W$46,21,FALSE)) -> 5 | AC26: =IF(AC25="","",VLOOKUP(AC25,'【記載例】シフト記号表（勤務時間帯）'!$C$5:$W$46,21,FALSE)) -> 8 | AD26: =IF(AD25="","",VLOOKUP(AD25,'【記載例】シフト記号表（勤務時間帯）'!$C$5:$W$46,21,FALSE)) -> - | AE26: =IF(AE25="","",VLOOKUP(AE25,'【記載例】シフト記号表（勤務時間帯）'!$C$5:$W$46,21,FALSE)) -> 8 | AF26: =IF(AF25="","",VLOOKUP(AF25,'【記載例】シフト記号表（勤務時間帯）'!$C$5:$W$46,21,FALSE)) -> 8 | AG26: =IF(AG25="","",VLOOKUP(AG25,'【記載例】シフト記号表（勤務時間帯）'!$C$5:$W$46,21,FALSE)) -> - | AH26: =IF(AH25="","",VLOOKUP(AH25,'【記載例】シフト記号表（勤務時間帯）'!$C$5:$W$46,21,FALSE)) -> 8 | AI26: =IF(AI25="","",VLOOKUP(AI25,'【記載例】シフト記号表（勤務時間帯）'!$C$5:$W$46,21,FALSE)) -> 3 | AJ26: =IF(AJ25="","",VLOOKUP(AJ25,'【記載例】シフト記号表（勤務時間帯）'!$C$5:$W$46,21,FALSE)) -> 5 | AK26: =IF(AK25="","",VLOOKUP(AK25,'【記載例】シフト記号表（勤務時間帯）'!$C$5:$W$46,21,FALSE)) -> - | AL26: =IF(AL25="","",VLOOKUP(AL25,'【記載例】シフト記号表（勤務時間帯）'!$C$5:$W$46,21,FALSE)) -> - | AM26: =IF(AM25="","",VLOOKUP(AM25,'【記載例】シフト記号表（勤務時間帯）'!$C$5:$W$46,21,FALSE)) -> 3 | AN26: =IF(AN25="","",VLOOKUP(AN25,'【記載例】シフト記号表（勤務時間帯）'!$C$5:$W$46,21,FALSE)) -> 5 | AO26: =IF(AO25="","",VLOOKUP(AO25,'【記載例】シフト記号表（勤務時間帯）'!$C$5:$W$46,21,FALSE)) -> - | AP26: =IF(AP25="","",VLOOKUP(AP25,'【記載例】シフト記号表（勤務時間帯）'!$C$5:$W$46,21,FALSE)) -> 8 | AQ26: =IF(AQ25="","",VLOOKUP(AQ25,'【記載例】シフト記号表（勤務時間帯）'!$C$5:$W$46,21,FALSE)) -> 8 | AR26: =IF(AR25="","",VLOOKUP(AR25,'【記載例】シフト記号表（勤務時間帯）'!$C$5:$W$46,21,FALSE)) -> 3 | AS26: =IF(AS25="","",VLOOKUP(AS25,'【記載例】シフト記号表（勤務時間帯）'!$C$5:$W$46,21,FALSE)) -> 5 | AT26: =IF(AT25="","",VLOOKUP(AT25,'【記載例】シフト記号表（勤務時間帯）'!$C$5:$W$46,21,FALSE)) -> - | AU26: =IF(AU25="","",VLOOKUP(AU25,'【記載例】シフト記号表（勤務時間帯）'!$C$5:$W$46,21,FALSE)) -> - | AV26: =IF(AV25="","",VLOOKUP(AV25,'【記載例】シフト記号表（勤務時間帯）'!$C$5:$W$46,21,FALSE)) ->  | AW26: =IF(AW25="","",VLOOKUP(AW25,'【記載例】シフト記号表（勤務時間帯）'!$C$5:$W$46,21,FALSE)) ->  | AX26: =IF(AX25="","",VLOOKUP(AX25,'【記載例】シフト記号表（勤務時間帯）'!$C$5:$W$46,21,FALSE)) ->  | AY26: =IF($BB$3="計画",SUM(T26:AU26),IF($BB$3="実績",SUM(T26:AX26),"")) -> 112 | BA26: =IF($BB$3="計画",AY26/4,IF($BB$3="実績",(AY26/($BB$7/7)),"")) -> 28
F27: =C26 -> 看護職員 | O27: 夜間・深夜の勤務時間数 | T27: =IF(T25="","",VLOOKUP(T25,'【記載例】シフト記号表（勤務時間帯）'!$C$5:$Y$46,23,FALSE)) -> 11 | U27: =IF(U25="","",VLOOKUP(U25,'【記載例】シフト記号表（勤務時間帯）'!$C$5:$Y$46,23,FALSE)) -> - | V27: =IF(V25="","",VLOOKUP(V25,'【記載例】シフト記号表（勤務時間帯）'!$C$5:$Y$46,23,FALSE)) -> - | W27: =IF(W25="","",VLOOKUP(W25,'【記載例】シフト記号表（勤務時間帯）'!$C$5:$Y$46,23,FALSE)) -> - | X27: =IF(X25="","",VLOOKUP(X25,'【記載例】シフト記号表（勤務時間帯）'!$C$5:$Y$46,23,FALSE)) -> - | Y27: =IF(Y25="","",VLOOKUP(Y25,'【記載例】シフト記号表（勤務時間帯）'!$C$5:$Y$46,23,FALSE)) -> - | Z27: =IF(Z25="","",VLOOKUP(Z25,'【記載例】シフト記号表（勤務時間帯）'!$C$5:$Y$46,23,FALSE)) -> - | AA27: =IF(AA25="","",VLOOKUP(AA25,'【記載例】シフト記号表（勤務時間帯）'!$C$5:$Y$46,23,FALSE)) -> 11 | AB27: =IF(AB25="","",VLOOKUP(AB25,'【記載例】シフト記号表（勤務時間帯）'!$C$5:$Y$46,23,FALSE)) -> - | AC27: =IF(AC25="","",VLOOKUP(AC25,'【記載例】シフト記号表（勤務時間帯）'!$C$5:$Y$46,23,FALSE)) -> - | AD27: =IF(AD25="","",VLOOKUP(AD25,'【記載例】シフト記号表（勤務時間帯）'!$C$5:$Y$46,23,FALSE)) -> - | AE27: =IF(AE25="","",VLOOKUP(AE25,'【記載例】シフト記号表（勤務時間帯）'!$C$5:$Y$46,23,FALSE)) -> - | AF27: =IF(AF25="","",VLOOKUP(AF25,'【記載例】シフト記号表（勤務時間帯）'!$C$5:$Y$46,23,FALSE)) -> - | AG27: =IF(AG25="","",VLOOKUP(AG25,'【記載例】シフト記号表（勤務時間帯）'!$C$5:$Y$46,23,FALSE)) -> - | AH27: =IF(AH25="","",VLOOKUP(AH25,'【記載例】シフト記号表（勤務時間帯）'!$C$5:$Y$46,23,FALSE)) -> - | AI27: =IF(AI25="","",VLOOKUP(AI25,'【記載例】シフト記号表（勤務時間帯）'!$C$5:$Y$46,23,FALSE)) -> 11 | AJ27: =IF(AJ25="","",VLOOKUP(AJ25,'【記載例】シフト記号表（勤務時間帯）'!$C$5:$Y$46,23,FALSE)) -> - | AK27: =IF(AK25="","",VLOOKUP(AK25,'【記載例】シフト記号表（勤務時間帯）'!$C$5:$Y$46,23,FALSE)) -> - | AL27: =IF(AL25="","",VLOOKUP(AL25,'【記載例】シフト記号表（勤務時間帯）'!$C$5:$Y$46,23,FALSE)) -> - | AM27: =IF(AM25="","",VLOOKUP(AM25,'【記載例】シフト記号表（勤務時間帯）'!$C$5:$Y$46,23,FALSE)) -> 11 | AN27: =IF(AN25="","",VLOOKUP(AN25,'【記載例】シフト記号表（勤務時間帯）'!$C$5:$Y$46,23,FALSE)) -> - | AO27: =IF(AO25="","",VLOOKUP(AO25,'【記載例】シフト記号表（勤務時間帯）'!$C$5:$Y$46,23,FALSE)) -> - | AP27: =IF(AP25="","",VLOOKUP(AP25,'【記載例】シフト記号表（勤務時間帯）'!$C$5:$Y$46,23,FALSE)) -> - | AQ27: =IF(AQ25="","",VLOOKUP(AQ25,'【記載例】シフト記号表（勤務時間帯）'!$C$5:$Y$46,23,FALSE)) -> - | AR27: =IF(AR25="","",VLOOKUP(AR25,'【記載例】シフト記号表（勤務時間帯）'!$C$5:$Y$46,23,FALSE)) -> 11 | AS27: =IF(AS25="","",VLOOKUP(AS25,'【記載例】シフト記号表（勤務時間帯）'!$C$5:$Y$46,23,FALSE)) -> - | AT27: =IF(AT25="","",VLOOKUP(AT25,'【記載例】シフト記号表（勤務時間帯）'!$C$5:$Y$46,23,FALSE)) -> - | AU27: =IF(AU25="","",VLOOKUP(AU25,'【記載例】シフト記号表（勤務時間帯）'!$C$5:$Y$46,23,FALSE)) -> - | AV27: =IF(AV25="","",VLOOKUP(AV25,'【記載例】シフト記号表（勤務時間帯）'!$C$5:$Y$46,23,FALSE)) ->  | AW27: =IF(AW25="","",VLOOKUP(AW25,'【記載例】シフト記号表（勤務時間帯）'!$C$5:$Y$46,23,FALSE)) ->  | AX27: =IF(AX25="","",VLOOKUP(AX25,'【記載例】シフト記号表（勤務時間帯）'!$C$5:$Y$46,23,FALSE)) ->  | AY27: =IF($BB$3="計画",SUM(T27:AU27),IF($BB$3="実績",SUM(T27:AX27),"")) -> 55 | BA27: =IF($BB$3="計画",AY27/4,IF($BB$3="実績",(AY27/($BB$7/7)),"")) -> 13.75
G28: A | L28: ○○ C太 | O28: シフト記号 | T28: 休 | U28: i | V28: j | W28: 休 | X28: 休 | Y28: i | Z28: j | AA28: 休 | AB28: a | AC28: i | AD28: j | AE28: 休 | AF28: b | AG28: a | AH28: 休 | AI28: a | AJ28: c | AK28: i | AL28: j | AM28: 休 | AN28: a | AO28: b | AP28: c | AQ28: i | AR28: j | AS28: 休 | AT28: 休 | AU28: a
B29: =B26+1 -> 4 | C29: 看護職員 | H29: 看護師 | O29: 日中の勤務時間数 | T29: =IF(T28="","",VLOOKUP(T28,'【記載例】シフト記号表（勤務時間帯）'!$C$5:$W$46,21,FALSE)) -> - | U29: =IF(U28="","",VLOOKUP(U28,'【記載例】シフト記号表（勤務時間帯）'!$C$5:$W$46,21,FALSE)) -> 3 | V29: =IF(V28="","",VLOOKUP(V28,'【記載例】シフト記号表（勤務時間帯）'!$C$5:$W$46,21,FALSE)) -> 5 | W29: =IF(W28="","",VLOOKUP(W28,'【記載例】シフト記号表（勤務時間帯）'!$C$5:$W$46,21,FALSE)) -> - | X29: =IF(X28="","",VLOOKUP(X28,'【記載例】シフト記号表（勤務時間帯）'!$C$5:$W$46,21,FALSE)) -> - | Y29: =IF(Y28="","",VLOOKUP(Y28,'【記載例】シフト記号表（勤務時間帯）'!$C$5:$W$46,21,FALSE)) -> 3 | Z29: =IF(Z28="","",VLOOKUP(Z28,'【記載例】シフト記号表（勤務時間帯）'!$C$5:$W$46,21,FALSE)) -> 5 | AA29: =IF(AA28="","",VLOOKUP(AA28,'【記載例】シフト記号表（勤務時間帯）'!$C$5:$W$46,21,FALSE)) -> - | AB29: =IF(AB28="","",VLOOKUP(AB28,'【記載例】シフト記号表（勤務時間帯）'!$C$5:$W$46,21,FALSE)) -> 8 | AC29: =IF(AC28="","",VLOOKUP(AC28,'【記載例】シフト記号表（勤務時間帯）'!$C$5:$W$46,21,FALSE)) -> 3 | AD29: =IF(AD28="","",VLOOKUP(AD28,'【記載例】シフト記号表（勤務時間帯）'!$C$5:$W$46,21,FALSE)) -> 5 | AE29: =IF(AE28="","",VLOOKUP(AE28,'【記載例】シフト記号表（勤務時間帯）'!$C$5:$W$46,21,FALSE)) -> - | AF29: =IF(AF28="","",VLOOKUP(AF28,'【記載例】シフト記号表（勤務時間帯）'!$C$5:$W$46,21,FALSE)) -> 8 | AG29: =IF(AG28="","",VLOOKUP(AG28,'【記載例】シフト記号表（勤務時間帯）'!$C$5:$W$46,21,FALSE)) -> 8 | AH29: =IF(AH28="","",VLOOKUP(AH28,'【記載例】シフト記号表（勤務時間帯）'!$C$5:$W$46,21,FALSE)) -> - | AI29: =IF(AI28="","",VLOOKUP(AI28,'【記載例】シフト記号表（勤務時間帯）'!$C$5:$W$46,21,FALSE)) -> 8 | AJ29: =IF(AJ28="","",VLOOKUP(AJ28,'【記載例】シフト記号表（勤務時間帯）'!$C$5:$W$46,21,FALSE)) -> 8 | AK29: =IF(AK28="","",VLOOKUP(AK28,'【記載例】シフト記号表（勤務時間帯）'!$C$5:$W$46,21,FALSE)) -> 3 | AL29: =IF(AL28="","",VLOOKUP(AL28,'【記載例】シフト記号表（勤務時間帯）'!$C$5:$W$46,21,FALSE)) -> 5 | AM29: =IF(AM28="","",VLOOKUP(AM28,'【記載例】シフト記号表（勤務時間帯）'!$C$5:$W$46,21,FALSE)) -> - | AN29: =IF(AN28="","",VLOOKUP(AN28,'【記載例】シフト記号表（勤務時間帯）'!$C$5:$W$46,21,FALSE)) -> 8 | AO29: =IF(AO28="","",VLOOKUP(AO28,'【記載例】シフト記号表（勤務時間帯）'!$C$5:$W$46,21,FALSE)) -> 8 | AP29: =IF(AP28="","",VLOOKUP(AP28,'【記載例】シフト記号表（勤務時間帯）'!$C$5:$W$46,21,FALSE)) -> 8 | AQ29: =IF(AQ28="","",VLOOKUP(AQ28,'【記載例】シフト記号表（勤務時間帯）'!$C$5:$W$46,21,FALSE)) -> 3 | AR29: =IF(AR28="","",VLOOKUP(AR28,'【記載例】シフト記号表（勤務時間帯）'!$C$5:$W$46,21,FALSE)) -> 5 | AS29: =IF(AS28="","",VLOOKUP(AS28,'【記載例】シフト記号表（勤務時間帯）'!$C$5:$W$46,21,FALSE)) -> - | AT29: =IF(AT28="","",VLOOKUP(AT28,'【記載例】シフト記号表（勤務時間帯）'!$C$5:$W$46,21,FALSE)) -> - | AU29: =IF(AU28="","",VLOOKUP(AU28,'【記載例】シフト記号表（勤務時間帯）'!$C$5:$W$46,21,FALSE)) -> 8 | AV29: =IF(AV28="","",VLOOKUP(AV28,'【記載例】シフト記号表（勤務時間帯）'!$C$5:$W$46,21,FALSE)) ->  | AW29: =IF(AW28="","",VLOOKUP(AW28,'【記載例】シフト記号表（勤務時間帯）'!$C$5:$W$46,21,FALSE)) ->  | AX29: =IF(AX28="","",VLOOKUP(AX28,'【記載例】シフト記号表（勤務時間帯）'!$C$5:$W$46,21,FALSE)) ->  | AY29: =IF($BB$3="計画",SUM(T29:AU29),IF($BB$3="実績",SUM(T29:AX29),"")) -> 112 | BA29: =IF($BB$3="計画",AY29/4,IF($BB$3="実績",(AY29/($BB$7/7)),"")) -> 28
F30: =C29 -> 看護職員 | O30: 夜間・深夜の勤務時間数 | T30: =IF(T28="","",VLOOKUP(T28,'【記載例】シフト記号表（勤務時間帯）'!$C$5:$Y$46,23,FALSE)) -> - | U30: =IF(U28="","",VLOOKUP(U28,'【記載例】シフト記号表（勤務時間帯）'!$C$5:$Y$46,23,FALSE)) -> 11 | V30: =IF(V28="","",VLOOKUP(V28,'【記載例】シフト記号表（勤務時間帯）'!$C$5:$Y$46,23,FALSE)) -> - | W30: =IF(W28="","",VLOOKUP(W28,'【記載例】シフト記号表（勤務時間帯）'!$C$5:$Y$46,23,FALSE)) -> - | X30: =IF(X28="","",VLOOKUP(X28,'【記載例】シフト記号表（勤務時間帯）'!$C$5:$Y$46,23,FALSE)) -> - | Y30: =IF(Y28="","",VLOOKUP(Y28,'【記載例】シフト記号表（勤務時間帯）'!$C$5:$Y$46,23,FALSE)) -> 11 | Z30: =IF(Z28="","",VLOOKUP(Z28,'【記載例】シフト記号表（勤務時間帯）'!$C$5:$Y$46,23,FALSE)) -> - | AA30: =IF(AA28="","",VLOOKUP(AA28,'【記載例】シフト記号表（勤務時間帯）'!$C$5:$Y$46,23,FALSE)) -> - | AB30: =IF(AB28="","",VLOOKUP(AB28,'【記載例】シフト記号表（勤務時間帯）'!$C$5:$Y$46,23,FALSE)) -> - | AC30: =IF(AC28="","",VLOOKUP(AC28,'【記載例】シフト記号表（勤務時間帯）'!$C$5:$Y$46,23,FALSE)) -> 11 | AD30: =IF(AD28="","",VLOOKUP(AD28,'【記載例】シフト記号表（勤務時間帯）'!$C$5:$Y$46,23,FALSE)) -> - | AE30: =IF(AE28="","",VLOOKUP(AE28,'【記載例】シフト記号表（勤務時間帯）'!$C$5:$Y$46,23,FALSE)) -> - | AF30: =IF(AF28="","",VLOOKUP(AF28,'【記載例】シフト記号表（勤務時間帯）'!$C$5:$Y$46,23,FALSE)) -> - | AG30: =IF(AG28="","",VLOOKUP(AG28,'【記載例】シフト記号表（勤務時間帯）'!$C$5:$Y$46,23,FALSE)) -> - | AH30: =IF(AH28="","",VLOOKUP(AH28,'【記載例】シフト記号表（勤務時間帯）'!$C$5:$Y$46,23,FALSE)) -> - | AI30: =IF(AI28="","",VLOOKUP(AI28,'【記載例】シフト記号表（勤務時間帯）'!$C$5:$Y$46,23,FALSE)) -> - | AJ30: =IF(AJ28="","",VLOOKUP(AJ28,'【記載例】シフト記号表（勤務時間帯）'!$C$5:$Y$46,23,FALSE)) -> - | AK30: =IF(AK28="","",VLOOKUP(AK28,'【記載例】シフト記号表（勤務時間帯）'!$C$5:$Y$46,23,FALSE)) -> 11 | AL30: =IF(AL28="","",VLOOKUP(AL28,'【記載例】シフト記号表（勤務時間帯）'!$C$5:$Y$46,23,FALSE)) -> - | AM30: =IF(AM28="","",VLOOKUP(AM28,'【記載例】シフト記号表（勤務時間帯）'!$C$5:$Y$46,23,FALSE)) -> - | AN30: =IF(AN28="","",VLOOKUP(AN28,'【記載例】シフト記号表（勤務時間帯）'!$C$5:$Y$46,23,FALSE)) -> - | AO30: =IF(AO28="","",VLOOKUP(AO28,'【記載例】シフト記号表（勤務時間帯）'!$C$5:$Y$46,23,FALSE)) -> - | AP30: =IF(AP28="","",VLOOKUP(AP28,'【記載例】シフト記号表（勤務時間帯）'!$C$5:$Y$46,23,FALSE)) -> - | AQ30: =IF(AQ28="","",VLOOKUP(AQ28,'【記載例】シフト記号表（勤務時間帯）'!$C$5:$Y$46,23,FALSE)) -> 11 | AR30: =IF(AR28="","",VLOOKUP(AR28,'【記載例】シフト記号表（勤務時間帯）'!$C$5:$Y$46,23,FALSE)) -> - | AS30: =IF(AS28="","",VLOOKUP(AS28,'【記載例】シフト記号表（勤務時間帯）'!$C$5:$Y$46,23,FALSE)) -> - | AT30: =IF(AT28="","",VLOOKUP(AT28,'【記載例】シフト記号表（勤務時間帯）'!$C$5:$Y$46,23,FALSE)) -> - | AU30: =IF(AU28="","",VLOOKUP(AU28,'【記載例】シフト記号表（勤務時間帯）'!$C$5:$Y$46,23,FALSE)) -> - | AV30: =IF(AV28="","",VLOOKUP(AV28,'【記載例】シフト記号表（勤務時間帯）'!$C$5:$Y$46,23,FALSE)) ->  | AW30: =IF(AW28="","",VLOOKUP(AW28,'【記載例】シフト記号表（勤務時間帯）'!$C$5:$Y$46,23,FALSE)) ->  | AX30: =IF(AX28="","",VLOOKUP(AX28,'【記載例】シフト記号表（勤務時間帯）'!$C$5:$Y$46,23,FALSE)) ->  | AY30: =IF($BB$3="計画",SUM(T30:AU30),IF($BB$3="実績",SUM(T30:AX30),"")) -> 55 | BA30: =IF($BB$3="計画",AY30/4,IF($BB$3="実績",(AY30/($BB$7/7)),"")) -> 13.75
G31: A | L31: ○○ D美 | O31: シフト記号 | T31: d | U31: a | V31: 休 | W31: a | X31: d | Y31: d | Z31: 休 | AA31: d | AB31: d | AC31: 休 | AD31: d | AE31: d | AF31: 休 | AG31: d | AH31: d | AI31: 休 | AJ31: a | AK31: 休 | AL31: d | AM31: d | AN31: d | AO31: 休 | AP31: d | AQ31: 休 | AR31: d | AS31: d | AT31: d | AU31: d
B32: =B29+1 -> 5 | C32: 看護職員 | H32: 看護師 | O32: 日中の勤務時間数 | T32: =IF(T31="","",VLOOKUP(T31,'【記載例】シフト記号表（勤務時間帯）'!$C$5:$W$46,21,FALSE)) -> 8 | U32: =IF(U31="","",VLOOKUP(U31,'【記載例】シフト記号表（勤務時間帯）'!$C$5:$W$46,21,FALSE)) -> 8 | V32: =IF(V31="","",VLOOKUP(V31,'【記載例】シフト記号表（勤務時間帯）'!$C$5:$W$46,21,FALSE)) -> - | W32: =IF(W31="","",VLOOKUP(W31,'【記載例】シフト記号表（勤務時間帯）'!$C$5:$W$46,21,FALSE)) -> 8 | X32: =IF(X31="","",VLOOKUP(X31,'【記載例】シフト記号表（勤務時間帯）'!$C$5:$W$46,21,FALSE)) -> 8 | Y32: =IF(Y31="","",VLOOKUP(Y31,'【記載例】シフト記号表（勤務時間帯）'!$C$5:$W$46,21,FALSE)) -> 8 | Z32: =IF(Z31="","",VLOOKUP(Z31,'【記載例】シフト記号表（勤務時間帯）'!$C$5:$W$46,21,FALSE)) -> - | AA32: =IF(AA31="","",VLOOKUP(AA31,'【記載例】シフト記号表（勤務時間帯）'!$C$5:$W$46,21,FALSE)) -> 8 | AB32: =IF(AB31="","",VLOOKUP(AB31,'【記載例】シフト記号表（勤務時間帯）'!$C$5:$W$46,21,FALSE)) -> 8 | AC32: =IF(AC31="","",VLOOKUP(AC31,'【記載例】シフト記号表（勤務時間帯）'!$C$5:$W$46,21,FALSE)) -> - | AD32: =IF(AD31="","",VLOOKUP(AD31,'【記載例】シフト記号表（勤務時間帯）'!$C$5:$W$46,21,FALSE)) -> 8 | AE32: =IF(AE31="","",VLOOKUP(AE31,'【記載例】シフト記号表（勤務時間帯）'!$C$5:$W$46,21,FALSE)) -> 8 | AF32: =IF(AF31="","",VLOOKUP(AF31,'【記載例】シフト記号表（勤務時間帯）'!$C$5:$W$46,21,FALSE)) -> - | AG32: =IF(AG31="","",VLOOKUP(AG31,'【記載例】シフト記号表（勤務時間帯）'!$C$5:$W$46,21,FALSE)) -> 8 | AH32: =IF(AH31="","",VLOOKUP(AH31,'【記載例】シフト記号表（勤務時間帯）'!$C$5:$W$46,21,FALSE)) -> 8 | AI32: =IF(AI31="","",VLOOKUP(AI31,'【記載例】シフト記号表（勤務時間帯）'!$C$5:$W$46,21,FALSE)) -> - | AJ32: =IF(AJ31="","",VLOOKUP(AJ31,'【記載例】シフト記号表（勤務時間帯）'!$C$5:$W$46,21,FALSE)) -> 8 | AK32: =IF(AK31="","",VLOOKUP(AK31,'【記載例】シフト記号表（勤務時間帯）'!$C$5:$W$46,21,FALSE)) -> - | AL32: =IF(AL31="","",VLOOKUP(AL31,'【記載例】シフト記号表（勤務時間帯）'!$C$5:$W$46,21,FALSE)) -> 8 | AM32: =IF(AM31="","",VLOOKUP(AM31,'【記載例】シフト記号表（勤務時間帯）'!$C$5:$W$46,21,FALSE)) -> 8 | AN32: =IF(AN31="","",VLOOKUP(AN31,'【記載例】シフト記号表（勤務時間帯）'!$C$5:$W$46,21,FALSE)) -> 8 | AO32: =IF(AO31="","",VLOOKUP(AO31,'【記載例】シフト記号表（勤務時間帯）'!$C$5:$W$46,21,FALSE)) -> - | AP32: =IF(AP31="","",VLOOKUP(AP31,'【記載例】シフト記号表（勤務時間帯）'!$C$5:$W$46,21,FALSE)) -> 8 | AQ32: =IF(AQ31="","",VLOOKUP(AQ31,'【記載例】シフト記号表（勤務時間帯）'!$C$5:$W$46,21,FALSE)) -> - | AR32: =IF(AR31="","",VLOOKUP(AR31,'【記載例】シフト記号表（勤務時間帯）'!$C$5:$W$46,21,FALSE)) -> 8 | AS32: =IF(AS31="","",VLOOKUP(AS31,'【記載例】シフト記号表（勤務時間帯）'!$C$5:$W$46,21,FALSE)) -> 8 | AT32: =IF(AT31="","",VLOOKUP(AT31,'【記載例】シフト記号表（勤務時間帯）'!$C$5:$W$46,21,FALSE)) -> 8 | AU32: =IF(AU31="","",VLOOKUP(AU31,'【記載例】シフト記号表（勤務時間帯）'!$C$5:$W$46,21,FALSE)) -> 8 | AV32: =IF(AV31="","",VLOOKUP(AV31,'【記載例】シフト記号表（勤務時間帯）'!$C$5:$W$46,21,FALSE)) ->  | AW32: =IF(AW31="","",VLOOKUP(AW31,'【記載例】シフト記号表（勤務時間帯）'!$C$5:$W$46,21,FALSE)) ->  | AX32: =IF(AX31="","",VLOOKUP(AX31,'【記載例】シフト記号表（勤務時間帯）'!$C$5:$W$46,21,FALSE)) ->  | AY32: =IF($BB$3="計画",SUM(T32:AU32),IF($BB$3="実績",SUM(T32:AX32),"")) -> 160 | BA32: =IF($BB$3="計画",AY32/4,IF($BB$3="実績",(AY32/($BB$7/7)),"")) -> 40
F33: =C32 -> 看護職員 | O33: 夜間・深夜の勤務時間数 | T33: =IF(T31="","",VLOOKUP(T31,'【記載例】シフト記号表（勤務時間帯）'!$C$5:$Y$46,23,FALSE)) -> - | U33: =IF(U31="","",VLOOKUP(U31,'【記載例】シフト記号表（勤務時間帯）'!$C$5:$Y$46,23,FALSE)) -> - | V33: =IF(V31="","",VLOOKUP(V31,'【記載例】シフト記号表（勤務時間帯）'!$C$5:$Y$46,23,FALSE)) -> - | W33: =IF(W31="","",VLOOKUP(W31,'【記載例】シフト記号表（勤務時間帯）'!$C$5:$Y$46,23,FALSE)) -> - | X33: =IF(X31="","",VLOOKUP(X31,'【記載例】シフト記号表（勤務時間帯）'!$C$5:$Y$46,23,FALSE)) -> - | Y33: =IF(Y31="","",VLOOKUP(Y31,'【記載例】シフト記号表（勤務時間帯）'!$C$5:$Y$46,23,FALSE)) -> - | Z33: =IF(Z31="","",VLOOKUP(Z31,'【記載例】シフト記号表（勤務時間帯）'!$C$5:$Y$46,23,FALSE)) -> - | AA33: =IF(AA31="","",VLOOKUP(AA31,'【記載例】シフト記号表（勤務時間帯）'!$C$5:$Y$46,23,FALSE)) -> - | AB33: =IF(AB31="","",VLOOKUP(AB31,'【記載例】シフト記号表（勤務時間帯）'!$C$5:$Y$46,23,FALSE)) -> - | AC33: =IF(AC31="","",VLOOKUP(AC31,'【記載例】シフト記号表（勤務時間帯）'!$C$5:$Y$46,23,FALSE)) -> - | AD33: =IF(AD31="","",VLOOKUP(AD31,'【記載例】シフト記号表（勤務時間帯）'!$C$5:$Y$46,23,FALSE)) -> - | AE33: =IF(AE31="","",VLOOKUP(AE31,'【記載例】シフト記号表（勤務時間帯）'!$C$5:$Y$46,23,FALSE)) -> - | AF33: =IF(AF31="","",VLOOKUP(AF31,'【記載例】シフト記号表（勤務時間帯）'!$C$5:$Y$46,23,FALSE)) -> - | AG33: =IF(AG31="","",VLOOKUP(AG31,'【記載例】シフト記号表（勤務時間帯）'!$C$5:$Y$46,23,FALSE)) -> - | AH33: =IF(AH31="","",VLOOKUP(AH31,'【記載例】シフト記号表（勤務時間帯）'!$C$5:$Y$46,23,FALSE)) -> - | AI33: =IF(AI31="","",VLOOKUP(AI31,'【記載例】シフト記号表（勤務時間帯）'!$C$5:$Y$46,23,FALSE)) -> - | AJ33: =IF(AJ31="","",VLOOKUP(AJ31,'【記載例】シフト記号表（勤務時間帯）'!$C$5:$Y$46,23,FALSE)) -> - | AK33: =IF(AK31="","",VLOOKUP(AK31,'【記載例】シフト記号表（勤務時間帯）'!$C$5:$Y$46,23,FALSE)) -> - | AL33: =IF(AL31="","",VLOOKUP(AL31,'【記載例】シフト記号表（勤務時間帯）'!$C$5:$Y$46,23,FALSE)) -> - | AM33: =IF(AM31="","",VLOOKUP(AM31,'【記載例】シフト記号表（勤務時間帯）'!$C$5:$Y$46,23,FALSE)) -> - | AN33: =IF(AN31="","",VLOOKUP(AN31,'【記載例】シフト記号表（勤務時間帯）'!$C$5:$Y$46,23,FALSE)) -> - | AO33: =IF(AO31="","",VLOOKUP(AO31,'【記載例】シフト記号表（勤務時間帯）'!$C$5:$Y$46,23,FALSE)) -> - | AP33: =IF(AP31="","",VLOOKUP(AP31,'【記載例】シフト記号表（勤務時間帯）'!$C$5:$Y$46,23,FALSE)) -> - | AQ33: =IF(AQ31="","",VLOOKUP(AQ31,'【記載例】シフト記号表（勤務時間帯）'!$C$5:$Y$46,23,FALSE)) -> - | AR33: =IF(AR31="","",VLOOKUP(AR31,'【記載例】シフト記号表（勤務時間帯）'!$C$5:$Y$46,23,FALSE)) -> - | AS33: =IF(AS31="","",VLOOKUP(AS31,'【記載例】シフト記号表（勤務時間帯）'!$C$5:$Y$46,23,FALSE)) -> - | AT33: =IF(AT31="","",VLOOKUP(AT31,'【記載例】シフト記号表（勤務時間帯）'!$C$5:$Y$46,23,FALSE)) -> - | AU33: =IF(AU31="","",VLOOKUP(AU31,'【記載例】シフト記号表（勤務時間帯）'!$C$5:$Y$46,23,FALSE)) -> - | AV33: =IF(AV31="","",VLOOKUP(AV31,'【記載例】シフト記号表（勤務時間帯）'!$C$5:$Y$46,23,FALSE)) ->  | AW33: =IF(AW31="","",VLOOKUP(AW31,'【記載例】シフト記号表（勤務時間帯）'!$C$5:$Y$46,23,FALSE)) ->  | AX33: =IF(AX31="","",VLOOKUP(AX31,'【記載例】シフト記号表（勤務時間帯）'!$C$5:$Y$46,23,FALSE)) ->  | AY33: =IF($BB$3="計画",SUM(T33:AU33),IF($BB$3="実績",SUM(T33:AX33),"")) -> 0 | BA33: =IF($BB$3="計画",AY33/4,IF($BB$3="実績",(AY33/($BB$7/7)),"")) -> 0
G34: A | L34: ○○ E夫 | O34: シフト記号 | T34: j | U34: 休 | V34: a | W34: 休 | X34: i | Y34: j | Z34: 休 | AA34: c | AB34: i | AC34: j | AD34: 休 | AE34: a | AF34: i | AG34: j | AH34: 休 | AI34: c | AJ34: c | AK34: 休 | AL34: c | AM34: 休 | AN34: i | AO34: j | AP34: c | AQ34: c | AR34: 休 | AS34: c | AT34: a | AU34: 休
B35: =B32+1 -> 6 | C35: 看護職員 | H35: 准看護師 | O35: 日中の勤務時間数 | T35: =IF(T34="","",VLOOKUP(T34,'【記載例】シフト記号表（勤務時間帯）'!$C$5:$W$46,21,FALSE)) -> 5 | U35: =IF(U34="","",VLOOKUP(U34,'【記載例】シフト記号表（勤務時間帯）'!$C$5:$W$46,21,FALSE)) -> - | V35: =IF(V34="","",VLOOKUP(V34,'【記載例】シフト記号表（勤務時間帯）'!$C$5:$W$46,21,FALSE)) -> 8 | W35: =IF(W34="","",VLOOKUP(W34,'【記載例】シフト記号表（勤務時間帯）'!$C$5:$W$46,21,FALSE)) -> - | X35: =IF(X34="","",VLOOKUP(X34,'【記載例】シフト記号表（勤務時間帯）'!$C$5:$W$46,21,FALSE)) -> 3 | Y35: =IF(Y34="","",VLOOKUP(Y34,'【記載例】シフト記号表（勤務時間帯）'!$C$5:$W$46,21,FALSE)) -> 5 | Z35: =IF(Z34="","",VLOOKUP(Z34,'【記載例】シフト記号表（勤務時間帯）'!$C$5:$W$46,21,FALSE)) -> - | AA35: =IF(AA34="","",VLOOKUP(AA34,'【記載例】シフト記号表（勤務時間帯）'!$C$5:$W$46,21,FALSE)) -> 8 | AB35: =IF(AB34="","",VLOOKUP(AB34,'【記載例】シフト記号表（勤務時間帯）'!$C$5:$W$46,21,FALSE)) -> 3 | AC35: =IF(AC34="","",VLOOKUP(AC34,'【記載例】シフト記号表（勤務時間帯）'!$C$5:$W$46,21,FALSE)) -> 5 | AD35: =IF(AD34="","",VLOOKUP(AD34,'【記載例】シフト記号表（勤務時間帯）'!$C$5:$W$46,21,FALSE)) -> - | AE35: =IF(AE34="","",VLOOKUP(AE34,'【記載例】シフト記号表（勤務時間帯）'!$C$5:$W$46,21,FALSE)) -> 8 | AF35: =IF(AF34="","",VLOOKUP(AF34,'【記載例】シフト記号表（勤務時間帯）'!$C$5:$W$46,21,FALSE)) -> 3 | AG35: =IF(AG34="","",VLOOKUP(AG34,'【記載例】シフト記号表（勤務時間帯）'!$C$5:$W$46,21,FALSE)) -> 5 | AH35: =IF(AH34="","",VLOOKUP(AH34,'【記載例】シフト記号表（勤務時間帯）'!$C$5:$W$46,21,FALSE)) -> - | AI35: =IF(AI34="","",VLOOKUP(AI34,'【記載例】シフト記号表（勤務時間帯）'!$C$5:$W$46,21,FALSE)) -> 8 | AJ35: =IF(AJ34="","",VLOOKUP(AJ34,'【記載例】シフト記号表（勤務時間帯）'!$C$5:$W$46,21,FALSE)) -> 8 | AK35: =IF(AK34="","",VLOOKUP(AK34,'【記載例】シフト記号表（勤務時間帯）'!$C$5:$W$46,21,FALSE)) -> - | AL35: =IF(AL34="","",VLOOKUP(AL34,'【記載例】シフト記号表（勤務時間帯）'!$C$5:$W$46,21,FALSE)) -> 8 | AM35: =IF(AM34="","",VLOOKUP(AM34,'【記載例】シフト記号表（勤務時間帯）'!$C$5:$W$46,21,FALSE)) -> - | AN35: =IF(AN34="","",VLOOKUP(AN34,'【記載例】シフト記号表（勤務時間帯）'!$C$5:$W$46,21,FALSE)) -> 3 | AO35: =IF(AO34="","",VLOOKUP(AO34,'【記載例】シフト記号表（勤務時間帯）'!$C$5:$W$46,21,FALSE)) -> 5 | AP35: =IF(AP34="","",VLOOKUP(AP34,'【記載例】シフト記号表（勤務時間帯）'!$C$5:$W$46,21,FALSE)) -> 8 | AQ35: =IF(AQ34="","",VLOOKUP(AQ34,'【記載例】シフト記号表（勤務時間帯）'!$C$5:$W$46,21,FALSE)) -> 8 | AR35: =IF(AR34="","",VLOOKUP(AR34,'【記載例】シフト記号表（勤務時間帯）'!$C$5:$W$46,21,FALSE)) -> - | AS35: =IF(AS34="","",VLOOKUP(AS34,'【記載例】シフト記号表（勤務時間帯）'!$C$5:$W$46,21,FALSE)) -> 8 | AT35: =IF(AT34="","",VLOOKUP(AT34,'【記載例】シフト記号表（勤務時間帯）'!$C$5:$W$46,21,FALSE)) -> 8 | AU35: =IF(AU34="","",VLOOKUP(AU34,'【記載例】シフト記号表（勤務時間帯）'!$C$5:$W$46,21,FALSE)) -> - | AV35: =IF(AV34="","",VLOOKUP(AV34,'【記載例】シフト記号表（勤務時間帯）'!$C$5:$W$46,21,FALSE)) ->  | AW35: =IF(AW34="","",VLOOKUP(AW34,'【記載例】シフト記号表（勤務時間帯）'!$C$5:$W$46,21,FALSE)) ->  | AX35: =IF(AX34="","",VLOOKUP(AX34,'【記載例】シフト記号表（勤務時間帯）'!$C$5:$W$46,21,FALSE)) ->  | AY35: =IF($BB$3="計画",SUM(T35:AU35),IF($BB$3="実績",SUM(T35:AX35),"")) -> 117 | BA35: =IF($BB$3="計画",AY35/4,IF($BB$3="実績",(AY35/($BB$7/7)),"")) -> 29.25
F36: =C35 -> 看護職員 | O36: 夜間・深夜の勤務時間数 | T36: =IF(T34="","",VLOOKUP(T34,'【記載例】シフト記号表（勤務時間帯）'!$C$5:$Y$46,23,FALSE)) -> - | U36: =IF(U34="","",VLOOKUP(U34,'【記載例】シフト記号表（勤務時間帯）'!$C$5:$Y$46,23,FALSE)) -> - | V36: =IF(V34="","",VLOOKUP(V34,'【記載例】シフト記号表（勤務時間帯）'!$C$5:$Y$46,23,FALSE)) -> - | W36: =IF(W34="","",VLOOKUP(W34,'【記載例】シフト記号表（勤務時間帯）'!$C$5:$Y$46,23,FALSE)) -> - | X36: =IF(X34="","",VLOOKUP(X34,'【記載例】シフト記号表（勤務時間帯）'!$C$5:$Y$46,23,FALSE)) -> 11 | Y36: =IF(Y34="","",VLOOKUP(Y34,'【記載例】シフト記号表（勤務時間帯）'!$C$5:$Y$46,23,FALSE)) -> - | Z36: =IF(Z34="","",VLOOKUP(Z34,'【記載例】シフト記号表（勤務時間帯）'!$C$5:$Y$46,23,FALSE)) -> - | AA36: =IF(AA34="","",VLOOKUP(AA34,'【記載例】シフト記号表（勤務時間帯）'!$C$5:$Y$46,23,FALSE)) -> - | AB36: =IF(AB34="","",VLOOKUP(AB34,'【記載例】シフト記号表（勤務時間帯）'!$C$5:$Y$46,23,FALSE)) -> 11 | AC36: =IF(AC34="","",VLOOKUP(AC34,'【記載例】シフト記号表（勤務時間帯）'!$C$5:$Y$46,23,FALSE)) -> - | AD36: =IF(AD34="","",VLOOKUP(AD34,'【記載例】シフト記号表（勤務時間帯）'!$C$5:$Y$46,23,FALSE)) -> - | AE36: =IF(AE34="","",VLOOKUP(AE34,'【記載例】シフト記号表（勤務時間帯）'!$C$5:$Y$46,23,FALSE)) -> - | AF36: =IF(AF34="","",VLOOKUP(AF34,'【記載例】シフト記号表（勤務時間帯）'!$C$5:$Y$46,23,FALSE)) -> 11 | AG36: =IF(AG34="","",VLOOKUP(AG34,'【記載例】シフト記号表（勤務時間帯）'!$C$5:$Y$46,23,FALSE)) -> - | AH36: =IF(AH34="","",VLOOKUP(AH34,'【記載例】シフト記号表（勤務時間帯）'!$C$5:$Y$46,23,FALSE)) -> - | AI36: =IF(AI34="","",VLOOKUP(AI34,'【記載例】シフト記号表（勤務時間帯）'!$C$5:$Y$46,23,FALSE)) -> - | AJ36: =IF(AJ34="","",VLOOKUP(AJ34,'【記載例】シフト記号表（勤務時間帯）'!$C$5:$Y$46,23,FALSE)) -> - | AK36: =IF(AK34="","",VLOOKUP(AK34,'【記載例】シフト記号表（勤務時間帯）'!$C$5:$Y$46,23,FALSE)) -> - | AL36: =IF(AL34="","",VLOOKUP(AL34,'【記載例】シフト記号表（勤務時間帯）'!$C$5:$Y$46,23,FALSE)) -> - | AM36: =IF(AM34="","",VLOOKUP(AM34,'【記載例】シフト記号表（勤務時間帯）'!$C$5:$Y$46,23,FALSE)) -> - | AN36: =IF(AN34="","",VLOOKUP(AN34,'【記載例】シフト記号表（勤務時間帯）'!$C$5:$Y$46,23,FALSE)) -> 11 | AO36: =IF(AO34="","",VLOOKUP(AO34,'【記載例】シフト記号表（勤務時間帯）'!$C$5:$Y$46,23,FALSE)) -> - | AP36: =IF(AP34="","",VLOOKUP(AP34,'【記載例】シフト記号表（勤務時間帯）'!$C$5:$Y$46,23,FALSE)) -> - | AQ36: =IF(AQ34="","",VLOOKUP(AQ34,'【記載例】シフト記号表（勤務時間帯）'!$C$5:$Y$46,23,FALSE)) -> - | AR36: =IF(AR34="","",VLOOKUP(AR34,'【記載例】シフト記号表（勤務時間帯）'!$C$5:$Y$46,23,FALSE)) -> - | AS36: =IF(AS34="","",VLOOKUP(AS34,'【記載例】シフト記号表（勤務時間帯）'!$C$5:$Y$46,23,FALSE)) -> - | AT36: =IF(AT34="","",VLOOKUP(AT34,'【記載例】シフト記号表（勤務時間帯）'!$C$5:$Y$46,23,FALSE)) -> - | AU36: =IF(AU34="","",VLOOKUP(AU34,'【記載例】シフト記号表（勤務時間帯）'!$C$5:$Y$46,23,FALSE)) -> - | AV36: =IF(AV34="","",VLOOKUP(AV34,'【記載例】シフト記号表（勤務時間帯）'!$C$5:$Y$46,23,FALSE)) ->  | AW36: =IF(AW34="","",VLOOKUP(AW34,'【記載例】シフト記号表（勤務時間帯）'!$C$5:$Y$46,23,FALSE)) ->  | AX36: =IF(AX34="","",VLOOKUP(AX34,'【記載例】シフト記号表（勤務時間帯）'!$C$5:$Y$46,23,FALSE)) ->  | AY36: =IF($BB$3="計画",SUM(T36:AU36),IF($BB$3="実績",SUM(T36:AX36),"")) -> 44 | BA36: =IF($BB$3="計画",AY36/4,IF($BB$3="実績",(AY36/($BB$7/7)),"")) -> 11
G37: A | L37: ○○ F子 | O37: シフト記号 | T37: 休 | U37: a | V37: i | W37: j | X37: 休 | Y37: a | Z37: a | AB37: a | AC37: a | AD37: 休 | AE37: i | AF37: j | AG37: a | AH37: 休 | AI37: 休 | AJ37: i | AK37: j | AL37: 休 | AM37: a | AN37: a | AO37: c | AP37: 休 | AQ37: a | AR37: b | AS37: i | AT37: j | AU37: 休
B38: =B35+1 -> 7 | C38: 看護職員 | H38: 准看護師 | O38: 日中の勤務時間数 | T38: =IF(T37="","",VLOOKUP(T37,'【記載例】シフト記号表（勤務時間帯）'!$C$5:$W$46,21,FALSE)) -> - | U38: =IF(U37="","",VLOOKUP(U37,'【記載例】シフト記号表（勤務時間帯）'!$C$5:$W$46,21,FALSE)) -> 8 | V38: =IF(V37="","",VLOOKUP(V37,'【記載例】シフト記号表（勤務時間帯）'!$C$5:$W$46,21,FALSE)) -> 3 | W38: =IF(W37="","",VLOOKUP(W37,'【記載例】シフト記号表（勤務時間帯）'!$C$5:$W$46,21,FALSE)) -> 5 | X38: =IF(X37="","",VLOOKUP(X37,'【記載例】シフト記号表（勤務時間帯）'!$C$5:$W$46,21,FALSE)) -> - | Y38: =IF(Y37="","",VLOOKUP(Y37,'【記載例】シフト記号表（勤務時間帯）'!$C$5:$W$46,21,FALSE)) -> 8 | Z38: =IF(Z37="","",VLOOKUP(Z37,'【記載例】シフト記号表（勤務時間帯）'!$C$5:$W$46,21,FALSE)) -> 8 | AA38: =IF(AA37="","",VLOOKUP(AA37,'【記載例】シフト記号表（勤務時間帯）'!$C$5:$W$46,21,FALSE)) ->  | AB38: =IF(AB37="","",VLOOKUP(AB37,'【記載例】シフト記号表（勤務時間帯）'!$C$5:$W$46,21,FALSE)) -> 8 | AC38: =IF(AC37="","",VLOOKUP(AC37,'【記載例】シフト記号表（勤務時間帯）'!$C$5:$W$46,21,FALSE)) -> 8 | AD38: =IF(AD37="","",VLOOKUP(AD37,'【記載例】シフト記号表（勤務時間帯）'!$C$5:$W$46,21,FALSE)) -> - | AE38: =IF(AE37="","",VLOOKUP(AE37,'【記載例】シフト記号表（勤務時間帯）'!$C$5:$W$46,21,FALSE)) -> 3 | AF38: =IF(AF37="","",VLOOKUP(AF37,'【記載例】シフト記号表（勤務時間帯）'!$C$5:$W$46,21,FALSE)) -> 5 | AG38: =IF(AG37="","",VLOOKUP(AG37,'【記載例】シフト記号表（勤務時間帯）'!$C$5:$W$46,21,FALSE)) -> 8 | AH38: =IF(AH37="","",VLOOKUP(AH37,'【記載例】シフト記号表（勤務時間帯）'!$C$5:$W$46,21,FALSE)) -> - | AI38: =IF(AI37="","",VLOOKUP(AI37,'【記載例】シフト記号表（勤務時間帯）'!$C$5:$W$46,21,FALSE)) -> - | AJ38: =IF(AJ37="","",VLOOKUP(AJ37,'【記載例】シフト記号表（勤務時間帯）'!$C$5:$W$46,21,FALSE)) -> 3 | AK38: =IF(AK37="","",VLOOKUP(AK37,'【記載例】シフト記号表（勤務時間帯）'!$C$5:$W$46,21,FALSE)) -> 5 | AL38: =IF(AL37="","",VLOOKUP(AL37,'【記載例】シフト記号表（勤務時間帯）'!$C$5:$W$46,21,FALSE)) -> - | AM38: =IF(AM37="","",VLOOKUP(AM37,'【記載例】シフト記号表（勤務時間帯）'!$C$5:$W$46,21,FALSE)) -> 8 | AN38: =IF(AN37="","",VLOOKUP(AN37,'【記載例】シフト記号表（勤務時間帯）'!$C$5:$W$46,21,FALSE)) -> 8 | AO38: =IF(AO37="","",VLOOKUP(AO37,'【記載例】シフト記号表（勤務時間帯）'!$C$5:$W$46,21,FALSE)) -> 8 | AP38: =IF(AP37="","",VLOOKUP(AP37,'【記載例】シフト記号表（勤務時間帯）'!$C$5:$W$46,21,FALSE)) -> - | AQ38: =IF(AQ37="","",VLOOKUP(AQ37,'【記載例】シフト記号表（勤務時間帯）'!$C$5:$W$46,21,FALSE)) -> 8 | AR38: =IF(AR37="","",VLOOKUP(AR37,'【記載例】シフト記号表（勤務時間帯）'!$C$5:$W$46,21,FALSE)) -> 8 | AS38: =IF(AS37="","",VLOOKUP(AS37,'【記載例】シフト記号表（勤務時間帯）'!$C$5:$W$46,21,FALSE)) -> 3 | AT38: =IF(AT37="","",VLOOKUP(AT37,'【記載例】シフト記号表（勤務時間帯）'!$C$5:$W$46,21,FALSE)) -> 5 | AU38: =IF(AU37="","",VLOOKUP(AU37,'【記載例】シフト記号表（勤務時間帯）'!$C$5:$W$46,21,FALSE)) -> - | AV38: =IF(AV37="","",VLOOKUP(AV37,'【記載例】シフト記号表（勤務時間帯）'!$C$5:$W$46,21,FALSE)) ->  | AW38: =IF(AW37="","",VLOOKUP(AW37,'【記載例】シフト記号表（勤務時間帯）'!$C$5:$W$46,21,FALSE)) ->  | AX38: =IF(AX37="","",VLOOKUP(AX37,'【記載例】シフト記号表（勤務時間帯）'!$C$5:$W$46,21,FALSE)) ->  | AY38: =IF($BB$3="計画",SUM(T38:AU38),IF($BB$3="実績",SUM(T38:AX38),"")) -> 120 | BA38: =IF($BB$3="計画",AY38/4,IF($BB$3="実績",(AY38/($BB$7/7)),"")) -> 30
F39: =C38 -> 看護職員 | O39: 夜間・深夜の勤務時間数 | T39: =IF(T37="","",VLOOKUP(T37,'【記載例】シフト記号表（勤務時間帯）'!$C$5:$Y$46,23,FALSE)) -> - | U39: =IF(U37="","",VLOOKUP(U37,'【記載例】シフト記号表（勤務時間帯）'!$C$5:$Y$46,23,FALSE)) -> - | V39: =IF(V37="","",VLOOKUP(V37,'【記載例】シフト記号表（勤務時間帯）'!$C$5:$Y$46,23,FALSE)) -> 11 | W39: =IF(W37="","",VLOOKUP(W37,'【記載例】シフト記号表（勤務時間帯）'!$C$5:$Y$46,23,FALSE)) -> - | X39: =IF(X37="","",VLOOKUP(X37,'【記載例】シフト記号表（勤務時間帯）'!$C$5:$Y$46,23,FALSE)) -> - | Y39: =IF(Y37="","",VLOOKUP(Y37,'【記載例】シフト記号表（勤務時間帯）'!$C$5:$Y$46,23,FALSE)) -> - | Z39: =IF(Z37="","",VLOOKUP(Z37,'【記載例】シフト記号表（勤務時間帯）'!$C$5:$Y$46,23,FALSE)) -> - | AA39: =IF(AA37="","",VLOOKUP(AA37,'【記載例】シフト記号表（勤務時間帯）'!$C$5:$Y$46,23,FALSE)) ->  | AB39: =IF(AB37="","",VLOOKUP(AB37,'【記載例】シフト記号表（勤務時間帯）'!$C$5:$Y$46,23,FALSE)) -> - | AC39: =IF(AC37="","",VLOOKUP(AC37,'【記載例】シフト記号表（勤務時間帯）'!$C$5:$Y$46,23,FALSE)) -> - | AD39: =IF(AD37="","",VLOOKUP(AD37,'【記載例】シフト記号表（勤務時間帯）'!$C$5:$Y$46,23,FALSE)) -> - | AE39: =IF(AE37="","",VLOOKUP(AE37,'【記載例】シフト記号表（勤務時間帯）'!$C$5:$Y$46,23,FALSE)) -> 11 | AF39: =IF(AF37="","",VLOOKUP(AF37,'【記載例】シフト記号表（勤務時間帯）'!$C$5:$Y$46,23,FALSE)) -> - | AG39: =IF(AG37="","",VLOOKUP(AG37,'【記載例】シフト記号表（勤務時間帯）'!$C$5:$Y$46,23,FALSE)) -> - | AH39: =IF(AH37="","",VLOOKUP(AH37,'【記載例】シフト記号表（勤務時間帯）'!$C$5:$Y$46,23,FALSE)) -> - | AI39: =IF(AI37="","",VLOOKUP(AI37,'【記載例】シフト記号表（勤務時間帯）'!$C$5:$Y$46,23,FALSE)) -> - | AJ39: =IF(AJ37="","",VLOOKUP(AJ37,'【記載例】シフト記号表（勤務時間帯）'!$C$5:$Y$46,23,FALSE)) -> 11 | AK39: =IF(AK37="","",VLOOKUP(AK37,'【記載例】シフト記号表（勤務時間帯）'!$C$5:$Y$46,23,FALSE)) -> - | AL39: =IF(AL37="","",VLOOKUP(AL37,'【記載例】シフト記号表（勤務時間帯）'!$C$5:$Y$46,23,FALSE)) -> - | AM39: =IF(AM37="","",VLOOKUP(AM37,'【記載例】シフト記号表（勤務時間帯）'!$C$5:$Y$46,23,FALSE)) -> - | AN39: =IF(AN37="","",VLOOKUP(AN37,'【記載例】シフト記号表（勤務時間帯）'!$C$5:$Y$46,23,FALSE)) -> - | AO39: =IF(AO37="","",VLOOKUP(AO37,'【記載例】シフト記号表（勤務時間帯）'!$C$5:$Y$46,23,FALSE)) -> - | AP39: =IF(AP37="","",VLOOKUP(AP37,'【記載例】シフト記号表（勤務時間帯）'!$C$5:$Y$46,23,FALSE)) -> - | AQ39: =IF(AQ37="","",VLOOKUP(AQ37,'【記載例】シフト記号表（勤務時間帯）'!$C$5:$Y$46,23,FALSE)) -> - | AR39: =IF(AR37="","",VLOOKUP(AR37,'【記載例】シフト記号表（勤務時間帯）'!$C$5:$Y$46,23,FALSE)) -> - | AS39: =IF(AS37="","",VLOOKUP(AS37,'【記載例】シフト記号表（勤務時間帯）'!$C$5:$Y$46,23,FALSE)) -> 11 | AT39: =IF(AT37="","",VLOOKUP(AT37,'【記載例】シフト記号表（勤務時間帯）'!$C$5:$Y$46,23,FALSE)) -> - | AU39: =IF(AU37="","",VLOOKUP(AU37,'【記載例】シフト記号表（勤務時間帯）'!$C$5:$Y$46,23,FALSE)) -> - | AV39: =IF(AV37="","",VLOOKUP(AV37,'【記載例】シフト記号表（勤務時間帯）'!$C$5:$Y$46,23,FALSE)) ->  | AW39: =IF(AW37="","",VLOOKUP(AW37,'【記載例】シフト記号表（勤務時間帯）'!$C$5:$Y$46,23,FALSE)) ->  | AX39: =IF(AX37="","",VLOOKUP(AX37,'【記載例】シフト記号表（勤務時間帯）'!$C$5:$Y$46,23,FALSE)) ->  | AY39: =IF($BB$3="計画",SUM(T39:AU39),IF($BB$3="実績",SUM(T39:AX39),"")) -> 44 | BA39: =IF($BB$3="計画",AY39/4,IF($BB$3="実績",(AY39/($BB$7/7)),"")) -> 11
G40: A | L40: ○○ G太 | O40: シフト記号 | T40: a | U40: c | V40: b | W40: i | X40: j | Y40: 休 | Z40: c | AA40: a | AB40: c | AC40: c | AD40: i | AE40: j | AF40: 休 | AG40: a | AH40: i | AI40: j | AJ40: 休 | AK40: a | AL40: a | AM40: 休 | AN40: 休 | AO40: i | AP40: j | AQ40: 休 | AR40: a | AS40: 休 | AT40: i | AU40: j
B41: =B38+1 -> 8 | C41: 看護職員 | H41: 准看護師 | O41: 日中の勤務時間数 | T41: =IF(T40="","",VLOOKUP(T40,'【記載例】シフト記号表（勤務時間帯）'!$C$5:$W$46,21,FALSE)) -> 8 | U41: =IF(U40="","",VLOOKUP(U40,'【記載例】シフト記号表（勤務時間帯）'!$C$5:$W$46,21,FALSE)) -> 8 | V41: =IF(V40="","",VLOOKUP(V40,'【記載例】シフト記号表（勤務時間帯）'!$C$5:$W$46,21,FALSE)) -> 8 | W41: =IF(W40="","",VLOOKUP(W40,'【記載例】シフト記号表（勤務時間帯）'!$C$5:$W$46,21,FALSE)) -> 3 | X41: =IF(X40="","",VLOOKUP(X40,'【記載例】シフト記号表（勤務時間帯）'!$C$5:$W$46,21,FALSE)) -> 5 | Y41: =IF(Y40="","",VLOOKUP(Y40,'【記載例】シフト記号表（勤務時間帯）'!$C$5:$W$46,21,FALSE)) -> - | Z41: =IF(Z40="","",VLOOKUP(Z40,'【記載例】シフト記号表（勤務時間帯）'!$C$5:$W$46,21,FALSE)) -> 8 | AA41: =IF(AA40="","",VLOOKUP(AA40,'【記載例】シフト記号表（勤務時間帯）'!$C$5:$W$46,21,FALSE)) -> 8 | AB41: =IF(AB40="","",VLOOKUP(AB40,'【記載例】シフト記号表（勤務時間帯）'!$C$5:$W$46,21,FALSE)) -> 8 | AC41: =IF(AC40="","",VLOOKUP(AC40,'【記載例】シフト記号表（勤務時間帯）'!$C$5:$W$46,21,FALSE)) -> 8 | AD41: =IF(AD40="","",VLOOKUP(AD40,'【記載例】シフト記号表（勤務時間帯）'!$C$5:$W$46,21,FALSE)) -> 3 | AE41: =IF(AE40="","",VLOOKUP(AE40,'【記載例】シフト記号表（勤務時間帯）'!$C$5:$W$46,21,FALSE)) -> 5 | AF41: =IF(AF40="","",VLOOKUP(AF40,'【記載例】シフト記号表（勤務時間帯）'!$C$5:$W$46,21,FALSE)) -> - | AG41: =IF(AG40="","",VLOOKUP(AG40,'【記載例】シフト記号表（勤務時間帯）'!$C$5:$W$46,21,FALSE)) -> 8 | AH41: =IF(AH40="","",VLOOKUP(AH40,'【記載例】シフト記号表（勤務時間帯）'!$C$5:$W$46,21,FALSE)) -> 3 | AI41: =IF(AI40="","",VLOOKUP(AI40,'【記載例】シフト記号表（勤務時間帯）'!$C$5:$W$46,21,FALSE)) -> 5 | AJ41: =IF(AJ40="","",VLOOKUP(AJ40,'【記載例】シフト記号表（勤務時間帯）'!$C$5:$W$46,21,FALSE)) -> - | AK41: =IF(AK40="","",VLOOKUP(AK40,'【記載例】シフト記号表（勤務時間帯）'!$C$5:$W$46,21,FALSE)) -> 8 | AL41: =IF(AL40="","",VLOOKUP(AL40,'【記載例】シフト記号表（勤務時間帯）'!$C$5:$W$46,21,FALSE)) -> 8 | AM41: =IF(AM40="","",VLOOKUP(AM40,'【記載例】シフト記号表（勤務時間帯）'!$C$5:$W$46,21,FALSE)) -> - | AN41: =IF(AN40="","",VLOOKUP(AN40,'【記載例】シフト記号表（勤務時間帯）'!$C$5:$W$46,21,FALSE)) -> - | AO41: =IF(AO40="","",VLOOKUP(AO40,'【記載例】シフト記号表（勤務時間帯）'!$C$5:$W$46,21,FALSE)) -> 3 | AP41: =IF(AP40="","",VLOOKUP(AP40,'【記載例】シフト記号表（勤務時間帯）'!$C$5:$W$46,21,FALSE)) -> 5 | AQ41: =IF(AQ40="","",VLOOKUP(AQ40,'【記載例】シフト記号表（勤務時間帯）'!$C$5:$W$46,21,FALSE)) -> - | AR41: =IF(AR40="","",VLOOKUP(AR40,'【記載例】シフト記号表（勤務時間帯）'!$C$5:$W$46,21,FALSE)) -> 8 | AS41: =IF(AS40="","",VLOOKUP(AS40,'【記載例】シフト記号表（勤務時間帯）'!$C$5:$W$46,21,FALSE)) -> - | AT41: =IF(AT40="","",VLOOKUP(AT40,'【記載例】シフト記号表（勤務時間帯）'!$C$5:$W$46,21,FALSE)) -> 3 | AU41: =IF(AU40="","",VLOOKUP(AU40,'【記載例】シフト記号表（勤務時間帯）'!$C$5:$W$46,21,FALSE)) -> 5 | AV41: =IF(AV40="","",VLOOKUP(AV40,'【記載例】シフト記号表（勤務時間帯）'!$C$5:$W$46,21,FALSE)) ->  | AW41: =IF(AW40="","",VLOOKUP(AW40,'【記載例】シフト記号表（勤務時間帯）'!$C$5:$W$46,21,FALSE)) ->  | AX41: =IF(AX40="","",VLOOKUP(AX40,'【記載例】シフト記号表（勤務時間帯）'!$C$5:$W$46,21,FALSE)) ->  | AY41: =IF($BB$3="計画",SUM(T41:AU41),IF($BB$3="実績",SUM(T41:AX41),"")) -> 128 | BA41: =IF($BB$3="計画",AY41/4,IF($BB$3="実績",(AY41/($BB$7/7)),"")) -> 32
F42: =C41 -> 看護職員 | O42: 夜間・深夜の勤務時間数 | T42: =IF(T40="","",VLOOKUP(T40,'【記載例】シフト記号表（勤務時間帯）'!$C$5:$Y$46,23,FALSE)) -> - | U42: =IF(U40="","",VLOOKUP(U40,'【記載例】シフト記号表（勤務時間帯）'!$C$5:$Y$46,23,FALSE)) -> - | V42: =IF(V40="","",VLOOKUP(V40,'【記載例】シフト記号表（勤務時間帯）'!$C$5:$Y$46,23,FALSE)) -> - | W42: =IF(W40="","",VLOOKUP(W40,'【記載例】シフト記号表（勤務時間帯）'!$C$5:$Y$46,23,FALSE)) -> 11 | X42: =IF(X40="","",VLOOKUP(X40,'【記載例】シフト記号表（勤務時間帯）'!$C$5:$Y$46,23,FALSE)) -> - | Y42: =IF(Y40="","",VLOOKUP(Y40,'【記載例】シフト記号表（勤務時間帯）'!$C$5:$Y$46,23,FALSE)) -> - | Z42: =IF(Z40="","",VLOOKUP(Z40,'【記載例】シフト記号表（勤務時間帯）'!$C$5:$Y$46,23,FALSE)) -> - | AA42: =IF(AA40="","",VLOOKUP(AA40,'【記載例】シフト記号表（勤務時間帯）'!$C$5:$Y$46,23,FALSE)) -> - | AB42: =IF(AB40="","",VLOOKUP(AB40,'【記載例】シフト記号表（勤務時間帯）'!$C$5:$Y$46,23,FALSE)) -> - | AC42: =IF(AC40="","",VLOOKUP(AC40,'【記載例】シフト記号表（勤務時間帯）'!$C$5:$Y$46,23,FALSE)) -> - | AD42: =IF(AD40="","",VLOOKUP(AD40,'【記載例】シフト記号表（勤務時間帯）'!$C$5:$Y$46,23,FALSE)) -> 11 | AE42: =IF(AE40="","",VLOOKUP(AE40,'【記載例】シフト記号表（勤務時間帯）'!$C$5:$Y$46,23,FALSE)) -> - | AF42: =IF(AF40="","",VLOOKUP(AF40,'【記載例】シフト記号表（勤務時間帯）'!$C$5:$Y$46,23,FALSE)) -> - | AG42: =IF(AG40="","",VLOOKUP(AG40,'【記載例】シフト記号表（勤務時間帯）'!$C$5:$Y$46,23,FALSE)) -> - | AH42: =IF(AH40="","",VLOOKUP(AH40,'【記載例】シフト記号表（勤務時間帯）'!$C$5:$Y$46,23,FALSE)) -> 11 | AI42: =IF(AI40="","",VLOOKUP(AI40,'【記載例】シフト記号表（勤務時間帯）'!$C$5:$Y$46,23,FALSE)) -> - | AJ42: =IF(AJ40="","",VLOOKUP(AJ40,'【記載例】シフト記号表（勤務時間帯）'!$C$5:$Y$46,23,FALSE)) -> - | AK42: =IF(AK40="","",VLOOKUP(AK40,'【記載例】シフト記号表（勤務時間帯）'!$C$5:$Y$46,23,FALSE)) -> - | AL42: =IF(AL40="","",VLOOKUP(AL40,'【記載例】シフト記号表（勤務時間帯）'!$C$5:$Y$46,23,FALSE)) -> - | AM42: =IF(AM40="","",VLOOKUP(AM40,'【記載例】シフト記号表（勤務時間帯）'!$C$5:$Y$46,23,FALSE)) -> - | AN42: =IF(AN40="","",VLOOKUP(AN40,'【記載例】シフト記号表（勤務時間帯）'!$C$5:$Y$46,23,FALSE)) -> - | AO42: =IF(AO40="","",VLOOKUP(AO40,'【記載例】シフト記号表（勤務時間帯）'!$C$5:$Y$46,23,FALSE)) -> 11 | AP42: =IF(AP40="","",VLOOKUP(AP40,'【記載例】シフト記号表（勤務時間帯）'!$C$5:$Y$46,23,FALSE)) -> - | AQ42: =IF(AQ40="","",VLOOKUP(AQ40,'【記載例】シフト記号表（勤務時間帯）'!$C$5:$Y$46,23,FALSE)) -> - | AR42: =IF(AR40="","",VLOOKUP(AR40,'【記載例】シフト記号表（勤務時間帯）'!$C$5:$Y$46,23,FALSE)) -> - | AS42: =IF(AS40="","",VLOOKUP(AS40,'【記載例】シフト記号表（勤務時間帯）'!$C$5:$Y$46,23,FALSE)) -> - | AT42: =IF(AT40="","",VLOOKUP(AT40,'【記載例】シフト記号表（勤務時間帯）'!$C$5:$Y$46,23,FALSE)) -> 11 | AU42: =IF(AU40="","",VLOOKUP(AU40,'【記載例】シフト記号表（勤務時間帯）'!$C$5:$Y$46,23,FALSE)) -> - | AV42: =IF(AV40="","",VLOOKUP(AV40,'【記載例】シフト記号表（勤務時間帯）'!$C$5:$Y$46,23,FALSE)) ->  | AW42: =IF(AW40="","",VLOOKUP(AW40,'【記載例】シフト記号表（勤務時間帯）'!$C$5:$Y$46,23,FALSE)) ->  | AX42: =IF(AX40="","",VLOOKUP(AX40,'【記載例】シフト記号表（勤務時間帯）'!$C$5:$Y$46,23,FALSE)) ->  | AY42: =IF($BB$3="計画",SUM(T42:AU42),IF($BB$3="実績",SUM(T42:AX42),"")) -> 55 | BA42: =IF($BB$3="計画",AY42/4,IF($BB$3="実績",(AY42/($BB$7/7)),"")) -> 13.75
G43: A | L43: ○○ H美 | O43: シフト記号 | T43: j | U43: 休 | V43: c | W43: c | X43: 休 | Y43: 休 | Z43: i | AA43: j | AB43: 休 | AC43: 休 | AD43: a | AE43: c | AF43: c | AG43: i | AH43: j | AI43: c | AJ43: 休 | AK43: b | AL43: i | AM43: j | AN43: 休 | AO43: a | AP43: i | AQ43: j | AR43: 休 | AS43: a | AT43: b | AU43: i
B44: =B41+1 -> 9 | C44: 看護職員 | H44: 准看護師 | O44: 日中の勤務時間数 | T44: =IF(T43="","",VLOOKUP(T43,'【記載例】シフト記号表（勤務時間帯）'!$C$5:$W$46,21,FALSE)) -> 5 | U44: =IF(U43="","",VLOOKUP(U43,'【記載例】シフト記号表（勤務時間帯）'!$C$5:$W$46,21,FALSE)) -> - | V44: =IF(V43="","",VLOOKUP(V43,'【記載例】シフト記号表（勤務時間帯）'!$C$5:$W$46,21,FALSE)) -> 8 | W44: =IF(W43="","",VLOOKUP(W43,'【記載例】シフト記号表（勤務時間帯）'!$C$5:$W$46,21,FALSE)) -> 8 | X44: =IF(X43="","",VLOOKUP(X43,'【記載例】シフト記号表（勤務時間帯）'!$C$5:$W$46,21,FALSE)) -> - | Y44: =IF(Y43="","",VLOOKUP(Y43,'【記載例】シフト記号表（勤務時間帯）'!$C$5:$W$46,21,FALSE)) -> - | Z44: =IF(Z43="","",VLOOKUP(Z43,'【記載例】シフト記号表（勤務時間帯）'!$C$5:$W$46,21,FALSE)) -> 3 | AA44: =IF(AA43="","",VLOOKUP(AA43,'【記載例】シフト記号表（勤務時間帯）'!$C$5:$W$46,21,FALSE)) -> 5 | AB44: =IF(AB43="","",VLOOKUP(AB43,'【記載例】シフト記号表（勤務時間帯）'!$C$5:$W$46,21,FALSE)) -> - | AC44: =IF(AC43="","",VLOOKUP(AC43,'【記載例】シフト記号表（勤務時間帯）'!$C$5:$W$46,21,FALSE)) -> - | AD44: =IF(AD43="","",VLOOKUP(AD43,'【記載例】シフト記号表（勤務時間帯）'!$C$5:$W$46,21,FALSE)) -> 8 | AE44: =IF(AE43="","",VLOOKUP(AE43,'【記載例】シフト記号表（勤務時間帯）'!$C$5:$W$46,21,FALSE)) -> 8 | AF44: =IF(AF43="","",VLOOKUP(AF43,'【記載例】シフト記号表（勤務時間帯）'!$C$5:$W$46,21,FALSE)) -> 8 | AG44: =IF(AG43="","",VLOOKUP(AG43,'【記載例】シフト記号表（勤務時間帯）'!$C$5:$W$46,21,FALSE)) -> 3 | AH44: =IF(AH43="","",VLOOKUP(AH43,'【記載例】シフト記号表（勤務時間帯）'!$C$5:$W$46,21,FALSE)) -> 5 | AI44: =IF(AI43="","",VLOOKUP(AI43,'【記載例】シフト記号表（勤務時間帯）'!$C$5:$W$46,21,FALSE)) -> 8 | AJ44: =IF(AJ43="","",VLOOKUP(AJ43,'【記載例】シフト記号表（勤務時間帯）'!$C$5:$W$46,21,FALSE)) -> - | AK44: =IF(AK43="","",VLOOKUP(AK43,'【記載例】シフト記号表（勤務時間帯）'!$C$5:$W$46,21,FALSE)) -> 8 | AL44: =IF(AL43="","",VLOOKUP(AL43,'【記載例】シフト記号表（勤務時間帯）'!$C$5:$W$46,21,FALSE)) -> 3 | AM44: =IF(AM43="","",VLOOKUP(AM43,'【記載例】シフト記号表（勤務時間帯）'!$C$5:$W$46,21,FALSE)) -> 5 | AN44: =IF(AN43="","",VLOOKUP(AN43,'【記載例】シフト記号表（勤務時間帯）'!$C$5:$W$46,21,FALSE)) -> - | AO44: =IF(AO43="","",VLOOKUP(AO43,'【記載例】シフト記号表（勤務時間帯）'!$C$5:$W$46,21,FALSE)) -> 8 | AP44: =IF(AP43="","",VLOOKUP(AP43,'【記載例】シフト記号表（勤務時間帯）'!$C$5:$W$46,21,FALSE)) -> 3 | AQ44: =IF(AQ43="","",VLOOKUP(AQ43,'【記載例】シフト記号表（勤務時間帯）'!$C$5:$W$46,21,FALSE)) -> 5 | AR44: =IF(AR43="","",VLOOKUP(AR43,'【記載例】シフト記号表（勤務時間帯）'!$C$5:$W$46,21,FALSE)) -> - | AS44: =IF(AS43="","",VLOOKUP(AS43,'【記載例】シフト記号表（勤務時間帯）'!$C$5:$W$46,21,FALSE)) -> 8 | AT44: =IF(AT43="","",VLOOKUP(AT43,'【記載例】シフト記号表（勤務時間帯）'!$C$5:$W$46,21,FALSE)) -> 8 | AU44: =IF(AU43="","",VLOOKUP(AU43,'【記載例】シフト記号表（勤務時間帯）'!$C$5:$W$46,21,FALSE)) -> 3 | AV44: =IF(AV43="","",VLOOKUP(AV43,'【記載例】シフト記号表（勤務時間帯）'!$C$5:$W$46,21,FALSE)) ->  | AW44: =IF(AW43="","",VLOOKUP(AW43,'【記載例】シフト記号表（勤務時間帯）'!$C$5:$W$46,21,FALSE)) ->  | AX44: =IF(AX43="","",VLOOKUP(AX43,'【記載例】シフト記号表（勤務時間帯）'!$C$5:$W$46,21,FALSE)) ->  | AY44: =IF($BB$3="計画",SUM(T44:AU44),IF($BB$3="実績",SUM(T44:AX44),"")) -> 120 | BA44: =IF($BB$3="計画",AY44/4,IF($BB$3="実績",(AY44/($BB$7/7)),"")) -> 30
F45: =C44 -> 看護職員 | O45: 夜間・深夜の勤務時間数 | T45: =IF(T43="","",VLOOKUP(T43,'【記載例】シフト記号表（勤務時間帯）'!$C$5:$Y$46,23,FALSE)) -> - | U45: =IF(U43="","",VLOOKUP(U43,'【記載例】シフト記号表（勤務時間帯）'!$C$5:$Y$46,23,FALSE)) -> - | V45: =IF(V43="","",VLOOKUP(V43,'【記載例】シフト記号表（勤務時間帯）'!$C$5:$Y$46,23,FALSE)) -> - | W45: =IF(W43="","",VLOOKUP(W43,'【記載例】シフト記号表（勤務時間帯）'!$C$5:$Y$46,23,FALSE)) -> - | X45: =IF(X43="","",VLOOKUP(X43,'【記載例】シフト記号表（勤務時間帯）'!$C$5:$Y$46,23,FALSE)) -> - | Y45: =IF(Y43="","",VLOOKUP(Y43,'【記載例】シフト記号表（勤務時間帯）'!$C$5:$Y$46,23,FALSE)) -> - | Z45: =IF(Z43="","",VLOOKUP(Z43,'【記載例】シフト記号表（勤務時間帯）'!$C$5:$Y$46,23,FALSE)) -> 11 | AA45: =IF(AA43="","",VLOOKUP(AA43,'【記載例】シフト記号表（勤務時間帯）'!$C$5:$Y$46,23,FALSE)) -> - | AB45: =IF(AB43="","",VLOOKUP(AB43,'【記載例】シフト記号表（勤務時間帯）'!$C$5:$Y$46,23,FALSE)) -> - | AC45: =IF(AC43="","",VLOOKUP(AC43,'【記載例】シフト記号表（勤務時間帯）'!$C$5:$Y$46,23,FALSE)) -> - | AD45: =IF(AD43="","",VLOOKUP(AD43,'【記載例】シフト記号表（勤務時間帯）'!$C$5:$Y$46,23,FALSE)) -> - | AE45: =IF(AE43="","",VLOOKUP(AE43,'【記載例】シフト記号表（勤務時間帯）'!$C$5:$Y$46,23,FALSE)) -> - | AF45: =IF(AF43="","",VLOOKUP(AF43,'【記載例】シフト記号表（勤務時間帯）'!$C$5:$Y$46,23,FALSE)) -> - | AG45: =IF(AG43="","",VLOOKUP(AG43,'【記載例】シフト記号表（勤務時間帯）'!$C$5:$Y$46,23,FALSE)) -> 11 | AH45: =IF(AH43="","",VLOOKUP(AH43,'【記載例】シフト記号表（勤務時間帯）'!$C$5:$Y$46,23,FALSE)) -> - | AI45: =IF(AI43="","",VLOOKUP(AI43,'【記載例】シフト記号表（勤務時間帯）'!$C$5:$Y$46,23,FALSE)) -> - | AJ45: =IF(AJ43="","",VLOOKUP(AJ43,'【記載例】シフト記号表（勤務時間帯）'!$C$5:$Y$46,23,FALSE)) -> - | AK45: =IF(AK43="","",VLOOKUP(AK43,'【記載例】シフト記号表（勤務時間帯）'!$C$5:$Y$46,23,FALSE)) -> - | AL45: =IF(AL43="","",VLOOKUP(AL43,'【記載例】シフト記号表（勤務時間帯）'!$C$5:$Y$46,23,FALSE)) -> 11 | AM45: =IF(AM43="","",VLOOKUP(AM43,'【記載例】シフト記号表（勤務時間帯）'!$C$5:$Y$46,23,FALSE)) -> - | AN45: =IF(AN43="","",VLOOKUP(AN43,'【記載例】シフト記号表（勤務時間帯）'!$C$5:$Y$46,23,FALSE)) -> - | AO45: =IF(AO43="","",VLOOKUP(AO43,'【記載例】シフト記号表（勤務時間帯）'!$C$5:$Y$46,23,FALSE)) -> - | AP45: =IF(AP43="","",VLOOKUP(AP43,'【記載例】シフト記号表（勤務時間帯）'!$C$5:$Y$46,23,FALSE)) -> 11 | AQ45: =IF(AQ43="","",VLOOKUP(AQ43,'【記載例】シフト記号表（勤務時間帯）'!$C$5:$Y$46,23,FALSE)) -> - | AR45: =IF(AR43="","",VLOOKUP(AR43,'【記載例】シフト記号表（勤務時間帯）'!$C$5:$Y$46,23,FALSE)) -> - | AS45: =IF(AS43="","",VLOOKUP(AS43,'【記載例】シフト記号表（勤務時間帯）'!$C$5:$Y$46,23,FALSE)) -> - | AT45: =IF(AT43="","",VLOOKUP(AT43,'【記載例】シフト記号表（勤務時間帯）'!$C$5:$Y$46,23,FALSE)) -> - | AU45: =IF(AU43="","",VLOOKUP(AU43,'【記載例】シフト記号表（勤務時間帯）'!$C$5:$Y$46,23,FALSE)) -> 11 | AV45: =IF(AV43="","",VLOOKUP(AV43,'【記載例】シフト記号表（勤務時間帯）'!$C$5:$Y$46,23,FALSE)) ->  | AW45: =IF(AW43="","",VLOOKUP(AW43,'【記載例】シフト記号表（勤務時間帯）'!$C$5:$Y$46,23,FALSE)) ->  | AX45: =IF(AX43="","",VLOOKUP(AX43,'【記載例】シフト記号表（勤務時間帯）'!$C$5:$Y$46,23,FALSE)) ->  | AY45: =IF($BB$3="計画",SUM(T45:AU45),IF($BB$3="実績",SUM(T45:AX45),"")) -> 55 | BA45: =IF($BB$3="計画",AY45/4,IF($BB$3="実績",(AY45/($BB$7/7)),"")) -> 13.75
G46: C | L46: ○○ J太郎 | O46: シフト記号 | T46: a | U46: 休 | V46: 休 | W46: 休 | X46: a | Y46: 休 | Z46: 休 | AA46: a | AB46: 休 | AC46: 休 | AD46: a | AE46: 休 | AF46: 休 | AG46: 休 | AH46: a | AI46: 休 | AJ46: a | AK46: a | AL46: 休 | AM46: 休 | AN46: 休 | AO46: a | AP46: 休 | AQ46: 休 | AR46: 休 | AS46: a | AT46: 休 | AU46: 休
B47: =B44+1 -> 10 | C47: 介護従業者 | H47: 介護福祉士 | O47: 日中の勤務時間数 | T47: =IF(T46="","",VLOOKUP(T46,'【記載例】シフト記号表（勤務時間帯）'!$C$5:$W$46,21,FALSE)) -> 8 | U47: =IF(U46="","",VLOOKUP(U46,'【記載例】シフト記号表（勤務時間帯）'!$C$5:$W$46,21,FALSE)) -> - | V47: =IF(V46="","",VLOOKUP(V46,'【記載例】シフト記号表（勤務時間帯）'!$C$5:$W$46,21,FALSE)) -> - | W47: =IF(W46="","",VLOOKUP(W46,'【記載例】シフト記号表（勤務時間帯）'!$C$5:$W$46,21,FALSE)) -> - | X47: =IF(X46="","",VLOOKUP(X46,'【記載例】シフト記号表（勤務時間帯）'!$C$5:$W$46,21,FALSE)) -> 8 | Y47: =IF(Y46="","",VLOOKUP(Y46,'【記載例】シフト記号表（勤務時間帯）'!$C$5:$W$46,21,FALSE)) -> - | Z47: =IF(Z46="","",VLOOKUP(Z46,'【記載例】シフト記号表（勤務時間帯）'!$C$5:$W$46,21,FALSE)) -> - | AA47: =IF(AA46="","",VLOOKUP(AA46,'【記載例】シフト記号表（勤務時間帯）'!$C$5:$W$46,21,FALSE)) -> 8 | AB47: =IF(AB46="","",VLOOKUP(AB46,'【記載例】シフト記号表（勤務時間帯）'!$C$5:$W$46,21,FALSE)) -> - | AC47: =IF(AC46="","",VLOOKUP(AC46,'【記載例】シフト記号表（勤務時間帯）'!$C$5:$W$46,21,FALSE)) -> - | AD47: =IF(AD46="","",VLOOKUP(AD46,'【記載例】シフト記号表（勤務時間帯）'!$C$5:$W$46,21,FALSE)) -> 8 | AE47: =IF(AE46="","",VLOOKUP(AE46,'【記載例】シフト記号表（勤務時間帯）'!$C$5:$W$46,21,FALSE)) -> - | AF47: =IF(AF46="","",VLOOKUP(AF46,'【記載例】シフト記号表（勤務時間帯）'!$C$5:$W$46,21,FALSE)) -> - | AG47: =IF(AG46="","",VLOOKUP(AG46,'【記載例】シフト記号表（勤務時間帯）'!$C$5:$W$46,21,FALSE)) -> - | AH47: =IF(AH46="","",VLOOKUP(AH46,'【記載例】シフト記号表（勤務時間帯）'!$C$5:$W$46,21,FALSE)) -> 8 | AI47: =IF(AI46="","",VLOOKUP(AI46,'【記載例】シフト記号表（勤務時間帯）'!$C$5:$W$46,21,FALSE)) -> - | AJ47: =IF(AJ46="","",VLOOKUP(AJ46,'【記載例】シフト記号表（勤務時間帯）'!$C$5:$W$46,21,FALSE)) -> 8 | AK47: =IF(AK46="","",VLOOKUP(AK46,'【記載例】シフト記号表（勤務時間帯）'!$C$5:$W$46,21,FALSE)) -> 8 | AL47: =IF(AL46="","",VLOOKUP(AL46,'【記載例】シフト記号表（勤務時間帯）'!$C$5:$W$46,21,FALSE)) -> - | AM47: =IF(AM46="","",VLOOKUP(AM46,'【記載例】シフト記号表（勤務時間帯）'!$C$5:$W$46,21,FALSE)) -> - | AN47: =IF(AN46="","",VLOOKUP(AN46,'【記載例】シフト記号表（勤務時間帯）'!$C$5:$W$46,21,FALSE)) -> - | AO47: =IF(AO46="","",VLOOKUP(AO46,'【記載例】シフト記号表（勤務時間帯）'!$C$5:$W$46,21,FALSE)) -> 8 | AP47: =IF(AP46="","",VLOOKUP(AP46,'【記載例】シフト記号表（勤務時間帯）'!$C$5:$W$46,21,FALSE)) -> - | AQ47: =IF(AQ46="","",VLOOKUP(AQ46,'【記載例】シフト記号表（勤務時間帯）'!$C$5:$W$46,21,FALSE)) -> - | AR47: =IF(AR46="","",VLOOKUP(AR46,'【記載例】シフト記号表（勤務時間帯）'!$C$5:$W$46,21,FALSE)) -> - | AS47: =IF(AS46="","",VLOOKUP(AS46,'【記載例】シフト記号表（勤務時間帯）'!$C$5:$W$46,21,FALSE)) -> 8 | AT47: =IF(AT46="","",VLOOKUP(AT46,'【記載例】シフト記号表（勤務時間帯）'!$C$5:$W$46,21,FALSE)) -> - | AU47: =IF(AU46="","",VLOOKUP(AU46,'【記載例】シフト記号表（勤務時間帯）'!$C$5:$W$46,21,FALSE)) -> - | AV47: =IF(AV46="","",VLOOKUP(AV46,'【記載例】シフト記号表（勤務時間帯）'!$C$5:$W$46,21,FALSE)) ->  | AW47: =IF(AW46="","",VLOOKUP(AW46,'【記載例】シフト記号表（勤務時間帯）'!$C$5:$W$46,21,FALSE)) ->  | AX47: =IF(AX46="","",VLOOKUP(AX46,'【記載例】シフト記号表（勤務時間帯）'!$C$5:$W$46,21,FALSE)) ->  | AY47: =IF($BB$3="計画",SUM(T47:AU47),IF($BB$3="実績",SUM(T47:AX47),"")) -> 72 | BA47: =IF($BB$3="計画",AY47/4,IF($BB$3="実績",(AY47/($BB$7/7)),"")) -> 18
F48: =C47 -> 介護従業者 | O48: 夜間・深夜の勤務時間数 | T48: =IF(T46="","",VLOOKUP(T46,'【記載例】シフト記号表（勤務時間帯）'!$C$5:$Y$46,23,FALSE)) -> - | U48: =IF(U46="","",VLOOKUP(U46,'【記載例】シフト記号表（勤務時間帯）'!$C$5:$Y$46,23,FALSE)) -> - | V48: =IF(V46="","",VLOOKUP(V46,'【記載例】シフト記号表（勤務時間帯）'!$C$5:$Y$46,23,FALSE)) -> - | W48: =IF(W46="","",VLOOKUP(W46,'【記載例】シフト記号表（勤務時間帯）'!$C$5:$Y$46,23,FALSE)) -> - | X48: =IF(X46="","",VLOOKUP(X46,'【記載例】シフト記号表（勤務時間帯）'!$C$5:$Y$46,23,FALSE)) -> - | Y48: =IF(Y46="","",VLOOKUP(Y46,'【記載例】シフト記号表（勤務時間帯）'!$C$5:$Y$46,23,FALSE)) -> - | Z48: =IF(Z46="","",VLOOKUP(Z46,'【記載例】シフト記号表（勤務時間帯）'!$C$5:$Y$46,23,FALSE)) -> - | AA48: =IF(AA46="","",VLOOKUP(AA46,'【記載例】シフト記号表（勤務時間帯）'!$C$5:$Y$46,23,FALSE)) -> - | AB48: =IF(AB46="","",VLOOKUP(AB46,'【記載例】シフト記号表（勤務時間帯）'!$C$5:$Y$46,23,FALSE)) -> - | AC48: =IF(AC46="","",VLOOKUP(AC46,'【記載例】シフト記号表（勤務時間帯）'!$C$5:$Y$46,23,FALSE)) -> - | AD48: =IF(AD46="","",VLOOKUP(AD46,'【記載例】シフト記号表（勤務時間帯）'!$C$5:$Y$46,23,FALSE)) -> - | AE48: =IF(AE46="","",VLOOKUP(AE46,'【記載例】シフト記号表（勤務時間帯）'!$C$5:$Y$46,23,FALSE)) -> - | AF48: =IF(AF46="","",VLOOKUP(AF46,'【記載例】シフト記号表（勤務時間帯）'!$C$5:$Y$46,23,FALSE)) -> - | AG48: =IF(AG46="","",VLOOKUP(AG46,'【記載例】シフト記号表（勤務時間帯）'!$C$5:$Y$46,23,FALSE)) -> - | AH48: =IF(AH46="","",VLOOKUP(AH46,'【記載例】シフト記号表（勤務時間帯）'!$C$5:$Y$46,23,FALSE)) -> - | AI48: =IF(AI46="","",VLOOKUP(AI46,'【記載例】シフト記号表（勤務時間帯）'!$C$5:$Y$46,23,FALSE)) -> - | AJ48: =IF(AJ46="","",VLOOKUP(AJ46,'【記載例】シフト記号表（勤務時間帯）'!$C$5:$Y$46,23,FALSE)) -> - | AK48: =IF(AK46="","",VLOOKUP(AK46,'【記載例】シフト記号表（勤務時間帯）'!$C$5:$Y$46,23,FALSE)) -> - | AL48: =IF(AL46="","",VLOOKUP(AL46,'【記載例】シフト記号表（勤務時間帯）'!$C$5:$Y$46,23,FALSE)) -> - | AM48: =IF(AM46="","",VLOOKUP(AM46,'【記載例】シフト記号表（勤務時間帯）'!$C$5:$Y$46,23,FALSE)) -> - | AN48: =IF(AN46="","",VLOOKUP(AN46,'【記載例】シフト記号表（勤務時間帯）'!$C$5:$Y$46,23,FALSE)) -> - | AO48: =IF(AO46="","",VLOOKUP(AO46,'【記載例】シフト記号表（勤務時間帯）'!$C$5:$Y$46,23,FALSE)) -> - | AP48: =IF(AP46="","",VLOOKUP(AP46,'【記載例】シフト記号表（勤務時間帯）'!$C$5:$Y$46,23,FALSE)) -> - | AQ48: =IF(AQ46="","",VLOOKUP(AQ46,'【記載例】シフト記号表（勤務時間帯）'!$C$5:$Y$46,23,FALSE)) -> - | AR48: =IF(AR46="","",VLOOKUP(AR46,'【記載例】シフト記号表（勤務時間帯）'!$C$5:$Y$46,23,FALSE)) -> - | AS48: =IF(AS46="","",VLOOKUP(AS46,'【記載例】シフト記号表（勤務時間帯）'!$C$5:$Y$46,23,FALSE)) -> - | AT48: =IF(AT46="","",VLOOKUP(AT46,'【記載例】シフト記号表（勤務時間帯）'!$C$5:$Y$46,23,FALSE)) -> - | AU48: =IF(AU46="","",VLOOKUP(AU46,'【記載例】シフト記号表（勤務時間帯）'!$C$5:$Y$46,23,FALSE)) -> - | AV48: =IF(AV46="","",VLOOKUP(AV46,'【記載例】シフト記号表（勤務時間帯）'!$C$5:$Y$46,23,FALSE)) ->  | AW48: =IF(AW46="","",VLOOKUP(AW46,'【記載例】シフト記号表（勤務時間帯）'!$C$5:$Y$46,23,FALSE)) ->  | AX48: =IF(AX46="","",VLOOKUP(AX46,'【記載例】シフト記号表（勤務時間帯）'!$C$5:$Y$46,23,FALSE)) ->  | AY48: =IF($BB$3="計画",SUM(T48:AU48),IF($BB$3="実績",SUM(T48:AX48),"")) -> 0 | BA48: =IF($BB$3="計画",AY48/4,IF($BB$3="実績",(AY48/($BB$7/7)),"")) -> 0
G49: C | L49: ○○ K子 | O49: シフト記号 | T49: d | U49: d | V49: 休 | W49: 休 | X49: 休 | Y49: d | Z49: d | AA49: 休 | AB49: 休 | AC49: d | AD49: d | AE49: 休 | AF49: d | AG49: d | AH49: d | AI49: 休 | AJ49: 休 | AK49: d | AL49: 休 | AM49: 休 | AN49: d | AO49: d | AP49: 休 | AQ49: 休 | AR49: d | AS49: 休 | AT49: d | AU49: d
B50: =B47+1 -> 11 | C50: 介護従業者 | H50: 介護福祉士 | O50: 日中の勤務時間数 | T50: =IF(T49="","",VLOOKUP(T49,'【記載例】シフト記号表（勤務時間帯）'!$C$5:$W$46,21,FALSE)) -> 8 | U50: =IF(U49="","",VLOOKUP(U49,'【記載例】シフト記号表（勤務時間帯）'!$C$5:$W$46,21,FALSE)) -> 8 | V50: =IF(V49="","",VLOOKUP(V49,'【記載例】シフト記号表（勤務時間帯）'!$C$5:$W$46,21,FALSE)) -> - | W50: =IF(W49="","",VLOOKUP(W49,'【記載例】シフト記号表（勤務時間帯）'!$C$5:$W$46,21,FALSE)) -> - | X50: =IF(X49="","",VLOOKUP(X49,'【記載例】シフト記号表（勤務時間帯）'!$C$5:$W$46,21,FALSE)) -> - | Y50: =IF(Y49="","",VLOOKUP(Y49,'【記載例】シフト記号表（勤務時間帯）'!$C$5:$W$46,21,FALSE)) -> 8 | Z50: =IF(Z49="","",VLOOKUP(Z49,'【記載例】シフト記号表（勤務時間帯）'!$C$5:$W$46,21,FALSE)) -> 8 | AA50: =IF(AA49="","",VLOOKUP(AA49,'【記載例】シフト記号表（勤務時間帯）'!$C$5:$W$46,21,FALSE)) -> - | AB50: =IF(AB49="","",VLOOKUP(AB49,'【記載例】シフト記号表（勤務時間帯）'!$C$5:$W$46,21,FALSE)) -> - | AC50: =IF(AC49="","",VLOOKUP(AC49,'【記載例】シフト記号表（勤務時間帯）'!$C$5:$W$46,21,FALSE)) -> 8 | AD50: =IF(AD49="","",VLOOKUP(AD49,'【記載例】シフト記号表（勤務時間帯）'!$C$5:$W$46,21,FALSE)) -> 8 | AE50: =IF(AE49="","",VLOOKUP(AE49,'【記載例】シフト記号表（勤務時間帯）'!$C$5:$W$46,21,FALSE)) -> - | AF50: =IF(AF49="","",VLOOKUP(AF49,'【記載例】シフト記号表（勤務時間帯）'!$C$5:$W$46,21,FALSE)) -> 8 | AG50: =IF(AG49="","",VLOOKUP(AG49,'【記載例】シフト記号表（勤務時間帯）'!$C$5:$W$46,21,FALSE)) -> 8 | AH50: =IF(AH49="","",VLOOKUP(AH49,'【記載例】シフト記号表（勤務時間帯）'!$C$5:$W$46,21,FALSE)) -> 8 | AI50: =IF(AI49="","",VLOOKUP(AI49,'【記載例】シフト記号表（勤務時間帯）'!$C$5:$W$46,21,FALSE)) -> - | AJ50: =IF(AJ49="","",VLOOKUP(AJ49,'【記載例】シフト記号表（勤務時間帯）'!$C$5:$W$46,21,FALSE)) -> - | AK50: =IF(AK49="","",VLOOKUP(AK49,'【記載例】シフト記号表（勤務時間帯）'!$C$5:$W$46,21,FALSE)) -> 8 | AL50: =IF(AL49="","",VLOOKUP(AL49,'【記載例】シフト記号表（勤務時間帯）'!$C$5:$W$46,21,FALSE)) -> - | AM50: =IF(AM49="","",VLOOKUP(AM49,'【記載例】シフト記号表（勤務時間帯）'!$C$5:$W$46,21,FALSE)) -> - | AN50: =IF(AN49="","",VLOOKUP(AN49,'【記載例】シフト記号表（勤務時間帯）'!$C$5:$W$46,21,FALSE)) -> 8 | AO50: =IF(AO49="","",VLOOKUP(AO49,'【記載例】シフト記号表（勤務時間帯）'!$C$5:$W$46,21,FALSE)) -> 8 | AP50: =IF(AP49="","",VLOOKUP(AP49,'【記載例】シフト記号表（勤務時間帯）'!$C$5:$W$46,21,FALSE)) -> - | AQ50: =IF(AQ49="","",VLOOKUP(AQ49,'【記載例】シフト記号表（勤務時間帯）'!$C$5:$W$46,21,FALSE)) -> - | AR50: =IF(AR49="","",VLOOKUP(AR49,'【記載例】シフト記号表（勤務時間帯）'!$C$5:$W$46,21,FALSE)) -> 8 | AS50: =IF(AS49="","",VLOOKUP(AS49,'【記載例】シフト記号表（勤務時間帯）'!$C$5:$W$46,21,FALSE)) -> - | AT50: =IF(AT49="","",VLOOKUP(AT49,'【記載例】シフト記号表（勤務時間帯）'!$C$5:$W$46,21,FALSE)) -> 8 | AU50: =IF(AU49="","",VLOOKUP(AU49,'【記載例】シフト記号表（勤務時間帯）'!$C$5:$W$46,21,FALSE)) -> 8 | AV50: =IF(AV49="","",VLOOKUP(AV49,'【記載例】シフト記号表（勤務時間帯）'!$C$5:$W$46,21,FALSE)) ->  | AW50: =IF(AW49="","",VLOOKUP(AW49,'【記載例】シフト記号表（勤務時間帯）'!$C$5:$W$46,21,FALSE)) ->  | AX50: =IF(AX49="","",VLOOKUP(AX49,'【記載例】シフト記号表（勤務時間帯）'!$C$5:$W$46,21,FALSE)) ->  | AY50: =IF($BB$3="計画",SUM(T50:AU50),IF($BB$3="実績",SUM(T50:AX50),"")) -> 120 | BA50: =IF($BB$3="計画",AY50/4,IF($BB$3="実績",(AY50/($BB$7/7)),"")) -> 30
F51: =C50 -> 介護従業者 | O51: 夜間・深夜の勤務時間数 | T51: =IF(T49="","",VLOOKUP(T49,'【記載例】シフト記号表（勤務時間帯）'!$C$5:$Y$46,23,FALSE)) -> - | U51: =IF(U49="","",VLOOKUP(U49,'【記載例】シフト記号表（勤務時間帯）'!$C$5:$Y$46,23,FALSE)) -> - | V51: =IF(V49="","",VLOOKUP(V49,'【記載例】シフト記号表（勤務時間帯）'!$C$5:$Y$46,23,FALSE)) -> - | W51: =IF(W49="","",VLOOKUP(W49,'【記載例】シフト記号表（勤務時間帯）'!$C$5:$Y$46,23,FALSE)) -> - | X51: =IF(X49="","",VLOOKUP(X49,'【記載例】シフト記号表（勤務時間帯）'!$C$5:$Y$46,23,FALSE)) -> - | Y51: =IF(Y49="","",VLOOKUP(Y49,'【記載例】シフト記号表（勤務時間帯）'!$C$5:$Y$46,23,FALSE)) -> - | Z51: =IF(Z49="","",VLOOKUP(Z49,'【記載例】シフト記号表（勤務時間帯）'!$C$5:$Y$46,23,FALSE)) -> - | AA51: =IF(AA49="","",VLOOKUP(AA49,'【記載例】シフト記号表（勤務時間帯）'!$C$5:$Y$46,23,FALSE)) -> - | AB51: =IF(AB49="","",VLOOKUP(AB49,'【記載例】シフト記号表（勤務時間帯）'!$C$5:$Y$46,23,FALSE)) -> - | AC51: =IF(AC49="","",VLOOKUP(AC49,'【記載例】シフト記号表（勤務時間帯）'!$C$5:$Y$46,23,FALSE)) -> - | AD51: =IF(AD49="","",VLOOKUP(AD49,'【記載例】シフト記号表（勤務時間帯）'!$C$5:$Y$46,23,FALSE)) -> - | AE51: =IF(AE49="","",VLOOKUP(AE49,'【記載例】シフト記号表（勤務時間帯）'!$C$5:$Y$46,23,FALSE)) -> - | AF51: =IF(AF49="","",VLOOKUP(AF49,'【記載例】シフト記号表（勤務時間帯）'!$C$5:$Y$46,23,FALSE)) -> - | AG51: =IF(AG49="","",VLOOKUP(AG49,'【記載例】シフト記号表（勤務時間帯）'!$C$5:$Y$46,23,FALSE)) -> - | AH51: =IF(AH49="","",VLOOKUP(AH49,'【記載例】シフト記号表（勤務時間帯）'!$C$5:$Y$46,23,FALSE)) -> - | AI51: =IF(AI49="","",VLOOKUP(AI49,'【記載例】シフト記号表（勤務時間帯）'!$C$5:$Y$46,23,FALSE)) -> - | AJ51: =IF(AJ49="","",VLOOKUP(AJ49,'【記載例】シフト記号表（勤務時間帯）'!$C$5:$Y$46,23,FALSE)) -> - | AK51: =IF(AK49="","",VLOOKUP(AK49,'【記載例】シフト記号表（勤務時間帯）'!$C$5:$Y$46,23,FALSE)) -> - | AL51: =IF(AL49="","",VLOOKUP(AL49,'【記載例】シフト記号表（勤務時間帯）'!$C$5:$Y$46,23,FALSE)) -> - | AM51: =IF(AM49="","",VLOOKUP(AM49,'【記載例】シフト記号表（勤務時間帯）'!$C$5:$Y$46,23,FALSE)) -> - | AN51: =IF(AN49="","",VLOOKUP(AN49,'【記載例】シフト記号表（勤務時間帯）'!$C$5:$Y$46,23,FALSE)) -> - | AO51: =IF(AO49="","",VLOOKUP(AO49,'【記載例】シフト記号表（勤務時間帯）'!$C$5:$Y$46,23,FALSE)) -> - | AP51: =IF(AP49="","",VLOOKUP(AP49,'【記載例】シフト記号表（勤務時間帯）'!$C$5:$Y$46,23,FALSE)) -> - | AQ51: =IF(AQ49="","",VLOOKUP(AQ49,'【記載例】シフト記号表（勤務時間帯）'!$C$5:$Y$46,23,FALSE)) -> - | AR51: =IF(AR49="","",VLOOKUP(AR49,'【記載例】シフト記号表（勤務時間帯）'!$C$5:$Y$46,23,FALSE)) -> - | AS51: =IF(AS49="","",VLOOKUP(AS49,'【記載例】シフト記号表（勤務時間帯）'!$C$5:$Y$46,23,FALSE)) -> - | AT51: =IF(AT49="","",VLOOKUP(AT49,'【記載例】シフト記号表（勤務時間帯）'!$C$5:$Y$46,23,FALSE)) -> - | AU51: =IF(AU49="","",VLOOKUP(AU49,'【記載例】シフト記号表（勤務時間帯）'!$C$5:$Y$46,23,FALSE)) -> - | AV51: =IF(AV49="","",VLOOKUP(AV49,'【記載例】シフト記号表（勤務時間帯）'!$C$5:$Y$46,23,FALSE)) ->  | AW51: =IF(AW49="","",VLOOKUP(AW49,'【記載例】シフト記号表（勤務時間帯）'!$C$5:$Y$46,23,FALSE)) ->  | AX51: =IF(AX49="","",VLOOKUP(AX49,'【記載例】シフト記号表（勤務時間帯）'!$C$5:$Y$46,23,FALSE)) ->  | AY51: =IF($BB$3="計画",SUM(T51:AU51),IF($BB$3="実績",SUM(T51:AX51),"")) -> 0 | BA51: =IF($BB$3="計画",AY51/4,IF($BB$3="実績",(AY51/($BB$7/7)),"")) -> 0
G52: C | L52: ○○ M子 | O52: シフト記号 | T52: 休 | U52: 休 | V52: d | W52: d | X52: d | Y52: d | Z52: 休 | AA52: d | AB52: d | AC52: 休 | AD52: d | AE52: d | AF52: 休 | AG52: 休 | AH52: 休 | AI52: d | AJ52: 休 | AK52: d | AL52: d | AM52: d | AN52: 休 | AO52: 休 | AP52: d | AQ52: d | AR52: 休 | AS52: d | AT52: 休 | AU52: d
B53: =B50+1 -> 12 | C53: 介護従業者 | H53: ー | O53: 日中の勤務時間数 | T53: =IF(T52="","",VLOOKUP(T52,'【記載例】シフト記号表（勤務時間帯）'!$C$5:$W$46,21,FALSE)) -> - | U53: =IF(U52="","",VLOOKUP(U52,'【記載例】シフト記号表（勤務時間帯）'!$C$5:$W$46,21,FALSE)) -> - | V53: =IF(V52="","",VLOOKUP(V52,'【記載例】シフト記号表（勤務時間帯）'!$C$5:$W$46,21,FALSE)) -> 8 | W53: =IF(W52="","",VLOOKUP(W52,'【記載例】シフト記号表（勤務時間帯）'!$C$5:$W$46,21,FALSE)) -> 8 | X53: =IF(X52="","",VLOOKUP(X52,'【記載例】シフト記号表（勤務時間帯）'!$C$5:$W$46,21,FALSE)) -> 8 | Y53: =IF(Y52="","",VLOOKUP(Y52,'【記載例】シフト記号表（勤務時間帯）'!$C$5:$W$46,21,FALSE)) -> 8 | Z53: =IF(Z52="","",VLOOKUP(Z52,'【記載例】シフト記号表（勤務時間帯）'!$C$5:$W$46,21,FALSE)) -> - | AA53: =IF(AA52="","",VLOOKUP(AA52,'【記載例】シフト記号表（勤務時間帯）'!$C$5:$W$46,21,FALSE)) -> 8 | AB53: =IF(AB52="","",VLOOKUP(AB52,'【記載例】シフト記号表（勤務時間帯）'!$C$5:$W$46,21,FALSE)) -> 8 | AC53: =IF(AC52="","",VLOOKUP(AC52,'【記載例】シフト記号表（勤務時間帯）'!$C$5:$W$46,21,FALSE)) -> - | AD53: =IF(AD52="","",VLOOKUP(AD52,'【記載例】シフト記号表（勤務時間帯）'!$C$5:$W$46,21,FALSE)) -> 8 | AE53: =IF(AE52="","",VLOOKUP(AE52,'【記載例】シフト記号表（勤務時間帯）'!$C$5:$W$46,21,FALSE)) -> 8 | AF53: =IF(AF52="","",VLOOKUP(AF52,'【記載例】シフト記号表（勤務時間帯）'!$C$5:$W$46,21,FALSE)) -> - | AG53: =IF(AG52="","",VLOOKUP(AG52,'【記載例】シフト記号表（勤務時間帯）'!$C$5:$W$46,21,FALSE)) -> - | AH53: =IF(AH52="","",VLOOKUP(AH52,'【記載例】シフト記号表（勤務時間帯）'!$C$5:$W$46,21,FALSE)) -> - | AI53: =IF(AI52="","",VLOOKUP(AI52,'【記載例】シフト記号表（勤務時間帯）'!$C$5:$W$46,21,FALSE)) -> 8 | AJ53: =IF(AJ52="","",VLOOKUP(AJ52,'【記載例】シフト記号表（勤務時間帯）'!$C$5:$W$46,21,FALSE)) -> - | AK53: =IF(AK52="","",VLOOKUP(AK52,'【記載例】シフト記号表（勤務時間帯）'!$C$5:$W$46,21,FALSE)) -> 8 | AL53: =IF(AL52="","",VLOOKUP(AL52,'【記載例】シフト記号表（勤務時間帯）'!$C$5:$W$46,21,FALSE)) -> 8 | AM53: =IF(AM52="","",VLOOKUP(AM52,'【記載例】シフト記号表（勤務時間帯）'!$C$5:$W$46,21,FALSE)) -> 8 | AN53: =IF(AN52="","",VLOOKUP(AN52,'【記載例】シフト記号表（勤務時間帯）'!$C$5:$W$46,21,FALSE)) -> - | AO53: =IF(AO52="","",VLOOKUP(AO52,'【記載例】シフト記号表（勤務時間帯）'!$C$5:$W$46,21,FALSE)) -> - | AP53: =IF(AP52="","",VLOOKUP(AP52,'【記載例】シフト記号表（勤務時間帯）'!$C$5:$W$46,21,FALSE)) -> 8 | AQ53: =IF(AQ52="","",VLOOKUP(AQ52,'【記載例】シフト記号表（勤務時間帯）'!$C$5:$W$46,21,FALSE)) -> 8 | AR53: =IF(AR52="","",VLOOKUP(AR52,'【記載例】シフト記号表（勤務時間帯）'!$C$5:$W$46,21,FALSE)) -> - | AS53: =IF(AS52="","",VLOOKUP(AS52,'【記載例】シフト記号表（勤務時間帯）'!$C$5:$W$46,21,FALSE)) -> 8 | AT53: =IF(AT52="","",VLOOKUP(AT52,'【記載例】シフト記号表（勤務時間帯）'!$C$5:$W$46,21,FALSE)) -> - | AU53: =IF(AU52="","",VLOOKUP(AU52,'【記載例】シフト記号表（勤務時間帯）'!$C$5:$W$46,21,FALSE)) -> 8 | AV53: =IF(AV52="","",VLOOKUP(AV52,'【記載例】シフト記号表（勤務時間帯）'!$C$5:$W$46,21,FALSE)) ->  | AW53: =IF(AW52="","",VLOOKUP(AW52,'【記載例】シフト記号表（勤務時間帯）'!$C$5:$W$46,21,FALSE)) ->  | AX53: =IF(AX52="","",VLOOKUP(AX52,'【記載例】シフト記号表（勤務時間帯）'!$C$5:$W$46,21,FALSE)) ->  | AY53: =IF($BB$3="計画",SUM(T53:AU53),IF($BB$3="実績",SUM(T53:AX53),"")) -> 128 | BA53: =IF($BB$3="計画",AY53/4,IF($BB$3="実績",(AY53/($BB$7/7)),"")) -> 32
F54: =C53 -> 介護従業者 | O54: 夜間・深夜の勤務時間数 | T54: =IF(T52="","",VLOOKUP(T52,'【記載例】シフト記号表（勤務時間帯）'!$C$5:$Y$46,23,FALSE)) -> - | U54: =IF(U52="","",VLOOKUP(U52,'【記載例】シフト記号表（勤務時間帯）'!$C$5:$Y$46,23,FALSE)) -> - | V54: =IF(V52="","",VLOOKUP(V52,'【記載例】シフト記号表（勤務時間帯）'!$C$5:$Y$46,23,FALSE)) -> - | W54: =IF(W52="","",VLOOKUP(W52,'【記載例】シフト記号表（勤務時間帯）'!$C$5:$Y$46,23,FALSE)) -> - | X54: =IF(X52="","",VLOOKUP(X52,'【記載例】シフト記号表（勤務時間帯）'!$C$5:$Y$46,23,FALSE)) -> - | Y54: =IF(Y52="","",VLOOKUP(Y52,'【記載例】シフト記号表（勤務時間帯）'!$C$5:$Y$46,23,FALSE)) -> - | Z54: =IF(Z52="","",VLOOKUP(Z52,'【記載例】シフト記号表（勤務時間帯）'!$C$5:$Y$46,23,FALSE)) -> - | AA54: =IF(AA52="","",VLOOKUP(AA52,'【記載例】シフト記号表（勤務時間帯）'!$C$5:$Y$46,23,FALSE)) -> - | AB54: =IF(AB52="","",VLOOKUP(AB52,'【記載例】シフト記号表（勤務時間帯）'!$C$5:$Y$46,23,FALSE)) -> - | AC54: =IF(AC52="","",VLOOKUP(AC52,'【記載例】シフト記号表（勤務時間帯）'!$C$5:$Y$46,23,FALSE)) -> - | AD54: =IF(AD52="","",VLOOKUP(AD52,'【記載例】シフト記号表（勤務時間帯）'!$C$5:$Y$46,23,FALSE)) -> - | AE54: =IF(AE52="","",VLOOKUP(AE52,'【記載例】シフト記号表（勤務時間帯）'!$C$5:$Y$46,23,FALSE)) -> - | AF54: =IF(AF52="","",VLOOKUP(AF52,'【記載例】シフト記号表（勤務時間帯）'!$C$5:$Y$46,23,FALSE)) -> - | AG54: =IF(AG52="","",VLOOKUP(AG52,'【記載例】シフト記号表（勤務時間帯）'!$C$5:$Y$46,23,FALSE)) -> - | AH54: =IF(AH52="","",VLOOKUP(AH52,'【記載例】シフト記号表（勤務時間帯）'!$C$5:$Y$46,23,FALSE)) -> - | AI54: =IF(AI52="","",VLOOKUP(AI52,'【記載例】シフト記号表（勤務時間帯）'!$C$5:$Y$46,23,FALSE)) -> - | AJ54: =IF(AJ52="","",VLOOKUP(AJ52,'【記載例】シフト記号表（勤務時間帯）'!$C$5:$Y$46,23,FALSE)) -> - | AK54: =IF(AK52="","",VLOOKUP(AK52,'【記載例】シフト記号表（勤務時間帯）'!$C$5:$Y$46,23,FALSE)) -> - | AL54: =IF(AL52="","",VLOOKUP(AL52,'【記載例】シフト記号表（勤務時間帯）'!$C$5:$Y$46,23,FALSE)) -> - | AM54: =IF(AM52="","",VLOOKUP(AM52,'【記載例】シフト記号表（勤務時間帯）'!$C$5:$Y$46,23,FALSE)) -> - | AN54: =IF(AN52="","",VLOOKUP(AN52,'【記載例】シフト記号表（勤務時間帯）'!$C$5:$Y$46,23,FALSE)) -> - | AO54: =IF(AO52="","",VLOOKUP(AO52,'【記載例】シフト記号表（勤務時間帯）'!$C$5:$Y$46,23,FALSE)) -> - | AP54: =IF(AP52="","",VLOOKUP(AP52,'【記載例】シフト記号表（勤務時間帯）'!$C$5:$Y$46,23,FALSE)) -> - | AQ54: =IF(AQ52="","",VLOOKUP(AQ52,'【記載例】シフト記号表（勤務時間帯）'!$C$5:$Y$46,23,FALSE)) -> - | AR54: =IF(AR52="","",VLOOKUP(AR52,'【記載例】シフト記号表（勤務時間帯）'!$C$5:$Y$46,23,FALSE)) -> - | AS54: =IF(AS52="","",VLOOKUP(AS52,'【記載例】シフト記号表（勤務時間帯）'!$C$5:$Y$46,23,FALSE)) -> - | AT54: =IF(AT52="","",VLOOKUP(AT52,'【記載例】シフト記号表（勤務時間帯）'!$C$5:$Y$46,23,FALSE)) -> - | AU54: =IF(AU52="","",VLOOKUP(AU52,'【記載例】シフト記号表（勤務時間帯）'!$C$5:$Y$46,23,FALSE)) -> - | AV54: =IF(AV52="","",VLOOKUP(AV52,'【記載例】シフト記号表（勤務時間帯）'!$C$5:$Y$46,23,FALSE)) ->  | AW54: =IF(AW52="","",VLOOKUP(AW52,'【記載例】シフト記号表（勤務時間帯）'!$C$5:$Y$46,23,FALSE)) ->  | AX54: =IF(AX52="","",VLOOKUP(AX52,'【記載例】シフト記号表（勤務時間帯）'!$C$5:$Y$46,23,FALSE)) ->  | AY54: =IF($BB$3="計画",SUM(T54:AU54),IF($BB$3="実績",SUM(T54:AX54),"")) -> 0 | BA54: =IF($BB$3="計画",AY54/4,IF($BB$3="実績",(AY54/($BB$7/7)),"")) -> 0
G55: C | L55: ○○ N男 | O55: シフト記号 | T55: 休 | U55: h | V55: 休 | W55: h | X55: h | Y55: h | Z55: h | AA55: 休 | AB55: h | AC55: h | AD55: 休 | AE55: h | AF55: 休 | AG55: 休 | AH55: h | AI55: h | AJ55: h | AK55: 休 | AL55: h | AM55: h | AN55: h | AO55: 休 | AP55: h | AQ55: h | AR55: 休 | AS55: h | AT55: 休 | AU55: h
B56: =B53+1 -> 13 | C56: 介護従業者 | H56: ー | O56: 日中の勤務時間数 | T56: =IF(T55="","",VLOOKUP(T55,'【記載例】シフト記号表（勤務時間帯）'!$C$5:$W$46,21,FALSE)) -> - | U56: =IF(U55="","",VLOOKUP(U55,'【記載例】シフト記号表（勤務時間帯）'!$C$5:$W$46,21,FALSE)) -> 5.5 | V56: =IF(V55="","",VLOOKUP(V55,'【記載例】シフト記号表（勤務時間帯）'!$C$5:$W$46,21,FALSE)) -> - | W56: =IF(W55="","",VLOOKUP(W55,'【記載例】シフト記号表（勤務時間帯）'!$C$5:$W$46,21,FALSE)) -> 5.5 | X56: =IF(X55="","",VLOOKUP(X55,'【記載例】シフト記号表（勤務時間帯）'!$C$5:$W$46,21,FALSE)) -> 5.5 | Y56: =IF(Y55="","",VLOOKUP(Y55,'【記載例】シフト記号表（勤務時間帯）'!$C$5:$W$46,21,FALSE)) -> 5.5 | Z56: =IF(Z55="","",VLOOKUP(Z55,'【記載例】シフト記号表（勤務時間帯）'!$C$5:$W$46,21,FALSE)) -> 5.5 | AA56: =IF(AA55="","",VLOOKUP(AA55,'【記載例】シフト記号表（勤務時間帯）'!$C$5:$W$46,21,FALSE)) -> - | AB56: =IF(AB55="","",VLOOKUP(AB55,'【記載例】シフト記号表（勤務時間帯）'!$C$5:$W$46,21,FALSE)) -> 5.5 | AC56: =IF(AC55="","",VLOOKUP(AC55,'【記載例】シフト記号表（勤務時間帯）'!$C$5:$W$46,21,FALSE)) -> 5.5 | AD56: =IF(AD55="","",VLOOKUP(AD55,'【記載例】シフト記号表（勤務時間帯）'!$C$5:$W$46,21,FALSE)) -> - | AE56: =IF(AE55="","",VLOOKUP(AE55,'【記載例】シフト記号表（勤務時間帯）'!$C$5:$W$46,21,FALSE)) -> 5.5 | AF56: =IF(AF55="","",VLOOKUP(AF55,'【記載例】シフト記号表（勤務時間帯）'!$C$5:$W$46,21,FALSE)) -> - | AG56: =IF(AG55="","",VLOOKUP(AG55,'【記載例】シフト記号表（勤務時間帯）'!$C$5:$W$46,21,FALSE)) -> - | AH56: =IF(AH55="","",VLOOKUP(AH55,'【記載例】シフト記号表（勤務時間帯）'!$C$5:$W$46,21,FALSE)) -> 5.5 | AI56: =IF(AI55="","",VLOOKUP(AI55,'【記載例】シフト記号表（勤務時間帯）'!$C$5:$W$46,21,FALSE)) -> 5.5 | AJ56: =IF(AJ55="","",VLOOKUP(AJ55,'【記載例】シフト記号表（勤務時間帯）'!$C$5:$W$46,21,FALSE)) -> 5.5 | AK56: =IF(AK55="","",VLOOKUP(AK55,'【記載例】シフト記号表（勤務時間帯）'!$C$5:$W$46,21,FALSE)) -> - | AL56: =IF(AL55="","",VLOOKUP(AL55,'【記載例】シフト記号表（勤務時間帯）'!$C$5:$W$46,21,FALSE)) -> 5.5 | AM56: =IF(AM55="","",VLOOKUP(AM55,'【記載例】シフト記号表（勤務時間帯）'!$C$5:$W$46,21,FALSE)) -> 5.5 | AN56: =IF(AN55="","",VLOOKUP(AN55,'【記載例】シフト記号表（勤務時間帯）'!$C$5:$W$46,21,FALSE)) -> 5.5 | AO56: =IF(AO55="","",VLOOKUP(AO55,'【記載例】シフト記号表（勤務時間帯）'!$C$5:$W$46,21,FALSE)) -> - | AP56: =IF(AP55="","",VLOOKUP(AP55,'【記載例】シフト記号表（勤務時間帯）'!$C$5:$W$46,21,FALSE)) -> 5.5 | AQ56: =IF(AQ55="","",VLOOKUP(AQ55,'【記載例】シフト記号表（勤務時間帯）'!$C$5:$W$46,21,FALSE)) -> 5.5 | AR56: =IF(AR55="","",VLOOKUP(AR55,'【記載例】シフト記号表（勤務時間帯）'!$C$5:$W$46,21,FALSE)) -> - | AS56: =IF(AS55="","",VLOOKUP(AS55,'【記載例】シフト記号表（勤務時間帯）'!$C$5:$W$46,21,FALSE)) -> 5.5 | AT56: =IF(AT55="","",VLOOKUP(AT55,'【記載例】シフト記号表（勤務時間帯）'!$C$5:$W$46,21,FALSE)) -> - | AU56: =IF(AU55="","",VLOOKUP(AU55,'【記載例】シフト記号表（勤務時間帯）'!$C$5:$W$46,21,FALSE)) -> 5.5 | AV56: =IF(AV55="","",VLOOKUP(AV55,'【記載例】シフト記号表（勤務時間帯）'!$C$5:$W$46,21,FALSE)) ->  | AW56: =IF(AW55="","",VLOOKUP(AW55,'【記載例】シフト記号表（勤務時間帯）'!$C$5:$W$46,21,FALSE)) ->  | AX56: =IF(AX55="","",VLOOKUP(AX55,'【記載例】シフト記号表（勤務時間帯）'!$C$5:$W$46,21,FALSE)) ->  | AY56: =IF($BB$3="計画",SUM(T56:AU56),IF($BB$3="実績",SUM(T56:AX56),"")) -> 99 | BA56: =IF($BB$3="計画",AY56/4,IF($BB$3="実績",(AY56/($BB$7/7)),"")) -> 24.75
F57: =C56 -> 介護従業者 | O57: 夜間・深夜の勤務時間数 | T57: =IF(T55="","",VLOOKUP(T55,'【記載例】シフト記号表（勤務時間帯）'!$C$5:$Y$46,23,FALSE)) -> - | U57: =IF(U55="","",VLOOKUP(U55,'【記載例】シフト記号表（勤務時間帯）'!$C$5:$Y$46,23,FALSE)) -> - | V57: =IF(V55="","",VLOOKUP(V55,'【記載例】シフト記号表（勤務時間帯）'!$C$5:$Y$46,23,FALSE)) -> - | W57: =IF(W55="","",VLOOKUP(W55,'【記載例】シフト記号表（勤務時間帯）'!$C$5:$Y$46,23,FALSE)) -> - | X57: =IF(X55="","",VLOOKUP(X55,'【記載例】シフト記号表（勤務時間帯）'!$C$5:$Y$46,23,FALSE)) -> - | Y57: =IF(Y55="","",VLOOKUP(Y55,'【記載例】シフト記号表（勤務時間帯）'!$C$5:$Y$46,23,FALSE)) -> - | Z57: =IF(Z55="","",VLOOKUP(Z55,'【記載例】シフト記号表（勤務時間帯）'!$C$5:$Y$46,23,FALSE)) -> - | AA57: =IF(AA55="","",VLOOKUP(AA55,'【記載例】シフト記号表（勤務時間帯）'!$C$5:$Y$46,23,FALSE)) -> - | AB57: =IF(AB55="","",VLOOKUP(AB55,'【記載例】シフト記号表（勤務時間帯）'!$C$5:$Y$46,23,FALSE)) -> - | AC57: =IF(AC55="","",VLOOKUP(AC55,'【記載例】シフト記号表（勤務時間帯）'!$C$5:$Y$46,23,FALSE)) -> - | AD57: =IF(AD55="","",VLOOKUP(AD55,'【記載例】シフト記号表（勤務時間帯）'!$C$5:$Y$46,23,FALSE)) -> - | AE57: =IF(AE55="","",VLOOKUP(AE55,'【記載例】シフト記号表（勤務時間帯）'!$C$5:$Y$46,23,FALSE)) -> - | AF57: =IF(AF55="","",VLOOKUP(AF55,'【記載例】シフト記号表（勤務時間帯）'!$C$5:$Y$46,23,FALSE)) -> - | AG57: =IF(AG55="","",VLOOKUP(AG55,'【記載例】シフト記号表（勤務時間帯）'!$C$5:$Y$46,23,FALSE)) -> - | AH57: =IF(AH55="","",VLOOKUP(AH55,'【記載例】シフト記号表（勤務時間帯）'!$C$5:$Y$46,23,FALSE)) -> - | AI57: =IF(AI55="","",VLOOKUP(AI55,'【記載例】シフト記号表（勤務時間帯）'!$C$5:$Y$46,23,FALSE)) -> - | AJ57: =IF(AJ55="","",VLOOKUP(AJ55,'【記載例】シフト記号表（勤務時間帯）'!$C$5:$Y$46,23,FALSE)) -> - | AK57: =IF(AK55="","",VLOOKUP(AK55,'【記載例】シフト記号表（勤務時間帯）'!$C$5:$Y$46,23,FALSE)) -> - | AL57: =IF(AL55="","",VLOOKUP(AL55,'【記載例】シフト記号表（勤務時間帯）'!$C$5:$Y$46,23,FALSE)) -> - | AM57: =IF(AM55="","",VLOOKUP(AM55,'【記載例】シフト記号表（勤務時間帯）'!$C$5:$Y$46,23,FALSE)) -> - | AN57: =IF(AN55="","",VLOOKUP(AN55,'【記載例】シフト記号表（勤務時間帯）'!$C$5:$Y$46,23,FALSE)) -> - | AO57: =IF(AO55="","",VLOOKUP(AO55,'【記載例】シフト記号表（勤務時間帯）'!$C$5:$Y$46,23,FALSE)) -> - | AP57: =IF(AP55="","",VLOOKUP(AP55,'【記載例】シフト記号表（勤務時間帯）'!$C$5:$Y$46,23,FALSE)) -> - | AQ57: =IF(AQ55="","",VLOOKUP(AQ55,'【記載例】シフト記号表（勤務時間帯）'!$C$5:$Y$46,23,FALSE)) -> - | AR57: =IF(AR55="","",VLOOKUP(AR55,'【記載例】シフト記号表（勤務時間帯）'!$C$5:$Y$46,23,FALSE)) -> - | AS57: =IF(AS55="","",VLOOKUP(AS55,'【記載例】シフト記号表（勤務時間帯）'!$C$5:$Y$46,23,FALSE)) -> - | AT57: =IF(AT55="","",VLOOKUP(AT55,'【記載例】シフト記号表（勤務時間帯）'!$C$5:$Y$46,23,FALSE)) -> - | AU57: =IF(AU55="","",VLOOKUP(AU55,'【記載例】シフト記号表（勤務時間帯）'!$C$5:$Y$46,23,FALSE)) -> - | AV57: =IF(AV55="","",VLOOKUP(AV55,'【記載例】シフト記号表（勤務時間帯）'!$C$5:$Y$46,23,FALSE)) ->  | AW57: =IF(AW55="","",VLOOKUP(AW55,'【記載例】シフト記号表（勤務時間帯）'!$C$5:$Y$46,23,FALSE)) ->  | AX57: =IF(AX55="","",VLOOKUP(AX55,'【記載例】シフト記号表（勤務時間帯）'!$C$5:$Y$46,23,FALSE)) ->  | AY57: =IF($BB$3="計画",SUM(T57:AU57),IF($BB$3="実績",SUM(T57:AX57),"")) -> 0 | BA57: =IF($BB$3="計画",AY57/4,IF($BB$3="実績",(AY57/($BB$7/7)),"")) -> 0
G58: C | L58: ○○ P子 | O58: シフト記号 | T58: 休 | U58: j | V58: j | W58: j | X58: j | Y58: 休 | Z58: j | AA58: 休 | AB58: 休 | AC58: j | AD58: 休 | AE58: 休 | AF58: j | AG58: j | AH58: 休 | AI58: j | AJ58: j | AK58: 休 | AL58: j | AM58: j | AN58: j | AO58: 休 | AP58: j | AQ58: j | AR58: j | AS58: 休 | AT58: j | AU58: j
B59: =B56+1 -> 14 | C59: 介護従業者 | H59: ー | O59: 日中の勤務時間数 | T59: =IF(T58="","",VLOOKUP(T58,'【記載例】シフト記号表（勤務時間帯）'!$C$5:$W$46,21,FALSE)) -> - | U59: =IF(U58="","",VLOOKUP(U58,'【記載例】シフト記号表（勤務時間帯）'!$C$5:$W$46,21,FALSE)) -> 5 | V59: =IF(V58="","",VLOOKUP(V58,'【記載例】シフト記号表（勤務時間帯）'!$C$5:$W$46,21,FALSE)) -> 5 | W59: =IF(W58="","",VLOOKUP(W58,'【記載例】シフト記号表（勤務時間帯）'!$C$5:$W$46,21,FALSE)) -> 5 | X59: =IF(X58="","",VLOOKUP(X58,'【記載例】シフト記号表（勤務時間帯）'!$C$5:$W$46,21,FALSE)) -> 5 | Y59: =IF(Y58="","",VLOOKUP(Y58,'【記載例】シフト記号表（勤務時間帯）'!$C$5:$W$46,21,FALSE)) -> - | Z59: =IF(Z58="","",VLOOKUP(Z58,'【記載例】シフト記号表（勤務時間帯）'!$C$5:$W$46,21,FALSE)) -> 5 | AA59: =IF(AA58="","",VLOOKUP(AA58,'【記載例】シフト記号表（勤務時間帯）'!$C$5:$W$46,21,FALSE)) -> - | AB59: =IF(AB58="","",VLOOKUP(AB58,'【記載例】シフト記号表（勤務時間帯）'!$C$5:$W$46,21,FALSE)) -> - | AC59: =IF(AC58="","",VLOOKUP(AC58,'【記載例】シフト記号表（勤務時間帯）'!$C$5:$W$46,21,FALSE)) -> 5 | AD59: =IF(AD58="","",VLOOKUP(AD58,'【記載例】シフト記号表（勤務時間帯）'!$C$5:$W$46,21,FALSE)) -> - | AE59: =IF(AE58="","",VLOOKUP(AE58,'【記載例】シフト記号表（勤務時間帯）'!$C$5:$W$46,21,FALSE)) -> - | AF59: =IF(AF58="","",VLOOKUP(AF58,'【記載例】シフト記号表（勤務時間帯）'!$C$5:$W$46,21,FALSE)) -> 5 | AG59: =IF(AG58="","",VLOOKUP(AG58,'【記載例】シフト記号表（勤務時間帯）'!$C$5:$W$46,21,FALSE)) -> 5 | AH59: =IF(AH58="","",VLOOKUP(AH58,'【記載例】シフト記号表（勤務時間帯）'!$C$5:$W$46,21,FALSE)) -> - | AI59: =IF(AI58="","",VLOOKUP(AI58,'【記載例】シフト記号表（勤務時間帯）'!$C$5:$W$46,21,FALSE)) -> 5 | AJ59: =IF(AJ58="","",VLOOKUP(AJ58,'【記載例】シフト記号表（勤務時間帯）'!$C$5:$W$46,21,FALSE)) -> 5 | AK59: =IF(AK58="","",VLOOKUP(AK58,'【記載例】シフト記号表（勤務時間帯）'!$C$5:$W$46,21,FALSE)) -> - | AL59: =IF(AL58="","",VLOOKUP(AL58,'【記載例】シフト記号表（勤務時間帯）'!$C$5:$W$46,21,FALSE)) -> 5 | AM59: =IF(AM58="","",VLOOKUP(AM58,'【記載例】シフト記号表（勤務時間帯）'!$C$5:$W$46,21,FALSE)) -> 5 | AN59: =IF(AN58="","",VLOOKUP(AN58,'【記載例】シフト記号表（勤務時間帯）'!$C$5:$W$46,21,FALSE)) -> 5 | AO59: =IF(AO58="","",VLOOKUP(AO58,'【記載例】シフト記号表（勤務時間帯）'!$C$5:$W$46,21,FALSE)) -> - | AP59: =IF(AP58="","",VLOOKUP(AP58,'【記載例】シフト記号表（勤務時間帯）'!$C$5:$W$46,21,FALSE)) -> 5 | AQ59: =IF(AQ58="","",VLOOKUP(AQ58,'【記載例】シフト記号表（勤務時間帯）'!$C$5:$W$46,21,FALSE)) -> 5 | AR59: =IF(AR58="","",VLOOKUP(AR58,'【記載例】シフト記号表（勤務時間帯）'!$C$5:$W$46,21,FALSE)) -> 5 | AS59: =IF(AS58="","",VLOOKUP(AS58,'【記載例】シフト記号表（勤務時間帯）'!$C$5:$W$46,21,FALSE)) -> - | AT59: =IF(AT58="","",VLOOKUP(AT58,'【記載例】シフト記号表（勤務時間帯）'!$C$5:$W$46,21,FALSE)) -> 5 | AU59: =IF(AU58="","",VLOOKUP(AU58,'【記載例】シフト記号表（勤務時間帯）'!$C$5:$W$46,21,FALSE)) -> 5 | AV59: =IF(AV58="","",VLOOKUP(AV58,'【記載例】シフト記号表（勤務時間帯）'!$C$5:$W$46,21,FALSE)) ->  | AW59: =IF(AW58="","",VLOOKUP(AW58,'【記載例】シフト記号表（勤務時間帯）'!$C$5:$W$46,21,FALSE)) ->  | AX59: =IF(AX58="","",VLOOKUP(AX58,'【記載例】シフト記号表（勤務時間帯）'!$C$5:$W$46,21,FALSE)) ->  | AY59: =IF($BB$3="計画",SUM(T59:AU59),IF($BB$3="実績",SUM(T59:AX59),"")) -> 90 | BA59: =IF($BB$3="計画",AY59/4,IF($BB$3="実績",(AY59/($BB$7/7)),"")) -> 22.5
F60: =C59 -> 介護従業者 | O60: 夜間・深夜の勤務時間数 | T60: =IF(T58="","",VLOOKUP(T58,'【記載例】シフト記号表（勤務時間帯）'!$C$5:$Y$46,23,FALSE)) -> - | U60: =IF(U58="","",VLOOKUP(U58,'【記載例】シフト記号表（勤務時間帯）'!$C$5:$Y$46,23,FALSE)) -> - | V60: =IF(V58="","",VLOOKUP(V58,'【記載例】シフト記号表（勤務時間帯）'!$C$5:$Y$46,23,FALSE)) -> - | W60: =IF(W58="","",VLOOKUP(W58,'【記載例】シフト記号表（勤務時間帯）'!$C$5:$Y$46,23,FALSE)) -> - | X60: =IF(X58="","",VLOOKUP(X58,'【記載例】シフト記号表（勤務時間帯）'!$C$5:$Y$46,23,FALSE)) -> - | Y60: =IF(Y58="","",VLOOKUP(Y58,'【記載例】シフト記号表（勤務時間帯）'!$C$5:$Y$46,23,FALSE)) -> - | Z60: =IF(Z58="","",VLOOKUP(Z58,'【記載例】シフト記号表（勤務時間帯）'!$C$5:$Y$46,23,FALSE)) -> - | AA60: =IF(AA58="","",VLOOKUP(AA58,'【記載例】シフト記号表（勤務時間帯）'!$C$5:$Y$46,23,FALSE)) -> - | AB60: =IF(AB58="","",VLOOKUP(AB58,'【記載例】シフト記号表（勤務時間帯）'!$C$5:$Y$46,23,FALSE)) -> - | AC60: =IF(AC58="","",VLOOKUP(AC58,'【記載例】シフト記号表（勤務時間帯）'!$C$5:$Y$46,23,FALSE)) -> - | AD60: =IF(AD58="","",VLOOKUP(AD58,'【記載例】シフト記号表（勤務時間帯）'!$C$5:$Y$46,23,FALSE)) -> - | AE60: =IF(AE58="","",VLOOKUP(AE58,'【記載例】シフト記号表（勤務時間帯）'!$C$5:$Y$46,23,FALSE)) -> - | AF60: =IF(AF58="","",VLOOKUP(AF58,'【記載例】シフト記号表（勤務時間帯）'!$C$5:$Y$46,23,FALSE)) -> - | AG60: =IF(AG58="","",VLOOKUP(AG58,'【記載例】シフト記号表（勤務時間帯）'!$C$5:$Y$46,23,FALSE)) -> - | AH60: =IF(AH58="","",VLOOKUP(AH58,'【記載例】シフト記号表（勤務時間帯）'!$C$5:$Y$46,23,FALSE)) -> - | AI60: =IF(AI58="","",VLOOKUP(AI58,'【記載例】シフト記号表（勤務時間帯）'!$C$5:$Y$46,23,FALSE)) -> - | AJ60: =IF(AJ58="","",VLOOKUP(AJ58,'【記載例】シフト記号表（勤務時間帯）'!$C$5:$Y$46,23,FALSE)) -> - | AK60: =IF(AK58="","",VLOOKUP(AK58,'【記載例】シフト記号表（勤務時間帯）'!$C$5:$Y$46,23,FALSE)) -> - | AL60: =IF(AL58="","",VLOOKUP(AL58,'【記載例】シフト記号表（勤務時間帯）'!$C$5:$Y$46,23,FALSE)) -> - | AM60: =IF(AM58="","",VLOOKUP(AM58,'【記載例】シフト記号表（勤務時間帯）'!$C$5:$Y$46,23,FALSE)) -> - | AN60: =IF(AN58="","",VLOOKUP(AN58,'【記載例】シフト記号表（勤務時間帯）'!$C$5:$Y$46,23,FALSE)) -> - | AO60: =IF(AO58="","",VLOOKUP(AO58,'【記載例】シフト記号表（勤務時間帯）'!$C$5:$Y$46,23,FALSE)) -> - | AP60: =IF(AP58="","",VLOOKUP(AP58,'【記載例】シフト記号表（勤務時間帯）'!$C$5:$Y$46,23,FALSE)) -> - | AQ60: =IF(AQ58="","",VLOOKUP(AQ58,'【記載例】シフト記号表（勤務時間帯）'!$C$5:$Y$46,23,FALSE)) -> - | AR60: =IF(AR58="","",VLOOKUP(AR58,'【記載例】シフト記号表（勤務時間帯）'!$C$5:$Y$46,23,FALSE)) -> - | AS60: =IF(AS58="","",VLOOKUP(AS58,'【記載例】シフト記号表（勤務時間帯）'!$C$5:$Y$46,23,FALSE)) -> - | AT60: =IF(AT58="","",VLOOKUP(AT58,'【記載例】シフト記号表（勤務時間帯）'!$C$5:$Y$46,23,FALSE)) -> - | AU60: =IF(AU58="","",VLOOKUP(AU58,'【記載例】シフト記号表（勤務時間帯）'!$C$5:$Y$46,23,FALSE)) -> - | AV60: =IF(AV58="","",VLOOKUP(AV58,'【記載例】シフト記号表（勤務時間帯）'!$C$5:$Y$46,23,FALSE)) ->  | AW60: =IF(AW58="","",VLOOKUP(AW58,'【記載例】シフト記号表（勤務時間帯）'!$C$5:$Y$46,23,FALSE)) ->  | AX60: =IF(AX58="","",VLOOKUP(AX58,'【記載例】シフト記号表（勤務時間帯）'!$C$5:$Y$46,23,FALSE)) ->  | AY60: =IF($BB$3="計画",SUM(T60:AU60),IF($BB$3="実績",SUM(T60:AX60),"")) -> 0 | BA60: =IF($BB$3="計画",AY60/4,IF($BB$3="実績",(AY60/($BB$7/7)),"")) -> 0
G61: C | L61: ○○ R次郎 | O61: シフト記号 | T61: ba | U61: 休 | V61: ba | W61: 休 | X61: 休 | Y61: ba | Z61: 休 | AA61: ba | AB61: 休 | AC61: 休 | AD61: ba | AE61: 休 | AF61: ba | AG61: 休 | AH61: ba | AI61: 休 | AJ61: 休 | AK61: ba | AL61: 休 | AM61: ba | AN61: 休 | AO61: ba | AP61: 休 | AQ61: ba | AR61: ba | AS61: 休 | AT61: ba | AU61: 休
B62: =B59+1 -> 15 | C62: 介護従業者 | H62: ー | O62: 日中の勤務時間数 | T62: =IF(T61="","",VLOOKUP(T61,'【記載例】シフト記号表（勤務時間帯）'!$C$5:$W$46,21,FALSE)) -> 6 | U62: =IF(U61="","",VLOOKUP(U61,'【記載例】シフト記号表（勤務時間帯）'!$C$5:$W$46,21,FALSE)) -> - | V62: =IF(V61="","",VLOOKUP(V61,'【記載例】シフト記号表（勤務時間帯）'!$C$5:$W$46,21,FALSE)) -> 6 | W62: =IF(W61="","",VLOOKUP(W61,'【記載例】シフト記号表（勤務時間帯）'!$C$5:$W$46,21,FALSE)) -> - | X62: =IF(X61="","",VLOOKUP(X61,'【記載例】シフト記号表（勤務時間帯）'!$C$5:$W$46,21,FALSE)) -> - | Y62: =IF(Y61="","",VLOOKUP(Y61,'【記載例】シフト記号表（勤務時間帯）'!$C$5:$W$46,21,FALSE)) -> 6 | Z62: =IF(Z61="","",VLOOKUP(Z61,'【記載例】シフト記号表（勤務時間帯）'!$C$5:$W$46,21,FALSE)) -> - | AA62: =IF(AA61="","",VLOOKUP(AA61,'【記載例】シフト記号表（勤務時間帯）'!$C$5:$W$46,21,FALSE)) -> 6 | AB62: =IF(AB61="","",VLOOKUP(AB61,'【記載例】シフト記号表（勤務時間帯）'!$C$5:$W$46,21,FALSE)) -> - | AC62: =IF(AC61="","",VLOOKUP(AC61,'【記載例】シフト記号表（勤務時間帯）'!$C$5:$W$46,21,FALSE)) -> - | AD62: =IF(AD61="","",VLOOKUP(AD61,'【記載例】シフト記号表（勤務時間帯）'!$C$5:$W$46,21,FALSE)) -> 6 | AE62: =IF(AE61="","",VLOOKUP(AE61,'【記載例】シフト記号表（勤務時間帯）'!$C$5:$W$46,21,FALSE)) -> - | AF62: =IF(AF61="","",VLOOKUP(AF61,'【記載例】シフト記号表（勤務時間帯）'!$C$5:$W$46,21,FALSE)) -> 6 | AG62: =IF(AG61="","",VLOOKUP(AG61,'【記載例】シフト記号表（勤務時間帯）'!$C$5:$W$46,21,FALSE)) -> - | AH62: =IF(AH61="","",VLOOKUP(AH61,'【記載例】シフト記号表（勤務時間帯）'!$C$5:$W$46,21,FALSE)) -> 6 | AI62: =IF(AI61="","",VLOOKUP(AI61,'【記載例】シフト記号表（勤務時間帯）'!$C$5:$W$46,21,FALSE)) -> - | AJ62: =IF(AJ61="","",VLOOKUP(AJ61,'【記載例】シフト記号表（勤務時間帯）'!$C$5:$W$46,21,FALSE)) -> - | AK62: =IF(AK61="","",VLOOKUP(AK61,'【記載例】シフト記号表（勤務時間帯）'!$C$5:$W$46,21,FALSE)) -> 6 | AL62: =IF(AL61="","",VLOOKUP(AL61,'【記載例】シフト記号表（勤務時間帯）'!$C$5:$W$46,21,FALSE)) -> - | AM62: =IF(AM61="","",VLOOKUP(AM61,'【記載例】シフト記号表（勤務時間帯）'!$C$5:$W$46,21,FALSE)) -> 6 | AN62: =IF(AN61="","",VLOOKUP(AN61,'【記載例】シフト記号表（勤務時間帯）'!$C$5:$W$46,21,FALSE)) -> - | AO62: =IF(AO61="","",VLOOKUP(AO61,'【記載例】シフト記号表（勤務時間帯）'!$C$5:$W$46,21,FALSE)) -> 6 | AP62: =IF(AP61="","",VLOOKUP(AP61,'【記載例】シフト記号表（勤務時間帯）'!$C$5:$W$46,21,FALSE)) -> - | AQ62: =IF(AQ61="","",VLOOKUP(AQ61,'【記載例】シフト記号表（勤務時間帯）'!$C$5:$W$46,21,FALSE)) -> 6 | AR62: =IF(AR61="","",VLOOKUP(AR61,'【記載例】シフト記号表（勤務時間帯）'!$C$5:$W$46,21,FALSE)) -> 6 | AS62: =IF(AS61="","",VLOOKUP(AS61,'【記載例】シフト記号表（勤務時間帯）'!$C$5:$W$46,21,FALSE)) -> - | AT62: =IF(AT61="","",VLOOKUP(AT61,'【記載例】シフト記号表（勤務時間帯）'!$C$5:$W$46,21,FALSE)) -> 6 | AU62: =IF(AU61="","",VLOOKUP(AU61,'【記載例】シフト記号表（勤務時間帯）'!$C$5:$W$46,21,FALSE)) -> - | AV62: =IF(AV61="","",VLOOKUP(AV61,'【記載例】シフト記号表（勤務時間帯）'!$C$5:$W$46,21,FALSE)) ->  | AW62: =IF(AW61="","",VLOOKUP(AW61,'【記載例】シフト記号表（勤務時間帯）'!$C$5:$W$46,21,FALSE)) ->  | AX62: =IF(AX61="","",VLOOKUP(AX61,'【記載例】シフト記号表（勤務時間帯）'!$C$5:$W$46,21,FALSE)) ->  | AY62: =IF($BB$3="計画",SUM(T62:AU62),IF($BB$3="実績",SUM(T62:AX62),"")) -> 78 | BA62: =IF($BB$3="計画",AY62/4,IF($BB$3="実績",(AY62/($BB$7/7)),"")) -> 19.5
F63: =C62 -> 介護従業者 | O63: 夜間・深夜の勤務時間数 | T63: =IF(T61="","",VLOOKUP(T61,'【記載例】シフト記号表（勤務時間帯）'!$C$5:$Y$46,23,FALSE)) -> - | U63: =IF(U61="","",VLOOKUP(U61,'【記載例】シフト記号表（勤務時間帯）'!$C$5:$Y$46,23,FALSE)) -> - | V63: =IF(V61="","",VLOOKUP(V61,'【記載例】シフト記号表（勤務時間帯）'!$C$5:$Y$46,23,FALSE)) -> - | W63: =IF(W61="","",VLOOKUP(W61,'【記載例】シフト記号表（勤務時間帯）'!$C$5:$Y$46,23,FALSE)) -> - | X63: =IF(X61="","",VLOOKUP(X61,'【記載例】シフト記号表（勤務時間帯）'!$C$5:$Y$46,23,FALSE)) -> - | Y63: =IF(Y61="","",VLOOKUP(Y61,'【記載例】シフト記号表（勤務時間帯）'!$C$5:$Y$46,23,FALSE)) -> - | Z63: =IF(Z61="","",VLOOKUP(Z61,'【記載例】シフト記号表（勤務時間帯）'!$C$5:$Y$46,23,FALSE)) -> - | AA63: =IF(AA61="","",VLOOKUP(AA61,'【記載例】シフト記号表（勤務時間帯）'!$C$5:$Y$46,23,FALSE)) -> - | AB63: =IF(AB61="","",VLOOKUP(AB61,'【記載例】シフト記号表（勤務時間帯）'!$C$5:$Y$46,23,FALSE)) -> - | AC63: =IF(AC61="","",VLOOKUP(AC61,'【記載例】シフト記号表（勤務時間帯）'!$C$5:$Y$46,23,FALSE)) -> - | AD63: =IF(AD61="","",VLOOKUP(AD61,'【記載例】シフト記号表（勤務時間帯）'!$C$5:$Y$46,23,FALSE)) -> - | AE63: =IF(AE61="","",VLOOKUP(AE61,'【記載例】シフト記号表（勤務時間帯）'!$C$5:$Y$46,23,FALSE)) -> - | AF63: =IF(AF61="","",VLOOKUP(AF61,'【記載例】シフト記号表（勤務時間帯）'!$C$5:$Y$46,23,FALSE)) -> - | AG63: =IF(AG61="","",VLOOKUP(AG61,'【記載例】シフト記号表（勤務時間帯）'!$C$5:$Y$46,23,FALSE)) -> - | AH63: =IF(AH61="","",VLOOKUP(AH61,'【記載例】シフト記号表（勤務時間帯）'!$C$5:$Y$46,23,FALSE)) -> - | AI63: =IF(AI61="","",VLOOKUP(AI61,'【記載例】シフト記号表（勤務時間帯）'!$C$5:$Y$46,23,FALSE)) -> - | AJ63: =IF(AJ61="","",VLOOKUP(AJ61,'【記載例】シフト記号表（勤務時間帯）'!$C$5:$Y$46,23,FALSE)) -> - | AK63: =IF(AK61="","",VLOOKUP(AK61,'【記載例】シフト記号表（勤務時間帯）'!$C$5:$Y$46,23,FALSE)) -> - | AL63: =IF(AL61="","",VLOOKUP(AL61,'【記載例】シフト記号表（勤務時間帯）'!$C$5:$Y$46,23,FALSE)) -> - | AM63: =IF(AM61="","",VLOOKUP(AM61,'【記載例】シフト記号表（勤務時間帯）'!$C$5:$Y$46,23,FALSE)) -> - | AN63: =IF(AN61="","",VLOOKUP(AN61,'【記載例】シフト記号表（勤務時間帯）'!$C$5:$Y$46,23,FALSE)) -> - | AO63: =IF(AO61="","",VLOOKUP(AO61,'【記載例】シフト記号表（勤務時間帯）'!$C$5:$Y$46,23,FALSE)) -> - | AP63: =IF(AP61="","",VLOOKUP(AP61,'【記載例】シフト記号表（勤務時間帯）'!$C$5:$Y$46,23,FALSE)) -> - | AQ63: =IF(AQ61="","",VLOOKUP(AQ61,'【記載例】シフト記号表（勤務時間帯）'!$C$5:$Y$46,23,FALSE)) -> - | AR63: =IF(AR61="","",VLOOKUP(AR61,'【記載例】シフト記号表（勤務時間帯）'!$C$5:$Y$46,23,FALSE)) -> - | AS63: =IF(AS61="","",VLOOKUP(AS61,'【記載例】シフト記号表（勤務時間帯）'!$C$5:$Y$46,23,FALSE)) -> - | AT63: =IF(AT61="","",VLOOKUP(AT61,'【記載例】シフト記号表（勤務時間帯）'!$C$5:$Y$46,23,FALSE)) -> - | AU63: =IF(AU61="","",VLOOKUP(AU61,'【記載例】シフト記号表（勤務時間帯）'!$C$5:$Y$46,23,FALSE)) -> - | AV63: =IF(AV61="","",VLOOKUP(AV61,'【記載例】シフト記号表（勤務時間帯）'!$C$5:$Y$46,23,FALSE)) ->  | AW63: =IF(AW61="","",VLOOKUP(AW61,'【記載例】シフト記号表（勤務時間帯）'!$C$5:$Y$46,23,FALSE)) ->  | AX63: =IF(AX61="","",VLOOKUP(AX61,'【記載例】シフト記号表（勤務時間帯）'!$C$5:$Y$46,23,FALSE)) ->  | AY63: =IF($BB$3="計画",SUM(T63:AU63),IF($BB$3="実績",SUM(T63:AX63),"")) -> 0 | BA63: =IF($BB$3="計画",AY63/4,IF($BB$3="実績",(AY63/($BB$7/7)),"")) -> 0
B64: (14) 宿直① （上記における該当者のNoを記載） | T64: 9 | U64: 5 | V64: 6 | W64: 7 | X64: 3 | Y64: 5 | Z64: 4 | AA64: 9 | AB64: 8 | AC64: 3 | AD64: 5 | AE64: 6 | AF64: 7 | AG64: 4 | AH64: 3 | AI64: 9 | AJ64: 6 | AK64: 7 | AL64: 8 | AM64: 9 | AN64: 4 | AO64: 7 | AP64: 5 | AQ64: 6 | AR64: 8 | AS64: 3 | AT64: 7 | AU64: 5
B65: (14) 宿直② （上記における該当者のNoを記載）
B66: (15) 日ごとの通いサービスの実利用者数 | T66: 10 | U66: 10 | V66: 10 | W66: 10 | X66: 10 | Y66: 10 | Z66: 10 | AA66: 10 | AB66: 10 | AC66: 10 | AD66: 10 | AE66: 10 | AF66: 10 | AG66: 10 | AH66: 10 | AI66: 10 | AJ66: 10 | AK66: 10 | AL66: 10 | AM66: 10 | AN66: 10 | AO66: 10 | AP66: 10 | AQ66: 10 | AR66: 10 | AS66: 10 | AT66: 10 | AU66: 10
B67: (16) 日ごとの宿泊サービスの実利用者数 | T67: 3 | U67: 3 | V67: 3 | W67: 3 | X67: 3 | Y67: 3 | Z67: 3 | AA67: 3 | AB67: 3 | AC67: 3 | AD67: 3 | AE67: 3 | AF67: 3 | AG67: 3 | AH67: 3 | AI67: 3 | AJ67: 3 | AK67: 3 | AL67: 3 | AM67: 3 | AN67: 3 | AO67: 3 | AP67: 3 | AQ67: 3 | AR67: 3 | AS67: 3 | AT67: 3 | AU67: 3
B68: (17) 介護従業者（看護職員を含む）の日中の勤務時間の合計 | T68: =IF((SUMIF($C$19:$E$63,"介護従業者",T19:T63)+SUMIF($C$19:$E$63,"看護職員",T19:T63))=0,"",SUMIF($C$19:$E$63,"介護従業者",T19:T63)+SUMIF($C$19:$E$63,"看護職員",T19:T63)) -> 51 | U68: 50.5 | V68: 51 | W68: 50.5 | X68: 50.5 | Y68: 51.5 | Z68: 50.5 | AA68: 54 | AB68: 53.5 | AC68: 50.5 | AD68: 54 | AE68: 53.5 | AF68: 51 | AG68: 53 | AH68: 51.5 | AI68: 50.5 | AJ68: 50.5 | AK68: 54 | AL68: 50.5 | AM68: 48.5 | AN68: 50.5 | AO68: 54 | AP68: 58.5 | AQ68: 56.5 | AR68: 51 | AS68: 53.5 | AT68: 51 | AU68: 50.5 | AY68: =IF($BB$3="計画",SUM(T68:AU68),IF($BB$3="実績",SUM(T68:AX68),"")) -> 1456
B69: (18) 看護職員の日中の勤務時間の合計 | T69: =IF(SUMIF($C$19:$E$63,"看護職員",T19:T63)=0,"",SUMIF($C$19:$E$63,"看護職員",T19:T63)) -> 29 | U69: 32 | V69: 32 | W69: 32 | X69: 24 | Y69: 24 | Z69: 32 | AA69: 32 | AB69: 40 | AC69: 32 | AD69: 24 | AE69: 40 | AF69: 32 | AG69: 40 | AH69: 24 | AI69: 32 | AJ69: 32 | AK69: 24 | AL69: 32 | AM69: 24 | AN69: 32 | AO69: 32 | AP69: 40 | AQ69: 32 | AR69: 32 | AS69: 32 | AT69: 32 | AU69: 24 | AY69: =IF($BB$3="計画",SUM(T69:AU69),IF($BB$3="実績",SUM(T69:AX69),"")) -> 869
B70: (19) 介護従業者（看護職員を含む）の夜間・深夜の勤務時間の合計 | T70: =IF((SUMIF($F$19:$F$63,"介護従業者",T19:T63)+SUMIF($F$19:$F$63,"看護職員",T19:T63))=0,"",(SUMIF($F$19:$F$63,"介護従業者",T19:T63)+SUMIF($F$19:$F$63,"看護職員",T19:T63))) -> 11 | U70: =IF((SUMIF($F$19:$F$63,"介護従業者",U19:U63)+SUMIF($F$19:$F$63,"看護職員",U19:U63))=0,"",(SUMIF($F$19:$F$63,"介護従業者",U19:U63)+SUMIF($F$19:$F$63,"看護職員",U19:U63))) -> 11 | V70: 11 | W70: 11 | X70: 11 | Y70: 11 | Z70: 11 | AA70: 11 | AB70: 11 | AC70: 11 | AD70: 11 | AE70: 11 | AF70: 11 | AG70: 11 | AH70: 11 | AI70: 11 | AJ70: 11 | AK70: 11 | AL70: 11 | AM70: 11 | AN70: 11 | AO70: 11 | AP70: 11 | AQ70: 11 | AR70: 11 | AS70: 11 | AT70: 11 | AU70: 11 | AY70: =IF($BB$3="計画",SUM(T70:AU70),IF($BB$3="実績",SUM(T70:AX70),"")) -> 308

Sheet 【記載例】シフト記号表（勤務時間帯）
B1: ≪要 提出≫
B2: ■シフト記号表（勤務時間帯） | E2: ※24時間表記 | I2: 休憩時間1時間は「1:00」、休憩時間45分は「00:45」と入力してください。
E3: 勤務時間 | M3: 日中の時間帯 | Q3: 日中の勤務時間 | Y3: 夜間及び深夜
B4: （記号の意味） | C4: 記号 | E4: 始業時間 | G4: 終業時間 | I4: うち、休憩時間 | K4: 勤務時間 | M4: 開始 | O4: 終了 | Q4: 開始 | S4: 終了 | U4: うち、休憩時間 | W4: 勤務時間 | Y4: の勤務時間
B5: 休：休暇 | C5: 休 | D5: ： | E5: - | F5: ～ | G5: - | H5: （ | I5: - | J5: ） | K5: - | M5: - | N5: ～ | O5: - | Q5: - | R5: ～ | S5: - | T5: （ | U5: - | V5: ） | W5: - | Y5: -
B6: 出：出張 | C6: 出 | D6: ： | E6: - | F6: ～ | G6: - | H6: （ | I6: - | J6: ） | K6: - | M6: - | N6: ～ | O6: - | Q6: - | R6: ～ | S6: - | T6: （ | U6: - | V6: ） | W6: - | Y6: -
B7: 研：研修 | C7: 研 | D7: ： | E7: - | F7: ～ | G7: - | H7: （ | I7: - | J7: ） | K7: - | M7: - | N7: ～ | O7: - | Q7: - | R7: ～ | S7: - | T7: （ | U7: - | V7: ） | W7: - | Y7: -
C8: a | D8: ： | E8: 07:00:00 | F8: ～ | G8: 16:00:00 | H8: （ | I8: 01:00:00 | J8: ） | K8: =IF(OR(E8="",G8=""),"",(G8+IF(E8>G8,1,0)-E8-I8)*24) -> 8 | M8: =看多機!$J$11 -> 07:00:00 | N8: ～ | O8: =看多機!$N$11 -> 20:00:00 | Q8: =IF(E8="","",IF(E8<M8,M8,IF(E8>=O8,"",E8))) -> 07:00:00 | R8: ～ | S8: =IF(G8="","",IF(G8>E8,IF(G8<O8,G8,O8),O8)) -> 16:00:00 | T8: （ | U8: =I8 -> 01:00:00 | V8: ） | W8: =IF(Q8="","",IF((S8+IF(Q8>S8,1,0)-Q8-U8)*24=0,"",(S8+IF(Q8>S8,1,0)-Q8-U8)*24)) -> 8 | Y8: =IF(W8="",K8,IF(OR(K8-W8=0,K8-W8<0),"-",K8-W8)) -> -
C9: b | D9: ： | E9: 11:00:00 | F9: ～ | G9: 20:00:00 | H9: （ | I9: 01:00:00 | J9: ） | K9: =IF(OR(E9="",G9=""),"",(G9+IF(E9>G9,1,0)-E9-I9)*24) -> 8 | M9: =看多機!$J$11 -> 07:00:00 | N9: ～ | O9: =看多機!$N$11 -> 20:00:00 | Q9: 11:00:00 | R9: ～ | S9: 20:00:00 | T9: （ | U9: =I9 -> 01:00:00 | V9: ） | W9: =IF(Q9="","",IF((S9+IF(Q9>S9,1,0)-Q9-U9)*24=0,"",(S9+IF(Q9>S9,1,0)-Q9-U9)*24)) -> 8 | Y9: =IF(W9="",K9,IF(OR(K9-W9=0,K9-W9<0),"-",K9-W9)) -> -
C10: c | D10: ： | E10: 09:00:00 | F10: ～ | G10: 18:00:00 | H10: （ | I10: 01:00:00 | J10: ） | K10: 8 | M10: =看多機!$J$11 -> 07:00:00 | N10: ～ | O10: =看多機!$N$11 -> 20:00:00 | Q10: 09:00:00 | R10: ～ | S10: 18:00:00 | T10: （ | U10: 01:00:00 | V10: ） | W10: 8 | Y10: -
C11: d | D11: ： | E11: 08:30:00 | F11: ～ | G11: 17:30:00 | H11: （ | I11: 01:00:00 | J11: ） | K11: 8 | M11: =看多機!$J$11 -> 07:00:00 | N11: ～ | O11: =看多機!$N$11 -> 20:00:00 | Q11: 08:30:00 | R11: ～ | S11: 17:30:00 | T11: （ | U11: 01:00:00 | V11: ） | W11: 8 | Y11: -
C12: e | D12: ： | E12: 09:00:00 | F12: ～ | G12: 14:30:00 | H12: （ | I12: 00:00:00 | J12: ） | K12: 5.5 | M12: =看多機!$J$11 -> 07:00:00 | N12: ～ | O12: =看多機!$N$11 -> 20:00:00 | Q12: 09:00:00 | R12: ～ | S12: 14:30:00 | T12: （ | U12: 00:00:00 | V12: ） | W12: 5.5 | Y12: -
C13: f | D13: ： | E13: 09:00:00 | F13: ～ | G13: 15:00:00 | H13: （ | I13: 00:30:00 | J13: ） | K13: 5.5 | M13: =看多機!$J$11 -> 07:00:00 | N13: ～ | O13: =看多機!$N$11 -> 20:00:00 | Q13: 09:00:00 | R13: ～ | S13: 15:00:00 | T13: （ | U13: 00:30:00 | V13: ） | W13: 5.5 | Y13: -
C14: g | D14: ： | E14: 07:00:00 | F14: ～ | G14: 09:30:00 | H14: （ | I14: 00:00:00 | J14: ） | K14: 2.5 | M14: =看多機!$J$11 -> 07:00:00 | N14: ～ | O14: =看多機!$N$11 -> 20:00:00 | Q14: 07:00:00 | R14: ～ | S14: 09:30:00 | T14: （ | U14: 00:00:00 | V14: ） | W14: 2.5 | Y14: -
C15: h | D15: ： | E15: 14:30:00 | F15: ～ | G15: 20:00:00 | H15: （ | I15: 00:00:00 | J15: ） | K15: 5.5 | M15: =看多機!$J$11 -> 07:00:00 | N15: ～ | O15: =看多機!$N$11 -> 20:00:00 | Q15: 14:30:00 | R15: ～ | S15: 20:00:00 | T15: （ | U15: 00:00:00 | V15: ） | W15: 5.5 | Y15: -
C16: i | D16: ： | E16: 16:00:00 | F16: ～ | G16: 07:00:00 | H16: （ | I16: 01:00:00 | J16: ） | K16: 14 | M16: =看多機!$J$11 -> 07:00:00 | N16: ～ | O16: =看多機!$N$11 -> 20:00:00 | Q16: 16:00:00 | R16: ～ | S16: 20:00:00 | T16: （ | U16: 01:00:00 | V16: ） | W16: 3 | Y16: 11
C17: j | D17: ： | E17: 07:00:00 | F17: ～ | G17: 12:00:00 | H17: （ | I17: 00:00:00 | J17: ） | K17: 5 | M17: =看多機!$J$11 -> 07:00:00 | N17: ～ | O17: =看多機!$N$11 -> 20:00:00 | Q17: 07:00:00 | R17: ～ | S17: 12:00:00 | T17: （ | U17: 00:00:00 | V17: ） | W17: 5 | Y17: -
C18: k | D18: ： | F18: ～ | H18: （ | I18: 00:00:00 | J18: ） | M18: =看多機!$J$11 -> 07:00:00 | N18: ～ | O18: =看多機!$N$11 -> 20:00:00 | R18: ～ | T18: （ | U18: 00:00:00 | V18: ）
C19: l | D19: ： | F19: ～ | H19: （ | I19: 00:00:00 | J19: ） | M19: =看多機!$J$11 -> 07:00:00 | N19: ～ | O19: =看多機!$N$11 -> 20:00:00 | R19: ～ | T19: （ | U19: 00:00:00 | V19: ）
C20: m | D20: ： | F20: ～ | H20: （ | I20: 00:00:00 | J20: ） | M20: =看多機!$J$11 -> 07:00:00 | N20: ～ | O20: =看多機!$N$11 -> 20:00:00 | R20: ～ | T20: （ | U20: 00:00:00 | V20: ）
C21: n | D21: ： | F21: ～ | H21: （ | I21: 00:00:00 | J21: ） | M21: =看多機!$J$11 -> 07:00:00 | N21: ～ | O21: =看多機!$N$11 -> 20:00:00 | R21: ～ | T21: （ | U21: 00:00:00 | V21: ）
C22: o | D22: ： | F22: ～ | H22: （ | J22: ） | K22: 1 | N22: ～ | R22: ～ | T22: （ | V22: ） | W22: 1 | Y22: -
C23: p | D23: ： | F23: ～ | H23: （ | J23: ） | K23: 2 | N23: ～ | R23: ～ | T23: （ | V23: ） | W23: 2 | Y23: -
C24: q | D24: ： | F24: ～ | H24: （ | J24: ） | K24: 3 | N24: ～ | R24: ～ | T24: （ | V24: ） | W24: 3 | Y24: -
C25: r | D25: ： | F25: ～ | H25: （ | J25: ） | K25: 4 | N25: ～ | R25: ～ | T25: （ | V25: ） | W25: 4 | Y25: -
C26: s | D26: ： | F26: ～ | H26: （ | J26: ） | K26: 5 | N26: ～ | R26: ～ | T26: （ | V26: ） | W26: 5 | Y26: -
C27: t | D27: ： | F27: ～ | H27: （ | J27: ） | K27: 6 | N27: ～ | R27: ～ | T27: （ | V27: ） | W27: 6 | Y27: -
C28: u | D28: ： | F28: ～ | H28: （ | J28: ） | K28: 7 | N28: ～ | R28: ～ | T28: （ | V28: ） | W28: 7 | Y28: -
C29: v | D29: ： | F29: ～ | H29: （ | J29: ） | K29: 8 | N29: ～ | R29: ～ | T29: （ | V29: ） | W29: 8 | Y29: -
C30: w | D30: ： | F30: ～ | H30: （ | J30: ） | K30: 1 | N30: ～ | R30: ～ | T30: （ | V30: ） | W30: - | Y30: 1
C31: x | D31: ： | F31: ～ | H31: （ | J31: ） | K31: 2 | N31: ～ | R31: ～ | T31: （ | V31: ） | W31: - | Y31: 2
C32: y | D32: ： | F32: ～ | H32: （ | J32: ） | K32: 3 | N32: ～ | R32: ～ | T32: （ | V32: ） | W32: - | Y32: 3
C33: z | D33: ： | F33: ～ | H33: （ | J33: ） | K33: 4 | N33: ～ | R33: ～ | T33: （ | V33: ） | W33: - | Y33: 4
C34: aa | D34: ： | F34: ～ | H34: （ | J34: ） | K34: 5 | N34: ～ | R34: ～ | T34: （ | V34: ） | W34: - | Y34: 5
C35: ab | D35: ： | F35: ～ | H35: （ | J35: ） | K35: 6 | N35: ～ | R35: ～ | T35: （ | V35: ） | W35: - | Y35: 6
C36: ac | D36: ： | F36: ～ | H36: （ | J36: ） | K36: 7 | N36: ～ | R36: ～ | T36: （ | V36: ） | W36: - | Y36: 7
C37: ad | D37: ： | F37: ～ | H37: （ | J37: ） | K37: 8 | N37: ～ | R37: ～ | T37: （ | V37: ） | W37: - | Y37: 8
C38: ae | D38: ： | F38: ～ | H38: （ | I38: 00:00:00 | J38: ） | K38: =IF(OR(E38="",G38=""),"",(G38+IF(E38>G38,1,0)-E38-I38)*24) ->  | M38: =看多機!$J$11 -> 07:00:00 | N38: ～ | O38: =看多機!$N$11 -> 20:00:00 | Q38: =IF(E38="","",IF(E38<M38,M38,IF(E38>=O38,"",E38))) ->  | R38: ～ | S38: =IF(G38="","",IF(G38>E38,IF(G38<O38,G38,O38),O38)) ->  | T38: （ | U38: =I38 -> 00:00:00 | V38: ） | W38: =IF(Q38="","",IF((S38+IF(Q38>S38,1,0)-Q38-U38)*24=0,"",(S38+IF(Q38>S38,1,0)-Q38-U38)*24)) ->  | Y38: =IF(W38="",K38,IF(OR(K38-W38=0,K38-W38<0),"-",K38-W38)) -> 
C39: af | D39: ： | F39: ～ | H39: （ | I39: 00:00:00 | J39: ） | M39: =看多機!$J$11 -> 07:00:00 | N39: ～ | O39: =看多機!$N$11 -> 20:00:00 | R39: ～ | T39: （ | U39: =I39 -> 00:00:00 | V39: ） | Y39: =IF(W39="",K39,IF(OR(K39-W39=0,K39-W39<0),"-",K39-W39)) -> 
C40: ag | D40: ： | F40: ～ | H40: （ | I40: 00:00:00 | J40: ） | K40: =IF(OR(E40="",G40=""),"",(G40+IF(E40>G40,1,0)-E40-I40)*24) ->  | M40: =看多機!$J$11 -> 07:00:00 | N40: ～ | O40: =看多機!$N$11 -> 20:00:00 | Q40: =IF(E40="","",IF(E40<M40,M40,IF(E40>=O40,"",E40))) ->  | R40: ～ | S40: =IF(G40="","",IF(G40>E40,IF(G40<O40,G40,O40),O40)) ->  | T40: （ | U40: =I40 -> 00:00:00 | V40: ） | W40: =IF(Q40="","",IF((S40+IF(Q40>S40,1,0)-Q40-U40)*24=0,"",(S40+IF(Q40>S40,1,0)-Q40-U40)*24)) -> 
B41: 早：早退 | C41: 早退(1) | D41: ： | F41: ～ | H41: （ | I41: 00:00:00 | J41: ） | M41: =看多機!$J$11 -> 07:00:00 | N41: ～ | O41: =看多機!$N$11 -> 20:00:00 | R41: ～ | T41: （ | U41: 00:00:00 | V41: ） | AA41: 実績で早退者がいた場合に使用
B42: 早：早退 | C42: 早退(2) | D42: ： | F42: ～ | H42: （ | I42: 00:00:00 | J42: ） | M42: =看多機!$J$11 -> 07:00:00 | N42: ～ | O42: =看多機!$N$11 -> 20:00:00 | R42: ～ | T42: （ | U42: 00:00:00 | V42: ） | AA42: 実績で早退者がいた場合に使用
C43: az | D43: ： | F43: ～ | H43: （ | I43: 00:00:00 | J43: ） | M43: =看多機!$J$11 -> 07:00:00 | N43: ～ | O43: =看多機!$N$11 -> 20:00:00 | R43: ～ | T43: （ | U43: 00:00:00 | V43: ） | W43: =IF(Q43="","",IF((S43+IF(Q43>S43,1,0)-Q43-U43)*24=0,"",(S43+IF(Q43>S43,1,0)-Q43-U43)*24)) -> 
B44: 1日のうち | D44: ： | E44: 07:00:00 | F44: ～ | G44: 09:30:00 | H44: （ | I44: 00:00:00 | J44: ） | K44: 2.5 | M44: =看多機!$J$11 -> 07:00:00 | N44: ～ | O44: =看多機!$N$11 -> 20:00:00 | Q44: 07:00:00 | R44: ～ | S44: 09:30:00 | T44: （ | U44: 00:00:00 | V44: ） | W44: 2.5 | Y44: -
B45: 朝・夜の2回 | D45: ： | E45: 16:30:00 | F45: ～ | G45: 20:00:00 | H45: （ | I45: 00:00:00 | J45: ） | K45: 3.5 | M45: =看多機!$J$11 -> 07:00:00 | N45: ～ | O45: =看多機!$N$11 -> 20:00:00 | Q45: 16:30:00 | R45: ～ | S45: 20:00:00 | T45: （ | U45: 00:00:00 | V45: ） | W45: 3.5 | Y45: -
B46: 勤務の場合 | C46: ba | D46: ： | E46: - | F46: ～ | G46: - | H46: （ | I46: - | J46: ） | K46: =K44+K45 -> 6 | M46: =看多機!$J$11 -> 07:00:00 | N46: ～ | O46: =看多機!$N$11 -> 20:00:00 | R46: ～ | S46: 20:00:00 | T46: （ | U46: - | V46: ） | W46: =W44+W45 -> 6 | Y46: -
B47: （プルダウン対象外）→ | C47: 宿直 | D47: ： | E47: 20:00:00 | F47: ～ | G47: 07:00:00 | H47: （ | J47: ） | K47: =IF(OR(E47="",G47=""),"",(G47+IF(E47>G47,1,0)-E47-I47)*24) -> 11 | M47: =看多機!$J$11 -> 07:00:00 | N47: ～ | O47: =看多機!$N$11 -> 20:00:00 | Q47: =IF(E47="","",IF(E47<M47,M47,IF(E47>=O47,"",E47))) ->  | R47: ～ | S47: =IF(G47="","",IF(G47>E47,IF(G47<O47,G47,O47),O47)) -> 20:00:00 | T47: （ | U47: =I47 -> 00:00:00 | V47: ） | W47: =IF(Q47="","",IF((S47+IF(Q47>S47,1,0)-Q47-U47)*24=0,"",(S47+IF(Q47>S47,1,0)-Q47-U47)*24)) ->  | Y47: 11

Sheet 看多機
C1: （参考様式） | J1: 従業者の勤務の体制及び勤務形態一覧表 | AP1: サービス種別（ | AQ1: 看護小規模多機能型居宅介護 | BG1: ）
Y2: 令和 | Z2: 2 | AB2: ( | AC2: =IF(Z2=0,"",YEAR(DATE(2018+Z2,1,1))) -> 2020 | AE2: ) | AF2: 年 | AG2: 4 | AI2: 月 | AP2: 事業所名（ | AQ2: ○○サービス | BG2: ）
BA3: (1) | BB3: 計画
AH5: (2) 事業所における常勤の従業者が勤務すべき時間数 | AT5: 8 | AV5: 時間/日 | AX5: 40 | AZ5: 時間/週 | BB5: 160 | BD5: 時間/月
AY7: 当月の日数 | BB7: =DAY(EOMONTH(DATE(AC2,AG2,1),0)) -> 30 | BD7: 日
AN9: (4) 定員 | AX9: (5) 利用者数（通いサービス）
B10: (3) 日中／夜間及び深夜の時間帯の区分 | AO10: 登録定員 | AV10: 人 | AY10: 前年度の平均値 | BE10: 人
B11: 利用者の生活時間帯（日中） | J11: 07:00:00 | M11: ～ | N11: 20:00:00 | AO11: 通いサービスの定員 | AV11: 人 | AY11: （新規に指定を受ける場合）
B12: 夜間及び深夜の時間帯 | J12: 20:00:00 | M12: ～ | N12: 07:00:00 | AO12: 宿泊サービスの定員 | AV12: 人 | AY12: 推定数 | BE12: 人
B14: No | C14: (6) 職種 | G14: (7) 勤務 形態 | H14: (8) 資格 | L14: (9) 氏 名 | O14: 日中／夜間及び深夜 の区分 | AH14: (10) 勤 務 時 間 数 | AM14: （宿直 ･･･ | AP14: ） | AY14: =IF(BB3="計画","(11)1～4週の勤務時間数合計","(11)1か月の勤務時間数 合計") -> (11)1～4週の勤務時間数合計 | BA14: (12) 週平均 勤務時間数 | BC14: (13) 兼務状況 （兼務先/兼務する職務の内容 /兼務時間数））
T15: 1週目 | AA15: 2週目 | AH15: 3週目 | AO15: 4週目 | AV15: 5週目
T16: 1 | U16: 2 | V16: 3 | W16: 4 | X16: 5 | Y16: 6 | Z16: 7 | AA16: 8 | AB16: 9 | AC16: 10 | AD16: 11 | AE16: 12 | AF16: 13 | AG16: 14 | AH16: 15 | AI16: 16 | AJ16: 17 | AK16: 18 | AL16: 19 | AM16: 20 | AN16: 21 | AO16: 22 | AP16: 23 | AQ16: 24 | AR16: 25 | AS16: 26 | AT16: 27 | AU16: 28 | AV16: =IF($BB$3="実績",IF(DAY(DATE($AC$2,$AG$2,29))=29,29,""),"") ->  | AW16: =IF($BB$3="実績",IF(DAY(DATE($AC$2,$AG$2,30))=30,30,""),"") ->  | AX16: =IF($BB$3="実績",IF(DAY(DATE($AC$2,$AG$2,31))=31,31,""),"") -> 
T17: =WEEKDAY(DATE($AC$2,$AG$2,1)) -> 4 | U17: =WEEKDAY(DATE($AC$2,$AG$2,2)) -> 5 | V17: =WEEKDAY(DATE($AC$2,$AG$2,3)) -> 6 | W17: =WEEKDAY(DATE($AC$2,$AG$2,4)) -> 7 | X17: =WEEKDAY(DATE($AC$2,$AG$2,5)) -> 1 | Y17: =WEEKDAY(DATE($AC$2,$AG$2,6)) -> 2 | Z17: =WEEKDAY(DATE($AC$2,$AG$2,7)) -> 3 | AA17: =WEEKDAY(DATE($AC$2,$AG$2,8)) -> 4 | AB17: =WEEKDAY(DATE($AC$2,$AG$2,9)) -> 5 | AC17: =WEEKDAY(DATE($AC$2,$AG$2,10)) -> 6 | AD17: =WEEKDAY(DATE($AC$2,$AG$2,11)) -> 7 | AE17: =WEEKDAY(DATE($AC$2,$AG$2,12)) -> 1 | AF17: =WEEKDAY(DATE($AC$2,$AG$2,13)) -> 2 | AG17: =WEEKDAY(DATE($AC$2,$AG$2,14)) -> 3 | AH17: =WEEKDAY(DATE($AC$2,$AG$2,15)) -> 4 | AI17: =WEEKDAY(DATE($AC$2,$AG$2,16)) -> 5 | AJ17: =WEEKDAY(DATE($AC$2,$AG$2,17)) -> 6 | AK17: =WEEKDAY(DATE($AC$2,$AG$2,18)) -> 7 | AL17: =WEEKDAY(DATE($AC$2,$AG$2,19)) -> 1 | AM17: =WEEKDAY(DATE($AC$2,$AG$2,20)) -> 2 | AN17: =WEEKDAY(DATE($AC$2,$AG$2,21)) -> 3 | AO17: =WEEKDAY(DATE($AC$2,$AG$2,22)) -> 4 | AP17: =WEEKDAY(DATE($AC$2,$AG$2,23)) -> 5 | AQ17: =WEEKDAY(DATE($AC$2,$AG$2,24)) -> 6 | AR17: =WEEKDAY(DATE($AC$2,$AG$2,25)) -> 7 | AS17: =WEEKDAY(DATE($AC$2,$AG$2,26)) -> 1 | AT17: =WEEKDAY(DATE($AC$2,$AG$2,27)) -> 2 | AU17: =WEEKDAY(DATE($AC$2,$AG$2,28)) -> 3 | AV17: =IF(AV16=29,WEEKDAY(DATE($AC$2,$AG$2,29)),0) -> 0 | AW17: =IF(AW16=30,WEEKDAY(DATE($AC$2,$AG$2,30)),0) -> 0 | AX17: =IF(AX16=31,WEEKDAY(DATE($AC$2,$AG$2,31)),0) -> 0
T18: =IF(T17=1,"日",IF(T17=2,"月",IF(T17=3,"火",IF(T17=4,"水",IF(T17=5,"木",IF(T17=6,"金","土")))))) -> 水 | U18: =IF(U17=1,"日",IF(U17=2,"月",IF(U17=3,"火",IF(U17=4,"水",IF(U17=5,"木",IF(U17=6,"金","土")))))) -> 木 | V18: 金 | W18: 土 | X18: 日 | Y18: 月 | Z18: 火 | AA18: =IF(AA17=1,"日",IF(AA17=2,"月",IF(AA17=3,"火",IF(AA17=4,"水",IF(AA17=5,"木",IF(AA17=6,"金","土")))))) -> 水 | AB18: 木 | AC18: 金 | AD18: 土 | AE18: 日 | AF18: 月 | AG18: 火 | AH18: =IF(AH17=1,"日",IF(AH17=2,"月",IF(AH17=3,"火",IF(AH17=4,"水",IF(AH17=5,"木",IF(AH17=6,"金","土")))))) -> 水 | AI18: 木 | AJ18: 金 | AK18: 土 | AL18: 日 | AM18: 月 | AN18: 火 | AO18: =IF(AO17=1,"日",IF(AO17=2,"月",IF(AO17=3,"火",IF(AO17=4,"水",IF(AO17=5,"木",IF(AO17=6,"金","土")))))) -> 水 | AP18: 木 | AQ18: 金 | AR18: 土 | AS18: 日 | AT18: 月 | AU18: 火 | AV18: =IF(AV17=1,"日",IF(AV17=2,"月",IF(AV17=3,"火",IF(AV17=4,"水",IF(AV17=5,"木",IF(AV17=6,"金",IF(AV17=0,"","土"))))))) ->  | AW18: =IF(AW17=1,"日",IF(AW17=2,"月",IF(AW17=3,"火",IF(AW17=4,"水",IF(AW17=5,"木",IF(AW17=6,"金",IF(AW17=0,"","土"))))))) ->  | AX18: =IF(AX17=1,"日",IF(AX17=2,"月",IF(AX17=3,"火",IF(AX17=4,"水",IF(AX17=5,"木",IF(AX17=6,"金",IF(AX17=0,"","土"))))))) -> 
O19: シフト記号
B20: 1 | O20: 日中の勤務時間数 | T20: =IF(T19="","",VLOOKUP(T19,'シフト記号表（勤務時間帯）'!$C$5:$W$46,21,FALSE)) ->  | U20: =IF(U19="","",VLOOKUP(U19,'シフト記号表（勤務時間帯）'!$C$5:$W$46,21,FALSE)) ->  | V20: =IF(V19="","",VLOOKUP(V19,'シフト記号表（勤務時間帯）'!$C$5:$W$46,21,FALSE)) ->  | W20: =IF(W19="","",VLOOKUP(W19,'シフト記号表（勤務時間帯）'!$C$5:$W$46,21,FALSE)) ->  | X20: =IF(X19="","",VLOOKUP(X19,'シフト記号表（勤務時間帯）'!$C$5:$W$46,21,FALSE)) ->  | Y20: =IF(Y19="","",VLOOKUP(Y19,'シフト記号表（勤務時間帯）'!$C$5:$W$46,21,FALSE)) ->  | Z20: =IF(Z19="","",VLOOKUP(Z19,'シフト記号表（勤務時間帯）'!$C$5:$W$46,21,FALSE)) ->  | AA20: =IF(AA19="","",VLOOKUP(AA19,'シフト記号表（勤務時間帯）'!$C$5:$W$46,21,FALSE)) ->  | AB20: =IF(AB19="","",VLOOKUP(AB19,'シフト記号表（勤務時間帯）'!$C$5:$W$46,21,FALSE)) ->  | AC20: =IF(AC19="","",VLOOKUP(AC19,'シフト記号表（勤務時間帯）'!$C$5:$W$46,21,FALSE)) ->  | AD20: =IF(AD19="","",VLOOKUP(AD19,'シフト記号表（勤務時間帯）'!$C$5:$W$46,21,FALSE)) ->  | AE20: =IF(AE19="","",VLOOKUP(AE19,'シフト記号表（勤務時間帯）'!$C$5:$W$46,21,FALSE)) ->  | AF20: =IF(AF19="","",VLOOKUP(AF19,'シフト記号表（勤務時間帯）'!$C$5:$W$46,21,FALSE)) ->  | AG20: =IF(AG19="","",VLOOKUP(AG19,'シフト記号表（勤務時間帯）'!$C$5:$W$46,21,FALSE)) ->  | AH20: =IF(AH19="","",VLOOKUP(AH19,'シフト記号表（勤務時間帯）'!$C$5:$W$46,21,FALSE)) ->  | AI20: =IF(AI19="","",VLOOKUP(AI19,'シフト記号表（勤務時間帯）'!$C$5:$W$46,21,FALSE)) ->  | AJ20: =IF(AJ19="","",VLOOKUP(AJ19,'シフト記号表（勤務時間帯）'!$C$5:$W$46,21,FALSE)) ->  | AK20: =IF(AK19="","",VLOOKUP(AK19,'シフト記号表（勤務時間帯）'!$C$5:$W$46,21,FALSE)) ->  | AL20: =IF(AL19="","",VLOOKUP(AL19,'シフト記号表（勤務時間帯）'!$C$5:$W$46,21,FALSE)) ->  | AM20: =IF(AM19="","",VLOOKUP(AM19,'シフト記号表（勤務時間帯）'!$C$5:$W$46,21,FALSE)) ->  | AN20: =IF(AN19="","",VLOOKUP(AN19,'シフト記号表（勤務時間帯）'!$C$5:$W$46,21,FALSE)) ->  | AO20: =IF(AO19="","",VLOOKUP(AO19,'シフト記号表（勤務時間帯）'!$C$5:$W$46,21,FALSE)) ->  | AP20: =IF(AP19="","",VLOOKUP(AP19,'シフト記号表（勤務時間帯）'!$C$5:$W$46,21,FALSE)) ->  | AQ20: =IF(AQ19="","",VLOOKUP(AQ19,'シフト記号表（勤務時間帯）'!$C$5:$W$46,21,FALSE)) ->  | AR20: =IF(AR19="","",VLOOKUP(AR19,'シフト記号表（勤務時間帯）'!$C$5:$W$46,21,FALSE)) ->  | AS20: =IF(AS19="","",VLOOKUP(AS19,'シフト記号表（勤務時間帯）'!$C$5:$W$46,21,FALSE)) ->  | AT20: =IF(AT19="","",VLOOKUP(AT19,'シフト記号表（勤務時間帯）'!$C$5:$W$46,21,FALSE)) ->  | AU20: =IF(AU19="","",VLOOKUP(AU19,'シフト記号表（勤務時間帯）'!$C$5:$W$46,21,FALSE)) ->  | AV20: =IF(AV19="","",VLOOKUP(AV19,'シフト記号表（勤務時間帯）'!$C$5:$W$46,21,FALSE)) ->  | AW20: =IF(AW19="","",VLOOKUP(AW19,'シフト記号表（勤務時間帯）'!$C$5:$W$46,21,FALSE)) ->  | AX20: =IF(AX19="","",VLOOKUP(AX19,'シフト記号表（勤務時間帯）'!$C$5:$W$46,21,FALSE)) ->  | AY20: =IF($BB$3="計画",SUM(T20:AU20),IF($BB$3="実績",SUM(T20:AX20),"")) -> 0 | BA20: =IF($BB$3="計画",AY20/4,IF($BB$3="実績",(AY20/($BB$7/7)),"")) -> 0
F21: =C20 -> 0 | O21: 夜間・深夜の勤務時間数 | T21: =IF(T19="","",VLOOKUP(T19,'シフト記号表（勤務時間帯）'!$C$5:$Y$46,23,FALSE)) ->  | U21: =IF(U19="","",VLOOKUP(U19,'シフト記号表（勤務時間帯）'!$C$5:$Y$46,23,FALSE)) ->  | V21: =IF(V19="","",VLOOKUP(V19,'シフト記号表（勤務時間帯）'!$C$5:$Y$46,23,FALSE)) ->  | W21: =IF(W19="","",VLOOKUP(W19,'シフト記号表（勤務時間帯）'!$C$5:$Y$46,23,FALSE)) ->  | X21: =IF(X19="","",VLOOKUP(X19,'シフト記号表（勤務時間帯）'!$C$5:$Y$46,23,FALSE)) ->  | Y21: =IF(Y19="","",VLOOKUP(Y19,'シフト記号表（勤務時間帯）'!$C$5:$Y$46,23,FALSE)) ->  | Z21: =IF(Z19="","",VLOOKUP(Z19,'シフト記号表（勤務時間帯）'!$C$5:$Y$46,23,FALSE)) ->  | AA21: =IF(AA19="","",VLOOKUP(AA19,'シフト記号表（勤務時間帯）'!$C$5:$Y$46,23,FALSE)) ->  | AB21: =IF(AB19="","",VLOOKUP(AB19,'シフト記号表（勤務時間帯）'!$C$5:$Y$46,23,FALSE)) ->  | AC21: =IF(AC19="","",VLOOKUP(AC19,'シフト記号表（勤務時間帯）'!$C$5:$Y$46,23,FALSE)) ->  | AD21: =IF(AD19="","",VLOOKUP(AD19,'シフト記号表（勤務時間帯）'!$C$5:$Y$46,23,FALSE)) ->  | AE21: =IF(AE19="","",VLOOKUP(AE19,'シフト記号表（勤務時間帯）'!$C$5:$Y$46,23,FALSE)) ->  | AF21: =IF(AF19="","",VLOOKUP(AF19,'シフト記号表（勤務時間帯）'!$C$5:$Y$46,23,FALSE)) ->  | AG21: =IF(AG19="","",VLOOKUP(AG19,'シフト記号表（勤務時間帯）'!$C$5:$Y$46,23,FALSE)) ->  | AH21: =IF(AH19="","",VLOOKUP(AH19,'シフト記号表（勤務時間帯）'!$C$5:$Y$46,23,FALSE)) ->  | AI21: =IF(AI19="","",VLOOKUP(AI19,'シフト記号表（勤務時間帯）'!$C$5:$Y$46,23,FALSE)) ->  | AJ21: =IF(AJ19="","",VLOOKUP(AJ19,'シフト記号表（勤務時間帯）'!$C$5:$Y$46,23,FALSE)) ->  | AK21: =IF(AK19="","",VLOOKUP(AK19,'シフト記号表（勤務時間帯）'!$C$5:$Y$46,23,FALSE)) ->  | AL21: =IF(AL19="","",VLOOKUP(AL19,'シフト記号表（勤務時間帯）'!$C$5:$Y$46,23,FALSE)) ->  | AM21: =IF(AM19="","",VLOOKUP(AM19,'シフト記号表（勤務時間帯）'!$C$5:$Y$46,23,FALSE)) ->  | AN21: =IF(AN19="","",VLOOKUP(AN19,'シフト記号表（勤務時間帯）'!$C$5:$Y$46,23,FALSE)) ->  | AO21: =IF(AO19="","",VLOOKUP(AO19,'シフト記号表（勤務時間帯）'!$C$5:$Y$46,23,FALSE)) ->  | AP21: =IF(AP19="","",VLOOKUP(AP19,'シフト記号表（勤務時間帯）'!$C$5:$Y$46,23,FALSE)) ->  | AQ21: =IF(AQ19="","",VLOOKUP(AQ19,'シフト記号表（勤務時間帯）'!$C$5:$Y$46,23,FALSE)) ->  | AR21: =IF(AR19="","",VLOOKUP(AR19,'シフト記号表（勤務時間帯）'!$C$5:$Y$46,23,FALSE)) ->  | AS21: =IF(AS19="","",VLOOKUP(AS19,'シフト記号表（勤務時間帯）'!$C$5:$Y$46,23,FALSE)) ->  | AT21: =IF(AT19="","",VLOOKUP(AT19,'シフト記号表（勤務時間帯）'!$C$5:$Y$46,23,FALSE)) ->  | AU21: =IF(AU19="","",VLOOKUP(AU19,'シフト記号表（勤務時間帯）'!$C$5:$Y$46,23,FALSE)) ->  | AV21: =IF(AV19="","",VLOOKUP(AV19,'シフト記号表（勤務時間帯）'!$C$5:$Y$46,23,FALSE)) ->  | AW21: =IF(AW19="","",VLOOKUP(AW19,'シフト記号表（勤務時間帯）'!$C$5:$Y$46,23,FALSE)) ->  | AX21: =IF(AX19="","",VLOOKUP(AX19,'シフト記号表（勤務時間帯）'!$C$5:$Y$46,23,FALSE)) ->  | AY21: =IF($BB$3="計画",SUM(T21:AU21),IF($BB$3="実績",SUM(T21:AX21),"")) -> 0 | BA21: =IF($BB$3="計画",AY21/4,IF($BB$3="実績",(AY21/($BB$7/7)),"")) -> 0
O22: シフト記号
B23: =B20+1 -> 2 | O23: 日中の勤務時間数 | T23: =IF(T22="","",VLOOKUP(T22,'シフト記号表（勤務時間帯）'!$C$5:$W$46,21,FALSE)) ->  | U23: =IF(U22="","",VLOOKUP(U22,'シフト記号表（勤務時間帯）'!$C$5:$W$46,21,FALSE)) ->  | V23: =IF(V22="","",VLOOKUP(V22,'シフト記号表（勤務時間帯）'!$C$5:$W$46,21,FALSE)) ->  | W23: =IF(W22="","",VLOOKUP(W22,'シフト記号表（勤務時間帯）'!$C$5:$W$46,21,FALSE)) ->  | X23: =IF(X22="","",VLOOKUP(X22,'シフト記号表（勤務時間帯）'!$C$5:$W$46,21,FALSE)) ->  | Y23: =IF(Y22="","",VLOOKUP(Y22,'シフト記号表（勤務時間帯）'!$C$5:$W$46,21,FALSE)) ->  | Z23: =IF(Z22="","",VLOOKUP(Z22,'シフト記号表（勤務時間帯）'!$C$5:$W$46,21,FALSE)) ->  | AA23: =IF(AA22="","",VLOOKUP(AA22,'シフト記号表（勤務時間帯）'!$C$5:$W$46,21,FALSE)) ->  | AB23: =IF(AB22="","",VLOOKUP(AB22,'シフト記号表（勤務時間帯）'!$C$5:$W$46,21,FALSE)) ->  | AC23: =IF(AC22="","",VLOOKUP(AC22,'シフト記号表（勤務時間帯）'!$C$5:$W$46,21,FALSE)) ->  | AD23: =IF(AD22="","",VLOOKUP(AD22,'シフト記号表（勤務時間帯）'!$C$5:$W$46,21,FALSE)) ->  | AE23: =IF(AE22="","",VLOOKUP(AE22,'シフト記号表（勤務時間帯）'!$C$5:$W$46,21,FALSE)) ->  | AF23: =IF(AF22="","",VLOOKUP(AF22,'シフト記号表（勤務時間帯）'!$C$5:$W$46,21,FALSE)) ->  | AG23: =IF(AG22="","",VLOOKUP(AG22,'シフト記号表（勤務時間帯）'!$C$5:$W$46,21,FALSE)) ->  | AH23: =IF(AH22="","",VLOOKUP(AH22,'シフト記号表（勤務時間帯）'!$C$5:$W$46,21,FALSE)) ->  | AI23: =IF(AI22="","",VLOOKUP(AI22,'シフト記号表（勤務時間帯）'!$C$5:$W$46,21,FALSE)) ->  | AJ23: =IF(AJ22="","",VLOOKUP(AJ22,'シフト記号表（勤務時間帯）'!$C$5:$W$46,21,FALSE)) ->  | AK23: =IF(AK22="","",VLOOKUP(AK22,'シフト記号表（勤務時間帯）'!$C$5:$W$46,21,FALSE)) ->  | AL23: =IF(AL22="","",VLOOKUP(AL22,'シフト記号表（勤務時間帯）'!$C$5:$W$46,21,FALSE)) ->  | AM23: =IF(AM22="","",VLOOKUP(AM22,'シフト記号表（勤務時間帯）'!$C$5:$W$46,21,FALSE)) ->  | AN23: =IF(AN22="","",VLOOKUP(AN22,'シフト記号表（勤務時間帯）'!$C$5:$W$46,21,FALSE)) ->  | AO23: =IF(AO22="","",VLOOKUP(AO22,'シフト記号表（勤務時間帯）'!$C$5:$W$46,21,FALSE)) ->  | AP23: =IF(AP22="","",VLOOKUP(AP22,'シフト記号表（勤務時間帯）'!$C$5:$W$46,21,FALSE)) ->  | AQ23: =IF(AQ22="","",VLOOKUP(AQ22,'シフト記号表（勤務時間帯）'!$C$5:$W$46,21,FALSE)) ->  | AR23: =IF(AR22="","",VLOOKUP(AR22,'シフト記号表（勤務時間帯）'!$C$5:$W$46,21,FALSE)) ->  | AS23: =IF(AS22="","",VLOOKUP(AS22,'シフト記号表（勤務時間帯）'!$C$5:$W$46,21,FALSE)) ->  | AT23: =IF(AT22="","",VLOOKUP(AT22,'シフト記号表（勤務時間帯）'!$C$5:$W$46,21,FALSE)) ->  | AU23: =IF(AU22="","",VLOOKUP(AU22,'シフト記号表（勤務時間帯）'!$C$5:$W$46,21,FALSE)) ->  | AV23: =IF(AV22="","",VLOOKUP(AV22,'シフト記号表（勤務時間帯）'!$C$5:$W$46,21,FALSE)) ->  | AW23: =IF(AW22="","",VLOOKUP(AW22,'シフト記号表（勤務時間帯）'!$C$5:$W$46,21,FALSE)) ->  | AX23: =IF(AX22="","",VLOOKUP(AX22,'シフト記号表（勤務時間帯）'!$C$5:$W$46,21,FALSE)) ->  | AY23: =IF($BB$3="計画",SUM(T23:AU23),IF($BB$3="実績",SUM(T23:AX23),"")) -> 0 | BA23: =IF($BB$3="計画",AY23/4,IF($BB$3="実績",(AY23/($BB$7/7)),"")) -> 0
F24: =C23 -> 0 | O24: 夜間・深夜の勤務時間数 | T24: =IF(T22="","",VLOOKUP(T22,'シフト記号表（勤務時間帯）'!$C$5:$Y$46,23,FALSE)) ->  | U24: =IF(U22="","",VLOOKUP(U22,'シフト記号表（勤務時間帯）'!$C$5:$Y$46,23,FALSE)) ->  | V24: =IF(V22="","",VLOOKUP(V22,'シフト記号表（勤務時間帯）'!$C$5:$Y$46,23,FALSE)) ->  | W24: =IF(W22="","",VLOOKUP(W22,'シフト記号表（勤務時間帯）'!$C$5:$Y$46,23,FALSE)) ->  | X24: =IF(X22="","",VLOOKUP(X22,'シフト記号表（勤務時間帯）'!$C$5:$Y$46,23,FALSE)) ->  | Y24: =IF(Y22="","",VLOOKUP(Y22,'シフト記号表（勤務時間帯）'!$C$5:$Y$46,23,FALSE)) ->  | Z24: =IF(Z22="","",VLOOKUP(Z22,'シフト記号表（勤務時間帯）'!$C$5:$Y$46,23,FALSE)) ->  | AA24: =IF(AA22="","",VLOOKUP(AA22,'シフト記号表（勤務時間帯）'!$C$5:$Y$46,23,FALSE)) ->  | AB24: =IF(AB22="","",VLOOKUP(AB22,'シフト記号表（勤務時間帯）'!$C$5:$Y$46,23,FALSE)) ->  | AC24: =IF(AC22="","",VLOOKUP(AC22,'シフト記号表（勤務時間帯）'!$C$5:$Y$46,23,FALSE)) ->  | AD24: =IF(AD22="","",VLOOKUP(AD22,'シフト記号表（勤務時間帯）'!$C$5:$Y$46,23,FALSE)) ->  | AE24: =IF(AE22="","",VLOOKUP(AE22,'シフト記号表（勤務時間帯）'!$C$5:$Y$46,23,FALSE)) ->  | AF24: =IF(AF22="","",VLOOKUP(AF22,'シフト記号表（勤務時間帯）'!$C$5:$Y$46,23,FALSE)) ->  | AG24: =IF(AG22="","",VLOOKUP(AG22,'シフト記号表（勤務時間帯）'!$C$5:$Y$46,23,FALSE)) ->  | AH24: =IF(AH22="","",VLOOKUP(AH22,'シフト記号表（勤務時間帯）'!$C$5:$Y$46,23,FALSE)) ->  | AI24: =IF(AI22="","",VLOOKUP(AI22,'シフト記号表（勤務時間帯）'!$C$5:$Y$46,23,FALSE)) ->  | AJ24: =IF(AJ22="","",VLOOKUP(AJ22,'シフト記号表（勤務時間帯）'!$C$5:$Y$46,23,FALSE)) ->  | AK24: =IF(AK22="","",VLOOKUP(AK22,'シフト記号表（勤務時間帯）'!$C$5:$Y$46,23,FALSE)) ->  | AL24: =IF(AL22="","",VLOOKUP(AL22,'シフト記号表（勤務時間帯）'!$C$5:$Y$46,23,FALSE)) ->  | AM24: =IF(AM22="","",VLOOKUP(AM22,'シフト記号表（勤務時間帯）'!$C$5:$Y$46,23,FALSE)) ->  | AN24: =IF(AN22="","",VLOOKUP(AN22,'シフト記号表（勤務時間帯）'!$C$5:$Y$46,23,FALSE)) ->  | AO24: =IF(AO22="","",VLOOKUP(AO22,'シフト記号表（勤務時間帯）'!$C$5:$Y$46,23,FALSE)) ->  | AP24: =IF(AP22="","",VLOOKUP(AP22,'シフト記号表（勤務時間帯）'!$C$5:$Y$46,23,FALSE)) ->  | AQ24: =IF(AQ22="","",VLOOKUP(AQ22,'シフト記号表（勤務時間帯）'!$C$5:$Y$46,23,FALSE)) ->  | AR24: =IF(AR22="","",VLOOKUP(AR22,'シフト記号表（勤務時間帯）'!$C$5:$Y$46,23,FALSE)) ->  | AS24: =IF(AS22="","",VLOOKUP(AS22,'シフト記号表（勤務時間帯）'!$C$5:$Y$46,23,FALSE)) ->  | AT24: =IF(AT22="","",VLOOKUP(AT22,'シフト記号表（勤務時間帯）'!$C$5:$Y$46,23,FALSE)) ->  | AU24: =IF(AU22="","",VLOOKUP(AU22,'シフト記号表（勤務時間帯）'!$C$5:$Y$46,23,FALSE)) ->  | AV24: =IF(AV22="","",VLOOKUP(AV22,'シフト記号表（勤務時間帯）'!$C$5:$Y$46,23,FALSE)) ->  | AW24: =IF(AW22="","",VLOOKUP(AW22,'シフト記号表（勤務時間帯）'!$C$5:$Y$46,23,FALSE)) ->  | AX24: =IF(AX22="","",VLOOKUP(AX22,'シフト記号表（勤務時間帯）'!$C$5:$Y$46,23,FALSE)) ->  | AY24: =IF($BB$3="計画",SUM(T24:AU24),IF($BB$3="実績",SUM(T24:AX24),"")) -> 0 | BA24: =IF($BB$3="計画",AY24/4,IF($BB$3="実績",(AY24/($BB$7/7)),"")) -> 0
O25: シフト記号
B26: =B23+1 -> 3 | O26: 日中の勤務時間数 | T26: =IF(T25="","",VLOOKUP(T25,'シフト記号表（勤務時間帯）'!$C$5:$W$46,21,FALSE)) ->  | U26: =IF(U25="","",VLOOKUP(U25,'シフト記号表（勤務時間帯）'!$C$5:$W$46,21,FALSE)) ->  | V26: =IF(V25="","",VLOOKUP(V25,'シフト記号表（勤務時間帯）'!$C$5:$W$46,21,FALSE)) ->  | W26: =IF(W25="","",VLOOKUP(W25,'シフト記号表（勤務時間帯）'!$C$5:$W$46,21,FALSE)) ->  | X26: =IF(X25="","",VLOOKUP(X25,'シフト記号表（勤務時間帯）'!$C$5:$W$46,21,FALSE)) ->  | Y26: =IF(Y25="","",VLOOKUP(Y25,'シフト記号表（勤務時間帯）'!$C$5:$W$46,21,FALSE)) ->  | Z26: =IF(Z25="","",VLOOKUP(Z25,'シフト記号表（勤務時間帯）'!$C$5:$W$46,21,FALSE)) ->  | AA26: =IF(AA25="","",VLOOKUP(AA25,'シフト記号表（勤務時間帯）'!$C$5:$W$46,21,FALSE)) ->  | AB26: =IF(AB25="","",VLOOKUP(AB25,'シフト記号表（勤務時間帯）'!$C$5:$W$46,21,FALSE)) ->  | AC26: =IF(AC25="","",VLOOKUP(AC25,'シフト記号表（勤務時間帯）'!$C$5:$W$46,21,FALSE)) ->  | AD26: =IF(AD25="","",VLOOKUP(AD25,'シフト記号表（勤務時間帯）'!$C$5:$W$46,21,FALSE)) ->  | AE26: =IF(AE25="","",VLOOKUP(AE25,'シフト記号表（勤務時間帯）'!$C$5:$W$46,21,FALSE)) ->  | AF26: =IF(AF25="","",VLOOKUP(AF25,'シフト記号表（勤務時間帯）'!$C$5:$W$46,21,FALSE)) ->  | AG26: =IF(AG25="","",VLOOKUP(AG25,'シフト記号表（勤務時間帯）'!$C$5:$W$46,21,FALSE)) ->  | AH26: =IF(AH25="","",VLOOKUP(AH25,'シフト記号表（勤務時間帯）'!$C$5:$W$46,21,FALSE)) ->  | AI26: =IF(AI25="","",VLOOKUP(AI25,'シフト記号表（勤務時間帯）'!$C$5:$W$46,21,FALSE)) ->  | AJ26: =IF(AJ25="","",VLOOKUP(AJ25,'シフト記号表（勤務時間帯）'!$C$5:$W$46,21,FALSE)) ->  | AK26: =IF(AK25="","",VLOOKUP(AK25,'シフト記号表（勤務時間帯）'!$C$5:$W$46,21,FALSE)) ->  | AL26: =IF(AL25="","",VLOOKUP(AL25,'シフト記号表（勤務時間帯）'!$C$5:$W$46,21,FALSE)) ->  | AM26: =IF(AM25="","",VLOOKUP(AM25,'シフト記号表（勤務時間帯）'!$C$5:$W$46,21,FALSE)) ->  | AN26: =IF(AN25="","",VLOOKUP(AN25,'シフト記号表（勤務時間帯）'!$C$5:$W$46,21,FALSE)) ->  | AO26: =IF(AO25="","",VLOOKUP(AO25,'シフト記号表（勤務時間帯）'!$C$5:$W$46,21,FALSE)) ->  | AP26: =IF(AP25="","",VLOOKUP(AP25,'シフト記号表（勤務時間帯）'!$C$5:$W$46,21,FALSE)) ->  | AQ26: =IF(AQ25="","",VLOOKUP(AQ25,'シフト記号表（勤務時間帯）'!$C$5:$W$46,21,FALSE)) ->  | AR26: =IF(AR25="","",VLOOKUP(AR25,'シフト記号表（勤務時間帯）'!$C$5:$W$46,21,FALSE)) ->  | AS26: =IF(AS25="","",VLOOKUP(AS25,'シフト記号表（勤務時間帯）'!$C$5:$W$46,21,FALSE)) ->  | AT26: =IF(AT25="","",VLOOKUP(AT25,'シフト記号表（勤務時間帯）'!$C$5:$W$46,21,FALSE)) ->  | AU26: =IF(AU25="","",VLOOKUP(AU25,'シフト記号表（勤務時間帯）'!$C$5:$W$46,21,FALSE)) ->  | AV26: =IF(AV25="","",VLOOKUP(AV25,'シフト記号表（勤務時間帯）'!$C$5:$W$46,21,FALSE)) ->  | AW26: =IF(AW25="","",VLOOKUP(AW25,'シフト記号表（勤務時間帯）'!$C$5:$W$46,21,FALSE)) ->  | AX26: =IF(AX25="","",VLOOKUP(AX25,'シフト記号表（勤務時間帯）'!$C$5:$W$46,21,FALSE)) ->  | AY26: =IF($BB$3="計画",SUM(T26:AU26),IF($BB$3="実績",SUM(T26:AX26),"")) -> 0 | BA26: =IF($BB$3="計画",AY26/4,IF($BB$3="実績",(AY26/($BB$7/7)),"")) -> 0
F27: =C26 -> 0 | O27: 夜間・深夜の勤務時間数 | T27: =IF(T25="","",VLOOKUP(T25,'シフト記号表（勤務時間帯）'!$C$5:$Y$46,23,FALSE)) ->  | U27: =IF(U25="","",VLOOKUP(U25,'シフト記号表（勤務時間帯）'!$C$5:$Y$46,23,FALSE)) ->  | V27: =IF(V25="","",VLOOKUP(V25,'シフト記号表（勤務時間帯）'!$C$5:$Y$46,23,FALSE)) ->  | W27: =IF(W25="","",VLOOKUP(W25,'シフト記号表（勤務時間帯）'!$C$5:$Y$46,23,FALSE)) ->  | X27: =IF(X25="","",VLOOKUP(X25,'シフト記号表（勤務時間帯）'!$C$5:$Y$46,23,FALSE)) ->  | Y27: =IF(Y25="","",VLOOKUP(Y25,'シフト記号表（勤務時間帯）'!$C$5:$Y$46,23,FALSE)) ->  | Z27: =IF(Z25="","",VLOOKUP(Z25,'シフト記号表（勤務時間帯）'!$C$5:$Y$46,23,FALSE)) ->  | AA27: =IF(AA25="","",VLOOKUP(AA25,'シフト記号表（勤務時間帯）'!$C$5:$Y$46,23,FALSE)) ->  | AB27: =IF(AB25="","",VLOOKUP(AB25,'シフト記号表（勤務時間帯）'!$C$5:$Y$46,23,FALSE)) ->  | AC27: =IF(AC25="","",VLOOKUP(AC25,'シフト記号表（勤務時間帯）'!$C$5:$Y$46,23,FALSE)) ->  | AD27: =IF(AD25="","",VLOOKUP(AD25,'シフト記号表（勤務時間帯）'!$C$5:$Y$46,23,FALSE)) ->  | AE27: =IF(AE25="","",VLOOKUP(AE25,'シフト記号表（勤務時間帯）'!$C$5:$Y$46,23,FALSE)) ->  | AF27: =IF(AF25="","",VLOOKUP(AF25,'シフト記号表（勤務時間帯）'!$C$5:$Y$46,23,FALSE)) ->  | AG27: =IF(AG25="","",VLOOKUP(AG25,'シフト記号表（勤務時間帯）'!$C$5:$Y$46,23,FALSE)) ->  | AH27: =IF(AH25="","",VLOOKUP(AH25,'シフト記号表（勤務時間帯）'!$C$5:$Y$46,23,FALSE)) ->  | AI27: =IF(AI25="","",VLOOKUP(AI25,'シフト記号表（勤務時間帯）'!$C$5:$Y$46,23,FALSE)) ->  | AJ27: =IF(AJ25="","",VLOOKUP(AJ25,'シフト記号表（勤務時間帯）'!$C$5:$Y$46,23,FALSE)) ->  | AK27: =IF(AK25="","",VLOOKUP(AK25,'シフト記号表（勤務時間帯）'!$C$5:$Y$46,23,FALSE)) ->  | AL27: =IF(AL25="","",VLOOKUP(AL25,'シフト記号表（勤務時間帯）'!$C$5:$Y$46,23,FALSE)) ->  | AM27: =IF(AM25="","",VLOOKUP(AM25,'シフト記号表（勤務時間帯）'!$C$5:$Y$46,23,FALSE)) ->  | AN27: =IF(AN25="","",VLOOKUP(AN25,'シフト記号表（勤務時間帯）'!$C$5:$Y$46,23,FALSE)) ->  | AO27: =IF(AO25="","",VLOOKUP(AO25,'シフト記号表（勤務時間帯）'!$C$5:$Y$46,23,FALSE)) ->  | AP27: =IF(AP25="","",VLOOKUP(AP25,'シフト記号表（勤務時間帯）'!$C$5:$Y$46,23,FALSE)) ->  | AQ27: =IF(AQ25="","",VLOOKUP(AQ25,'シフト記号表（勤務時間帯）'!$C$5:$Y$46,23,FALSE)) ->  | AR27: =IF(AR25="","",VLOOKUP(AR25,'シフト記号表（勤務時間帯）'!$C$5:$Y$46,23,FALSE)) ->  | AS27: =IF(AS25="","",VLOOKUP(AS25,'シフト記号表（勤務時間帯）'!$C$5:$Y$46,23,FALSE)) ->  | AT27: =IF(AT25="","",VLOOKUP(AT25,'シフト記号表（勤務時間帯）'!$C$5:$Y$46,23,FALSE)) ->  | AU27: =IF(AU25="","",VLOOKUP(AU25,'シフト記号表（勤務時間帯）'!$C$5:$Y$46,23,FALSE)) ->  | AV27: =IF(AV25="","",VLOOKUP(AV25,'シフト記号表（勤務時間帯）'!$C$5:$Y$46,23,FALSE)) ->  | AW27: =IF(AW25="","",VLOOKUP(AW25,'シフト記号表（勤務時間帯）'!$C$5:$Y$46,23,FALSE)) ->  | AX27: =IF(AX25="","",VLOOKUP(AX25,'シフト記号表（勤務時間帯）'!$C$5:$Y$46,23,FALSE)) ->  | AY27: =IF($BB$3="計画",SUM(T27:AU27),IF($BB$3="実績",SUM(T27:AX27),"")) -> 0 | BA27: =IF($BB$3="計画",AY27/4,IF($BB$3="実績",(AY27/($BB$7/7)),"")) -> 0
O28: シフト記号
B29: =B26+1 -> 4 | O29: 日中の勤務時間数 | T29: =IF(T28="","",VLOOKUP(T28,'シフト記号表（勤務時間帯）'!$C$5:$W$46,21,FALSE)) ->  | U29: =IF(U28="","",VLOOKUP(U28,'シフト記号表（勤務時間帯）'!$C$5:$W$46,21,FALSE)) ->  | V29: =IF(V28="","",VLOOKUP(V28,'シフト記号表（勤務時間帯）'!$C$5:$W$46,21,FALSE)) ->  | W29: =IF(W28="","",VLOOKUP(W28,'シフト記号表（勤務時間帯）'!$C$5:$W$46,21,FALSE)) ->  | X29: =IF(X28="","",VLOOKUP(X28,'シフト記号表（勤務時間帯）'!$C$5:$W$46,21,FALSE)) ->  | Y29: =IF(Y28="","",VLOOKUP(Y28,'シフト記号表（勤務時間帯）'!$C$5:$W$46,21,FALSE)) ->  | Z29: =IF(Z28="","",VLOOKUP(Z28,'シフト記号表（勤務時間帯）'!$C$5:$W$46,21,FALSE)) ->  | AA29: =IF(AA28="","",VLOOKUP(AA28,'シフト記号表（勤務時間帯）'!$C$5:$W$46,21,FALSE)) ->  | AB29: =IF(AB28="","",VLOOKUP(AB28,'シフト記号表（勤務時間帯）'!$C$5:$W$46,21,FALSE)) ->  | AC29: =IF(AC28="","",VLOOKUP(AC28,'シフト記号表（勤務時間帯）'!$C$5:$W$46,21,FALSE)) ->  | AD29: =IF(AD28="","",VLOOKUP(AD28,'シフト記号表（勤務時間帯）'!$C$5:$W$46,21,FALSE)) ->  | AE29: =IF(AE28="","",VLOOKUP(AE28,'シフト記号表（勤務時間帯）'!$C$5:$W$46,21,FALSE)) ->  | AF29: =IF(AF28="","",VLOOKUP(AF28,'シフト記号表（勤務時間帯）'!$C$5:$W$46,21,FALSE)) ->  | AG29: =IF(AG28="","",VLOOKUP(AG28,'シフト記号表（勤務時間帯）'!$C$5:$W$46,21,FALSE)) ->  | AH29: =IF(AH28="","",VLOOKUP(AH28,'シフト記号表（勤務時間帯）'!$C$5:$W$46,21,FALSE)) ->  | AI29: =IF(AI28="","",VLOOKUP(AI28,'シフト記号表（勤務時間帯）'!$C$5:$W$46,21,FALSE)) ->  | AJ29: =IF(AJ28="","",VLOOKUP(AJ28,'シフト記号表（勤務時間帯）'!$C$5:$W$46,21,FALSE)) ->  | AK29: =IF(AK28="","",VLOOKUP(AK28,'シフト記号表（勤務時間帯）'!$C$5:$W$46,21,FALSE)) ->  | AL29: =IF(AL28="","",VLOOKUP(AL28,'シフト記号表（勤務時間帯）'!$C$5:$W$46,21,FALSE)) ->  | AM29: =IF(AM28="","",VLOOKUP(AM28,'シフト記号表（勤務時間帯）'!$C$5:$W$46,21,FALSE)) ->  | AN29: =IF(AN28="","",VLOOKUP(AN28,'シフト記号表（勤務時間帯）'!$C$5:$W$46,21,FALSE)) ->  | AO29: =IF(AO28="","",VLOOKUP(AO28,'シフト記号表（勤務時間帯）'!$C$5:$W$46,21,FALSE)) ->  | AP29: =IF(AP28="","",VLOOKUP(AP28,'シフト記号表（勤務時間帯）'!$C$5:$W$46,21,FALSE)) ->  | AQ29: =IF(AQ28="","",VLOOKUP(AQ28,'シフト記号表（勤務時間帯）'!$C$5:$W$46,21,FALSE)) ->  | AR29: =IF(AR28="","",VLOOKUP(AR28,'シフト記号表（勤務時間帯）'!$C$5:$W$46,21,FALSE)) ->  | AS29: =IF(AS28="","",VLOOKUP(AS28,'シフト記号表（勤務時間帯）'!$C$5:$W$46,21,FALSE)) ->  | AT29: =IF(AT28="","",VLOOKUP(AT28,'シフト記号表（勤務時間帯）'!$C$5:$W$46,21,FALSE)) ->  | AU29: =IF(AU28="","",VLOOKUP(AU28,'シフト記号表（勤務時間帯）'!$C$5:$W$46,21,FALSE)) ->  | AV29: =IF(AV28="","",VLOOKUP(AV28,'シフト記号表（勤務時間帯）'!$C$5:$W$46,21,FALSE)) ->  | AW29: =IF(AW28="","",VLOOKUP(AW28,'シフト記号表（勤務時間帯）'!$C$5:$W$46,21,FALSE)) ->  | AX29: =IF(AX28="","",VLOOKUP(AX28,'シフト記号表（勤務時間帯）'!$C$5:$W$46,21,FALSE)) ->  | AY29: =IF($BB$3="計画",SUM(T29:AU29),IF($BB$3="実績",SUM(T29:AX29),"")) -> 0 | BA29: =IF($BB$3="計画",AY29/4,IF($BB$3="実績",(AY29/($BB$7/7)),"")) -> 0
F30: =C29 -> 0 | O30: 夜間・深夜の勤務時間数 | T30: =IF(T28="","",VLOOKUP(T28,'シフト記号表（勤務時間帯）'!$C$5:$Y$46,23,FALSE)) ->  | U30: =IF(U28="","",VLOOKUP(U28,'シフト記号表（勤務時間帯）'!$C$5:$Y$46,23,FALSE)) ->  | V30: =IF(V28="","",VLOOKUP(V28,'シフト記号表（勤務時間帯）'!$C$5:$Y$46,23,FALSE)) ->  | W30: =IF(W28="","",VLOOKUP(W28,'シフト記号表（勤務時間帯）'!$C$5:$Y$46,23,FALSE)) ->  | X30: =IF(X28="","",VLOOKUP(X28,'シフト記号表（勤務時間帯）'!$C$5:$Y$46,23,FALSE)) ->  | Y30: =IF(Y28="","",VLOOKUP(Y28,'シフト記号表（勤務時間帯）'!$C$5:$Y$46,23,FALSE)) ->  | Z30: =IF(Z28="","",VLOOKUP(Z28,'シフト記号表（勤務時間帯）'!$C$5:$Y$46,23,FALSE)) ->  | AA30: =IF(AA28="","",VLOOKUP(AA28,'シフト記号表（勤務時間帯）'!$C$5:$Y$46,23,FALSE)) ->  | AB30: =IF(AB28="","",VLOOKUP(AB28,'シフト記号表（勤務時間帯）'!$C$5:$Y$46,23,FALSE)) ->  | AC30: =IF(AC28="","",VLOOKUP(AC28,'シフト記号表（勤務時間帯）'!$C$5:$Y$46,23,FALSE)) ->  | AD30: =IF(AD28="","",VLOOKUP(AD28,'シフト記号表（勤務時間帯）'!$C$5:$Y$46,23,FALSE)) ->  | AE30: =IF(AE28="","",VLOOKUP(AE28,'シフト記号表（勤務時間帯）'!$C$5:$Y$46,23,FALSE)) ->  | AF30: =IF(AF28="","",VLOOKUP(AF28,'シフト記号表（勤務時間帯）'!$C$5:$Y$46,23,FALSE)) ->  | AG30: =IF(AG28="","",VLOOKUP(AG28,'シフト記号表（勤務時間帯）'!$C$5:$Y$46,23,FALSE)) ->  | AH30: =IF(AH28="","",VLOOKUP(AH28,'シフト記号表（勤務時間帯）'!$C$5:$Y$46,23,FALSE)) ->  | AI30: =IF(AI28="","",VLOOKUP(AI28,'シフト記号表（勤務時間帯）'!$C$5:$Y$46,23,FALSE)) ->  | AJ30: =IF(AJ28="","",VLOOKUP(AJ28,'シフト記号表（勤務時間帯）'!$C$5:$Y$46,23,FALSE)) ->  | AK30: =IF(AK28="","",VLOOKUP(AK28,'シフト記号表（勤務時間帯）'!$C$5:$Y$46,23,FALSE)) ->  | AL30: =IF(AL28="","",VLOOKUP(AL28,'シフト記号表（勤務時間帯）'!$C$5:$Y$46,23,FALSE)) ->  | AM30: =IF(AM28="","",VLOOKUP(AM28,'シフト記号表（勤務時間帯）'!$C$5:$Y$46,23,FALSE)) ->  | AN30: =IF(AN28="","",VLOOKUP(AN28,'シフト記号表（勤務時間帯）'!$C$5:$Y$46,23,FALSE)) ->  | AO30: =IF(AO28="","",VLOOKUP(AO28,'シフト記号表（勤務時間帯）'!$C$5:$Y$46,23,FALSE)) ->  | AP30: =IF(AP28="","",VLOOKUP(AP28,'シフト記号表（勤務時間帯）'!$C$5:$Y$46,23,FALSE)) ->  | AQ30: =IF(AQ28="","",VLOOKUP(AQ28,'シフト記号表（勤務時間帯）'!$C$5:$Y$46,23,FALSE)) ->  | AR30: =IF(AR28="","",VLOOKUP(AR28,'シフト記号表（勤務時間帯）'!$C$5:$Y$46,23,FALSE)) ->  | AS30: =IF(AS28="","",VLOOKUP(AS28,'シフト記号表（勤務時間帯）'!$C$5:$Y$46,23,FALSE)) ->  | AT30: =IF(AT28="","",VLOOKUP(AT28,'シフト記号表（勤務時間帯）'!$C$5:$Y$46,23,FALSE)) ->  | AU30: =IF(AU28="","",VLOOKUP(AU28,'シフト記号表（勤務時間帯）'!$C$5:$Y$46,23,FALSE)) ->  | AV30: =IF(AV28="","",VLOOKUP(AV28,'シフト記号表（勤務時間帯）'!$C$5:$Y$46,23,FALSE)) ->  | AW30: =IF(AW28="","",VLOOKUP(AW28,'シフト記号表（勤務時間帯）'!$C$5:$Y$46,23,FALSE)) ->  | AX30: =IF(AX28="","",VLOOKUP(AX28,'シフト記号表（勤務時間帯）'!$C$5:$Y$46,23,FALSE)) ->  | AY30: =IF($BB$3="計画",SUM(T30:AU30),IF($BB$3="実績",SUM(T30:AX30),"")) -> 0 | BA30: =IF($BB$3="計画",AY30/4,IF($BB$3="実績",(AY30/($BB$7/7)),"")) -> 0
O31: シフト記号
B32: =B29+1 -> 5 | O32: 日中の勤務時間数 | T32: =IF(T31="","",VLOOKUP(T31,'シフト記号表（勤務時間帯）'!$C$5:$W$46,21,FALSE)) ->  | U32: =IF(U31="","",VLOOKUP(U31,'シフト記号表（勤務時間帯）'!$C$5:$W$46,21,FALSE)) ->  | V32: =IF(V31="","",VLOOKUP(V31,'シフト記号表（勤務時間帯）'!$C$5:$W$46,21,FALSE)) ->  | W32: =IF(W31="","",VLOOKUP(W31,'シフト記号表（勤務時間帯）'!$C$5:$W$46,21,FALSE)) ->  | X32: =IF(X31="","",VLOOKUP(X31,'シフト記号表（勤務時間帯）'!$C$5:$W$46,21,FALSE)) ->  | Y32: =IF(Y31="","",VLOOKUP(Y31,'シフト記号表（勤務時間帯）'!$C$5:$W$46,21,FALSE)) ->  | Z32: =IF(Z31="","",VLOOKUP(Z31,'シフト記号表（勤務時間帯）'!$C$5:$W$46,21,FALSE)) ->  | AA32: =IF(AA31="","",VLOOKUP(AA31,'シフト記号表（勤務時間帯）'!$C$5:$W$46,21,FALSE)) ->  | AB32: =IF(AB31="","",VLOOKUP(AB31,'シフト記号表（勤務時間帯）'!$C$5:$W$46,21,FALSE)) ->  | AC32: =IF(AC31="","",VLOOKUP(AC31,'シフト記号表（勤務時間帯）'!$C$5:$W$46,21,FALSE)) ->  | AD32: =IF(AD31="","",VLOOKUP(AD31,'シフト記号表（勤務時間帯）'!$C$5:$W$46,21,FALSE)) ->  | AE32: =IF(AE31="","",VLOOKUP(AE31,'シフト記号表（勤務時間帯）'!$C$5:$W$46,21,FALSE)) ->  | AF32: =IF(AF31="","",VLOOKUP(AF31,'シフト記号表（勤務時間帯）'!$C$5:$W$46,21,FALSE)) ->  | AG32: =IF(AG31="","",VLOOKUP(AG31,'シフト記号表（勤務時間帯）'!$C$5:$W$46,21,FALSE)) ->  | AH32: =IF(AH31="","",VLOOKUP(AH31,'シフト記号表（勤務時間帯）'!$C$5:$W$46,21,FALSE)) ->  | AI32: =IF(AI31="","",VLOOKUP(AI31,'シフト記号表（勤務時間帯）'!$C$5:$W$46,21,FALSE)) ->  | AJ32: =IF(AJ31="","",VLOOKUP(AJ31,'シフト記号表（勤務時間帯）'!$C$5:$W$46,21,FALSE)) ->  | AK32: =IF(AK31="","",VLOOKUP(AK31,'シフト記号表（勤務時間帯）'!$C$5:$W$46,21,FALSE)) ->  | AL32: =IF(AL31="","",VLOOKUP(AL31,'シフト記号表（勤務時間帯）'!$C$5:$W$46,21,FALSE)) ->  | AM32: =IF(AM31="","",VLOOKUP(AM31,'シフト記号表（勤務時間帯）'!$C$5:$W$46,21,FALSE)) ->  | AN32: =IF(AN31="","",VLOOKUP(AN31,'シフト記号表（勤務時間帯）'!$C$5:$W$46,21,FALSE)) ->  | AO32: =IF(AO31="","",VLOOKUP(AO31,'シフト記号表（勤務時間帯）'!$C$5:$W$46,21,FALSE)) ->  | AP32: =IF(AP31="","",VLOOKUP(AP31,'シフト記号表（勤務時間帯）'!$C$5:$W$46,21,FALSE)) ->  | AQ32: =IF(AQ31="","",VLOOKUP(AQ31,'シフト記号表（勤務時間帯）'!$C$5:$W$46,21,FALSE)) ->  | AR32: =IF(AR31="","",VLOOKUP(AR31,'シフト記号表（勤務時間帯）'!$C$5:$W$46,21,FALSE)) ->  | AS32: =IF(AS31="","",VLOOKUP(AS31,'シフト記号表（勤務時間帯）'!$C$5:$W$46,21,FALSE)) ->  | AT32: =IF(AT31="","",VLOOKUP(AT31,'シフト記号表（勤務時間帯）'!$C$5:$W$46,21,FALSE)) ->  | AU32: =IF(AU31="","",VLOOKUP(AU31,'シフト記号表（勤務時間帯）'!$C$5:$W$46,21,FALSE)) ->  | AV32: =IF(AV31="","",VLOOKUP(AV31,'シフト記号表（勤務時間帯）'!$C$5:$W$46,21,FALSE)) ->  | AW32: =IF(AW31="","",VLOOKUP(AW31,'シフト記号表（勤務時間帯）'!$C$5:$W$46,21,FALSE)) ->  | AX32: =IF(AX31="","",VLOOKUP(AX31,'シフト記号表（勤務時間帯）'!$C$5:$W$46,21,FALSE)) ->  | AY32: =IF($BB$3="計画",SUM(T32:AU32),IF($BB$3="実績",SUM(T32:AX32),"")) -> 0 | BA32: =IF($BB$3="計画",AY32/4,IF($BB$3="実績",(AY32/($BB$7/7)),"")) -> 0
F33: =C32 -> 0 | O33: 夜間・深夜の勤務時間数 | T33: =IF(T31="","",VLOOKUP(T31,'シフト記号表（勤務時間帯）'!$C$5:$Y$46,23,FALSE)) ->  | U33: =IF(U31="","",VLOOKUP(U31,'シフト記号表（勤務時間帯）'!$C$5:$Y$46,23,FALSE)) ->  | V33: =IF(V31="","",VLOOKUP(V31,'シフト記号表（勤務時間帯）'!$C$5:$Y$46,23,FALSE)) ->  | W33: =IF(W31="","",VLOOKUP(W31,'シフト記号表（勤務時間帯）'!$C$5:$Y$46,23,FALSE)) ->  | X33: =IF(X31="","",VLOOKUP(X31,'シフト記号表（勤務時間帯）'!$C$5:$Y$46,23,FALSE)) ->  | Y33: =IF(Y31="","",VLOOKUP(Y31,'シフト記号表（勤務時間帯）'!$C$5:$Y$46,23,FALSE)) ->  | Z33: =IF(Z31="","",VLOOKUP(Z31,'シフト記号表（勤務時間帯）'!$C$5:$Y$46,23,FALSE)) ->  | AA33: =IF(AA31="","",VLOOKUP(AA31,'シフト記号表（勤務時間帯）'!$C$5:$Y$46,23,FALSE)) ->  | AB33: =IF(AB31="","",VLOOKUP(AB31,'シフト記号表（勤務時間帯）'!$C$5:$Y$46,23,FALSE)) ->  | AC33: =IF(AC31="","",VLOOKUP(AC31,'シフト記号表（勤務時間帯）'!$C$5:$Y$46,23,FALSE)) ->  | AD33: =IF(AD31="","",VLOOKUP(AD31,'シフト記号表（勤務時間帯）'!$C$5:$Y$46,23,FALSE)) ->  | AE33: =IF(AE31="","",VLOOKUP(AE31,'シフト記号表（勤務時間帯）'!$C$5:$Y$46,23,FALSE)) ->  | AF33: =IF(AF31="","",VLOOKUP(AF31,'シフト記号表（勤務時間帯）'!$C$5:$Y$46,23,FALSE)) ->  | AG33: =IF(AG31="","",VLOOKUP(AG31,'シフト記号表（勤務時間帯）'!$C$5:$Y$46,23,FALSE)) ->  | AH33: =IF(AH31="","",VLOOKUP(AH31,'シフト記号表（勤務時間帯）'!$C$5:$Y$46,23,FALSE)) ->  | AI33: =IF(AI31="","",VLOOKUP(AI31,'シフト記号表（勤務時間帯）'!$C$5:$Y$46,23,FALSE)) ->  | AJ33: =IF(AJ31="","",VLOOKUP(AJ31,'シフト記号表（勤務時間帯）'!$C$5:$Y$46,23,FALSE)) ->  | AK33: =IF(AK31="","",VLOOKUP(AK31,'シフト記号表（勤務時間帯）'!$C$5:$Y$46,23,FALSE)) ->  | AL33: =IF(AL31="","",VLOOKUP(AL31,'シフト記号表（勤務時間帯）'!$C$5:$Y$46,23,FALSE)) ->  | AM33: =IF(AM31="","",VLOOKUP(AM31,'シフト記号表（勤務時間帯）'!$C$5:$Y$46,23,FALSE)) ->  | AN33: =IF(AN31="","",VLOOKUP(AN31,'シフト記号表（勤務時間帯）'!$C$5:$Y$46,23,FALSE)) ->  | AO33: =IF(AO31="","",VLOOKUP(AO31,'シフト記号表（勤務時間帯）'!$C$5:$Y$46,23,FALSE)) ->  | AP33: =IF(AP31="","",VLOOKUP(AP31,'シフト記号表（勤務時間帯）'!$C$5:$Y$46,23,FALSE)) ->  | AQ33: =IF(AQ31="","",VLOOKUP(AQ31,'シフト記号表（勤務時間帯）'!$C$5:$Y$46,23,FALSE)) ->  | AR33: =IF(AR31="","",VLOOKUP(AR31,'シフト記号表（勤務時間帯）'!$C$5:$Y$46,23,FALSE)) ->  | AS33: =IF(AS31="","",VLOOKUP(AS31,'シフト記号表（勤務時間帯）'!$C$5:$Y$46,23,FALSE)) ->  | AT33: =IF(AT31="","",VLOOKUP(AT31,'シフト記号表（勤務時間帯）'!$C$5:$Y$46,23,FALSE)) ->  | AU33: =IF(AU31="","",VLOOKUP(AU31,'シフト記号表（勤務時間帯）'!$C$5:$Y$46,23,FALSE)) ->  | AV33: =IF(AV31="","",VLOOKUP(AV31,'シフト記号表（勤務時間帯）'!$C$5:$Y$46,23,FALSE)) ->  | AW33: =IF(AW31="","",VLOOKUP(AW31,'シフト記号表（勤務時間帯）'!$C$5:$Y$46,23,FALSE)) ->  | AX33: =IF(AX31="","",VLOOKUP(AX31,'シフト記号表（勤務時間帯）'!$C$5:$Y$46,23,FALSE)) ->  | AY33: =IF($BB$3="計画",SUM(T33:AU33),IF($BB$3="実績",SUM(T33:AX33),"")) -> 0 | BA33: =IF($BB$3="計画",AY33/4,IF($BB$3="実績",(AY33/($BB$7/7)),"")) -> 0
O34: シフト記号
B35: =B32+1 -> 6 | O35: 日中の勤務時間数 | T35: =IF(T34="","",VLOOKUP(T34,'シフト記号表（勤務時間帯）'!$C$5:$W$46,21,FALSE)) ->  | U35: =IF(U34="","",VLOOKUP(U34,'シフト記号表（勤務時間帯）'!$C$5:$W$46,21,FALSE)) ->  | V35: =IF(V34="","",VLOOKUP(V34,'シフト記号表（勤務時間帯）'!$C$5:$W$46,21,FALSE)) ->  | W35: =IF(W34="","",VLOOKUP(W34,'シフト記号表（勤務時間帯）'!$C$5:$W$46,21,FALSE)) ->  | X35: =IF(X34="","",VLOOKUP(X34,'シフト記号表（勤務時間帯）'!$C$5:$W$46,21,FALSE)) ->  | Y35: =IF(Y34="","",VLOOKUP(Y34,'シフト記号表（勤務時間帯）'!$C$5:$W$46,21,FALSE)) ->  | Z35: =IF(Z34="","",VLOOKUP(Z34,'シフト記号表（勤務時間帯）'!$C$5:$W$46,21,FALSE)) ->  | AA35: =IF(AA34="","",VLOOKUP(AA34,'シフト記号表（勤務時間帯）'!$C$5:$W$46,21,FALSE)) ->  | AB35: =IF(AB34="","",VLOOKUP(AB34,'シフト記号表（勤務時間帯）'!$C$5:$W$46,21,FALSE)) ->  | AC35: =IF(AC34="","",VLOOKUP(AC34,'シフト記号表（勤務時間帯）'!$C$5:$W$46,21,FALSE)) ->  | AD35: =IF(AD34="","",VLOOKUP(AD34,'シフト記号表（勤務時間帯）'!$C$5:$W$46,21,FALSE)) ->  | AE35: =IF(AE34="","",VLOOKUP(AE34,'シフト記号表（勤務時間帯）'!$C$5:$W$46,21,FALSE)) ->  | AF35: =IF(AF34="","",VLOOKUP(AF34,'シフト記号表（勤務時間帯）'!$C$5:$W$46,21,FALSE)) ->  | AG35: =IF(AG34="","",VLOOKUP(AG34,'シフト記号表（勤務時間帯）'!$C$5:$W$46,21,FALSE)) ->  | AH35: =IF(AH34="","",VLOOKUP(AH34,'シフト記号表（勤務時間帯）'!$C$5:$W$46,21,FALSE)) ->  | AI35: =IF(AI34="","",VLOOKUP(AI34,'シフト記号表（勤務時間帯）'!$C$5:$W$46,21,FALSE)) ->  | AJ35: =IF(AJ34="","",VLOOKUP(AJ34,'シフト記号表（勤務時間帯）'!$C$5:$W$46,21,FALSE)) ->  | AK35: =IF(AK34="","",VLOOKUP(AK34,'シフト記号表（勤務時間帯）'!$C$5:$W$46,21,FALSE)) ->  | AL35: =IF(AL34="","",VLOOKUP(AL34,'シフト記号表（勤務時間帯）'!$C$5:$W$46,21,FALSE)) ->  | AM35: =IF(AM34="","",VLOOKUP(AM34,'シフト記号表（勤務時間帯）'!$C$5:$W$46,21,FALSE)) ->  | AN35: =IF(AN34="","",VLOOKUP(AN34,'シフト記号表（勤務時間帯）'!$C$5:$W$46,21,FALSE)) ->  | AO35: =IF(AO34="","",VLOOKUP(AO34,'シフト記号表（勤務時間帯）'!$C$5:$W$46,21,FALSE)) ->  | AP35: =IF(AP34="","",VLOOKUP(AP34,'シフト記号表（勤務時間帯）'!$C$5:$W$46,21,FALSE)) ->  | AQ35: =IF(AQ34="","",VLOOKUP(AQ34,'シフト記号表（勤務時間帯）'!$C$5:$W$46,21,FALSE)) ->  | AR35: =IF(AR34="","",VLOOKUP(AR34,'シフト記号表（勤務時間帯）'!$C$5:$W$46,21,FALSE)) ->  | AS35: =IF(AS34="","",VLOOKUP(AS34,'シフト記号表（勤務時間帯）'!$C$5:$W$46,21,FALSE)) ->  | AT35: =IF(AT34="","",VLOOKUP(AT34,'シフト記号表（勤務時間帯）'!$C$5:$W$46,21,FALSE)) ->  | AU35: =IF(AU34="","",VLOOKUP(AU34,'シフト記号表（勤務時間帯）'!$C$5:$W$46,21,FALSE)) ->  | AV35: =IF(AV34="","",VLOOKUP(AV34,'シフト記号表（勤務時間帯）'!$C$5:$W$46,21,FALSE)) ->  | AW35: =IF(AW34="","",VLOOKUP(AW34,'シフト記号表（勤務時間帯）'!$C$5:$W$46,21,FALSE)) ->  | AX35: =IF(AX34="","",VLOOKUP(AX34,'シフト記号表（勤務時間帯）'!$C$5:$W$46,21,FALSE)) ->  | AY35: =IF($BB$3="計画",SUM(T35:AU35),IF($BB$3="実績",SUM(T35:AX35),"")) -> 0 | BA35: =IF($BB$3="計画",AY35/4,IF($BB$3="実績",(AY35/($BB$7/7)),"")) -> 0
F36: =C35 -> 0 | O36: 夜間・深夜の勤務時間数 | T36: =IF(T34="","",VLOOKUP(T34,'シフト記号表（勤務時間帯）'!$C$5:$Y$46,23,FALSE)) ->  | U36: =IF(U34="","",VLOOKUP(U34,'シフト記号表（勤務時間帯）'!$C$5:$Y$46,23,FALSE)) ->  | V36: =IF(V34="","",VLOOKUP(V34,'シフト記号表（勤務時間帯）'!$C$5:$Y$46,23,FALSE)) ->  | W36: =IF(W34="","",VLOOKUP(W34,'シフト記号表（勤務時間帯）'!$C$5:$Y$46,23,FALSE)) ->  | X36: =IF(X34="","",VLOOKUP(X34,'シフト記号表（勤務時間帯）'!$C$5:$Y$46,23,FALSE)) ->  | Y36: =IF(Y34="","",VLOOKUP(Y34,'シフト記号表（勤務時間帯）'!$C$5:$Y$46,23,FALSE)) ->  | Z36: =IF(Z34="","",VLOOKUP(Z34,'シフト記号表（勤務時間帯）'!$C$5:$Y$46,23,FALSE)) ->  | AA36: =IF(AA34="","",VLOOKUP(AA34,'シフト記号表（勤務時間帯）'!$C$5:$Y$46,23,FALSE)) ->  | AB36: =IF(AB34="","",VLOOKUP(AB34,'シフト記号表（勤務時間帯）'!$C$5:$Y$46,23,FALSE)) ->  | AC36: =IF(AC34="","",VLOOKUP(AC34,'シフト記号表（勤務時間帯）'!$C$5:$Y$46,23,FALSE)) ->  | AD36: =IF(AD34="","",VLOOKUP(AD34,'シフト記号表（勤務時間帯）'!$C$5:$Y$46,23,FALSE)) ->  | AE36: =IF(AE34="","",VLOOKUP(AE34,'シフト記号表（勤務時間帯）'!$C$5:$Y$46,23,FALSE)) ->  | AF36: =IF(AF34="","",VLOOKUP(AF34,'シフト記号表（勤務時間帯）'!$C$5:$Y$46,23,FALSE)) ->  | AG36: =IF(AG34="","",VLOOKUP(AG34,'シフト記号表（勤務時間帯）'!$C$5:$Y$46,23,FALSE)) ->  | AH36: =IF(AH34="","",VLOOKUP(AH34,'シフト記号表（勤務時間帯）'!$C$5:$Y$46,23,FALSE)) ->  | AI36: =IF(AI34="","",VLOOKUP(AI34,'シフト記号表（勤務時間帯）'!$C$5:$Y$46,23,FALSE)) ->  | AJ36: =IF(AJ34="","",VLOOKUP(AJ34,'シフト記号表（勤務時間帯）'!$C$5:$Y$46,23,FALSE)) ->  | AK36: =IF(AK34="","",VLOOKUP(AK34,'シフト記号表（勤務時間帯）'!$C$5:$Y$46,23,FALSE)) ->  | AL36: =IF(AL34="","",VLOOKUP(AL34,'シフト記号表（勤務時間帯）'!$C$5:$Y$46,23,FALSE)) ->  | AM36: =IF(AM34="","",VLOOKUP(AM34,'シフト記号表（勤務時間帯）'!$C$5:$Y$46,23,FALSE)) ->  | AN36: =IF(AN34="","",VLOOKUP(AN34,'シフト記号表（勤務時間帯）'!$C$5:$Y$46,23,FALSE)) ->  | AO36: =IF(AO34="","",VLOOKUP(AO34,'シフト記号表（勤務時間帯）'!$C$5:$Y$46,23,FALSE)) ->  | AP36: =IF(AP34="","",VLOOKUP(AP34,'シフト記号表（勤務時間帯）'!$C$5:$Y$46,23,FALSE)) ->  | AQ36: =IF(AQ34="","",VLOOKUP(AQ34,'シフト記号表（勤務時間帯）'!$C$5:$Y$46,23,FALSE)) ->  | AR36: =IF(AR34="","",VLOOKUP(AR34,'シフト記号表（勤務時間帯）'!$C$5:$Y$46,23,FALSE)) ->  | AS36: =IF(AS34="","",VLOOKUP(AS34,'シフト記号表（勤務時間帯）'!$C$5:$Y$46,23,FALSE)) ->  | AT36: =IF(AT34="","",VLOOKUP(AT34,'シフト記号表（勤務時間帯）'!$C$5:$Y$46,23,FALSE)) ->  | AU36: =IF(AU34="","",VLOOKUP(AU34,'シフト記号表（勤務時間帯）'!$C$5:$Y$46,23,FALSE)) ->  | AV36: =IF(AV34="","",VLOOKUP(AV34,'シフト記号表（勤務時間帯）'!$C$5:$Y$46,23,FALSE)) ->  | AW36: =IF(AW34="","",VLOOKUP(AW34,'シフト記号表（勤務時間帯）'!$C$5:$Y$46,23,FALSE)) ->  | AX36: =IF(AX34="","",VLOOKUP(AX34,'シフト記号表（勤務時間帯）'!$C$5:$Y$46,23,FALSE)) ->  | AY36: =IF($BB$3="計画",SUM(T36:AU36),IF($BB$3="実績",SUM(T36:AX36),"")) -> 0 | BA36: =IF($BB$3="計画",AY36/4,IF($BB$3="実績",(AY36/($BB$7/7)),"")) -> 0
O37: シフト記号
B38: =B35+1 -> 7 | O38: 日中の勤務時間数 | T38: =IF(T37="","",VLOOKUP(T37,'シフト記号表（勤務時間帯）'!$C$5:$W$46,21,FALSE)) ->  | U38: =IF(U37="","",VLOOKUP(U37,'シフト記号表（勤務時間帯）'!$C$5:$W$46,21,FALSE)) ->  | V38: =IF(V37="","",VLOOKUP(V37,'シフト記号表（勤務時間帯）'!$C$5:$W$46,21,FALSE)) ->  | W38: =IF(W37="","",VLOOKUP(W37,'シフト記号表（勤務時間帯）'!$C$5:$W$46,21,FALSE)) ->  | X38: =IF(X37="","",VLOOKUP(X37,'シフト記号表（勤務時間帯）'!$C$5:$W$46,21,FALSE)) ->  | Y38: =IF(Y37="","",VLOOKUP(Y37,'シフト記号表（勤務時間帯）'!$C$5:$W$46,21,FALSE)) ->  | Z38: =IF(Z37="","",VLOOKUP(Z37,'シフト記号表（勤務時間帯）'!$C$5:$W$46,21,FALSE)) ->  | AA38: =IF(AA37="","",VLOOKUP(AA37,'シフト記号表（勤務時間帯）'!$C$5:$W$46,21,FALSE)) ->  | AB38: =IF(AB37="","",VLOOKUP(AB37,'シフト記号表（勤務時間帯）'!$C$5:$W$46,21,FALSE)) ->  | AC38: =IF(AC37="","",VLOOKUP(AC37,'シフト記号表（勤務時間帯）'!$C$5:$W$46,21,FALSE)) ->  | AD38: =IF(AD37="","",VLOOKUP(AD37,'シフト記号表（勤務時間帯）'!$C$5:$W$46,21,FALSE)) ->  | AE38: =IF(AE37="","",VLOOKUP(AE37,'シフト記号表（勤務時間帯）'!$C$5:$W$46,21,FALSE)) ->  | AF38: =IF(AF37="","",VLOOKUP(AF37,'シフト記号表（勤務時間帯）'!$C$5:$W$46,21,FALSE)) ->  | AG38: =IF(AG37="","",VLOOKUP(AG37,'シフト記号表（勤務時間帯）'!$C$5:$W$46,21,FALSE)) ->  | AH38: =IF(AH37="","",VLOOKUP(AH37,'シフト記号表（勤務時間帯）'!$C$5:$W$46,21,FALSE)) ->  | AI38: =IF(AI37="","",VLOOKUP(AI37,'シフト記号表（勤務時間帯）'!$C$5:$W$46,21,FALSE)) ->  | AJ38: =IF(AJ37="","",VLOOKUP(AJ37,'シフト記号表（勤務時間帯）'!$C$5:$W$46,21,FALSE)) ->  | AK38: =IF(AK37="","",VLOOKUP(AK37,'シフト記号表（勤務時間帯）'!$C$5:$W$46,21,FALSE)) ->  | AL38: =IF(AL37="","",VLOOKUP(AL37,'シフト記号表（勤務時間帯）'!$C$5:$W$46,21,FALSE)) ->  | AM38: =IF(AM37="","",VLOOKUP(AM37,'シフト記号表（勤務時間帯）'!$C$5:$W$46,21,FALSE)) ->  | AN38: =IF(AN37="","",VLOOKUP(AN37,'シフト記号表（勤務時間帯）'!$C$5:$W$46,21,FALSE)) ->  | AO38: =IF(AO37="","",VLOOKUP(AO37,'シフト記号表（勤務時間帯）'!$C$5:$W$46,21,FALSE)) ->  | AP38: =IF(AP37="","",VLOOKUP(AP37,'シフト記号表（勤務時間帯）'!$C$5:$W$46,21,FALSE)) ->  | AQ38: =IF(AQ37="","",VLOOKUP(AQ37,'シフト記号表（勤務時間帯）'!$C$5:$W$46,21,FALSE)) ->  | AR38: =IF(AR37="","",VLOOKUP(AR37,'シフト記号表（勤務時間帯）'!$C$5:$W$46,21,FALSE)) ->  | AS38: =IF(AS37="","",VLOOKUP(AS37,'シフト記号表（勤務時間帯）'!$C$5:$W$46,21,FALSE)) ->  | AT38: =IF(AT37="","",VLOOKUP(AT37,'シフト記号表（勤務時間帯）'!$C$5:$W$46,21,FALSE)) ->  | AU38: =IF(AU37="","",VLOOKUP(AU37,'シフト記号表（勤務時間帯）'!$C$5:$W$46,21,FALSE)) ->  | AV38: =IF(AV37="","",VLOOKUP(AV37,'シフト記号表（勤務時間帯）'!$C$5:$W$46,21,FALSE)) ->  | AW38: =IF(AW37="","",VLOOKUP(AW37,'シフト記号表（勤務時間帯）'!$C$5:$W$46,21,FALSE)) ->  | AX38: =IF(AX37="","",VLOOKUP(AX37,'シフト記号表（勤務時間帯）'!$C$5:$W$46,21,FALSE)) ->  | AY38: =IF($BB$3="計画",SUM(T38:AU38),IF($BB$3="実績",SUM(T38:AX38),"")) -> 0 | BA38: =IF($BB$3="計画",AY38/4,IF($BB$3="実績",(AY38/($BB$7/7)),"")) -> 0
F39: =C38 -> 0 | O39: 夜間・深夜の勤務時間数 | T39: =IF(T37="","",VLOOKUP(T37,'シフト記号表（勤務時間帯）'!$C$5:$Y$46,23,FALSE)) ->  | U39: =IF(U37="","",VLOOKUP(U37,'シフト記号表（勤務時間帯）'!$C$5:$Y$46,23,FALSE)) ->  | V39: =IF(V37="","",VLOOKUP(V37,'シフト記号表（勤務時間帯）'!$C$5:$Y$46,23,FALSE)) ->  | W39: =IF(W37="","",VLOOKUP(W37,'シフト記号表（勤務時間帯）'!$C$5:$Y$46,23,FALSE)) ->  | X39: =IF(X37="","",VLOOKUP(X37,'シフト記号表（勤務時間帯）'!$C$5:$Y$46,23,FALSE)) ->  | Y39: =IF(Y37="","",VLOOKUP(Y37,'シフト記号表（勤務時間帯）'!$C$5:$Y$46,23,FALSE)) ->  | Z39: =IF(Z37="","",VLOOKUP(Z37,'シフト記号表（勤務時間帯）'!$C$5:$Y$46,23,FALSE)) ->  | AA39: =IF(AA37="","",VLOOKUP(AA37,'シフト記号表（勤務時間帯）'!$C$5:$Y$46,23,FALSE)) ->  | AB39: =IF(AB37="","",VLOOKUP(AB37,'シフト記号表（勤務時間帯）'!$C$5:$Y$46,23,FALSE)) ->  | AC39: =IF(AC37="","",VLOOKUP(AC37,'シフト記号表（勤務時間帯）'!$C$5:$Y$46,23,FALSE)) ->  | AD39: =IF(AD37="","",VLOOKUP(AD37,'シフト記号表（勤務時間帯）'!$C$5:$Y$46,23,FALSE)) ->  | AE39: =IF(AE37="","",VLOOKUP(AE37,'シフト記号表（勤務時間帯）'!$C$5:$Y$46,23,FALSE)) ->  | AF39: =IF(AF37="","",VLOOKUP(AF37,'シフト記号表（勤務時間帯）'!$C$5:$Y$46,23,FALSE)) ->  | AG39: =IF(AG37="","",VLOOKUP(AG37,'シフト記号表（勤務時間帯）'!$C$5:$Y$46,23,FALSE)) ->  | AH39: =IF(AH37="","",VLOOKUP(AH37,'シフト記号表（勤務時間帯）'!$C$5:$Y$46,23,FALSE)) ->  | AI39: =IF(AI37="","",VLOOKUP(AI37,'シフト記号表（勤務時間帯）'!$C$5:$Y$46,23,FALSE)) ->  | AJ39: =IF(AJ37="","",VLOOKUP(AJ37,'シフト記号表（勤務時間帯）'!$C$5:$Y$46,23,FALSE)) ->  | AK39: =IF(AK37="","",VLOOKUP(AK37,'シフト記号表（勤務時間帯）'!$C$5:$Y$46,23,FALSE)) ->  | AL39: =IF(AL37="","",VLOOKUP(AL37,'シフト記号表（勤務時間帯）'!$C$5:$Y$46,23,FALSE)) ->  | AM39: =IF(AM37="","",VLOOKUP(AM37,'シフト記号表（勤務時間帯）'!$C$5:$Y$46,23,FALSE)) ->  | AN39: =IF(AN37="","",VLOOKUP(AN37,'シフト記号表（勤務時間帯）'!$C$5:$Y$46,23,FALSE)) ->  | AO39: =IF(AO37="","",VLOOKUP(AO37,'シフト記号表（勤務時間帯）'!$C$5:$Y$46,23,FALSE)) ->  | AP39: =IF(AP37="","",VLOOKUP(AP37,'シフト記号表（勤務時間帯）'!$C$5:$Y$46,23,FALSE)) ->  | AQ39: =IF(AQ37="","",VLOOKUP(AQ37,'シフト記号表（勤務時間帯）'!$C$5:$Y$46,23,FALSE)) ->  | AR39: =IF(AR37="","",VLOOKUP(AR37,'シフト記号表（勤務時間帯）'!$C$5:$Y$46,23,FALSE)) ->  | AS39: =IF(AS37="","",VLOOKUP(AS37,'シフト記号表（勤務時間帯）'!$C$5:$Y$46,23,FALSE)) ->  | AT39: =IF(AT37="","",VLOOKUP(AT37,'シフト記号表（勤務時間帯）'!$C$5:$Y$46,23,FALSE)) ->  | AU39: =IF(AU37="","",VLOOKUP(AU37,'シフト記号表（勤務時間帯）'!$C$5:$Y$46,23,FALSE)) ->  | AV39: =IF(AV37="","",VLOOKUP(AV37,'シフト記号表（勤務時間帯）'!$C$5:$Y$46,23,FALSE)) ->  | AW39: =IF(AW37="","",VLOOKUP(AW37,'シフト記号表（勤務時間帯）'!$C$5:$Y$46,23,FALSE)) ->  | AX39: =IF(AX37="","",VLOOKUP(AX37,'シフト記号表（勤務時間帯）'!$C$5:$Y$46,23,FALSE)) ->  | AY39: =IF($BB$3="計画",SUM(T39:AU39),IF($BB$3="実績",SUM(T39:AX39),"")) -> 0 | BA39: =IF($BB$3="計画",AY39/4,IF($BB$3="実績",(AY39/($BB$7/7)),"")) -> 0
O40: シフト記号
B41: =B38+1 -> 8 | O41: 日中の勤務時間数 | T41: =IF(T40="","",VLOOKUP(T40,'シフト記号表（勤務時間帯）'!$C$5:$W$46,21,FALSE)) ->  | U41: =IF(U40="","",VLOOKUP(U40,'シフト記号表（勤務時間帯）'!$C$5:$W$46,21,FALSE)) ->  | V41: =IF(V40="","",VLOOKUP(V40,'シフト記号表（勤務時間帯）'!$C$5:$W$46,21,FALSE)) ->  | W41: =IF(W40="","",VLOOKUP(W40,'シフト記号表（勤務時間帯）'!$C$5:$W$46,21,FALSE)) ->  | X41: =IF(X40="","",VLOOKUP(X40,'シフト記号表（勤務時間帯）'!$C$5:$W$46,21,FALSE)) ->  | Y41: =IF(Y40="","",VLOOKUP(Y40,'シフト記号表（勤務時間帯）'!$C$5:$W$46,21,FALSE)) ->  | Z41: =IF(Z40="","",VLOOKUP(Z40,'シフト記号表（勤務時間帯）'!$C$5:$W$46,21,FALSE)) ->  | AA41: =IF(AA40="","",VLOOKUP(AA40,'シフト記号表（勤務時間帯）'!$C$5:$W$46,21,FALSE)) ->  | AB41: =IF(AB40="","",VLOOKUP(AB40,'シフト記号表（勤務時間帯）'!$C$5:$W$46,21,FALSE)) ->  | AC41: =IF(AC40="","",VLOOKUP(AC40,'シフト記号表（勤務時間帯）'!$C$5:$W$46,21,FALSE)) ->  | AD41: =IF(AD40="","",VLOOKUP(AD40,'シフト記号表（勤務時間帯）'!$C$5:$W$46,21,FALSE)) ->  | AE41: =IF(AE40="","",VLOOKUP(AE40,'シフト記号表（勤務時間帯）'!$C$5:$W$46,21,FALSE)) ->  | AF41: =IF(AF40="","",VLOOKUP(AF40,'シフト記号表（勤務時間帯）'!$C$5:$W$46,21,FALSE)) ->  | AG41: =IF(AG40="","",VLOOKUP(AG40,'シフト記号表（勤務時間帯）'!$C$5:$W$46,21,FALSE)) ->  | AH41: =IF(AH40="","",VLOOKUP(AH40,'シフト記号表（勤務時間帯）'!$C$5:$W$46,21,FALSE)) ->  | AI41: =IF(AI40="","",VLOOKUP(AI40,'シフト記号表（勤務時間帯）'!$C$5:$W$46,21,FALSE)) ->  | AJ41: =IF(AJ40="","",VLOOKUP(AJ40,'シフト記号表（勤務時間帯）'!$C$5:$W$46,21,FALSE)) ->  | AK41: =IF(AK40="","",VLOOKUP(AK40,'シフト記号表（勤務時間帯）'!$C$5:$W$46,21,FALSE)) ->  | AL41: =IF(AL40="","",VLOOKUP(AL40,'シフト記号表（勤務時間帯）'!$C$5:$W$46,21,FALSE)) ->  | AM41: =IF(AM40="","",VLOOKUP(AM40,'シフト記号表（勤務時間帯）'!$C$5:$W$46,21,FALSE)) ->  | AN41: =IF(AN40="","",VLOOKUP(AN40,'シフト記号表（勤務時間帯）'!$C$5:$W$46,21,FALSE)) ->  | AO41: =IF(AO40="","",VLOOKUP(AO40,'シフト記号表（勤務時間帯）'!$C$5:$W$46,21,FALSE)) ->  | AP41: =IF(AP40="","",VLOOKUP(AP40,'シフト記号表（勤務時間帯）'!$C$5:$W$46,21,FALSE)) ->  | AQ41: =IF(AQ40="","",VLOOKUP(AQ40,'シフト記号表（勤務時間帯）'!$C$5:$W$46,21,FALSE)) ->  | AR41: =IF(AR40="","",VLOOKUP(AR40,'シフト記号表（勤務時間帯）'!$C$5:$W$46,21,FALSE)) ->  | AS41: =IF(AS40="","",VLOOKUP(AS40,'シフト記号表（勤務時間帯）'!$C$5:$W$46,21,FALSE)) ->  | AT41: =IF(AT40="","",VLOOKUP(AT40,'シフト記号表（勤務時間帯）'!$C$5:$W$46,21,FALSE)) ->  | AU41: =IF(AU40="","",VLOOKUP(AU40,'シフト記号表（勤務時間帯）'!$C$5:$W$46,21,FALSE)) ->  | AV41: =IF(AV40="","",VLOOKUP(AV40,'シフト記号表（勤務時間帯）'!$C$5:$W$46,21,FALSE)) ->  | AW41: =IF(AW40="","",VLOOKUP(AW40,'シフト記号表（勤務時間帯）'!$C$5:$W$46,21,FALSE)) ->  | AX41: =IF(AX40="","",VLOOKUP(AX40,'シフト記号表（勤務時間帯）'!$C$5:$W$46,21,FALSE)) ->  | AY41: =IF($BB$3="計画",SUM(T41:AU41),IF($BB$3="実績",SUM(T41:AX41),"")) -> 0 | BA41: =IF($BB$3="計画",AY41/4,IF($BB$3="実績",(AY41/($BB$7/7)),"")) -> 0
F42: =C41 -> 0 | O42: 夜間・深夜の勤務時間数 | T42: =IF(T40="","",VLOOKUP(T40,'シフト記号表（勤務時間帯）'!$C$5:$Y$46,23,FALSE)) ->  | U42: =IF(U40="","",VLOOKUP(U40,'シフト記号表（勤務時間帯）'!$C$5:$Y$46,23,FALSE)) ->  | V42: =IF(V40="","",VLOOKUP(V40,'シフト記号表（勤務時間帯）'!$C$5:$Y$46,23,FALSE)) ->  | W42: =IF(W40="","",VLOOKUP(W40,'シフト記号表（勤務時間帯）'!$C$5:$Y$46,23,FALSE)) ->  | X42: =IF(X40="","",VLOOKUP(X40,'シフト記号表（勤務時間帯）'!$C$5:$Y$46,23,FALSE)) ->  | Y42: =IF(Y40="","",VLOOKUP(Y40,'シフト記号表（勤務時間帯）'!$C$5:$Y$46,23,FALSE)) ->  | Z42: =IF(Z40="","",VLOOKUP(Z40,'シフト記号表（勤務時間帯）'!$C$5:$Y$46,23,FALSE)) ->  | AA42: =IF(AA40="","",VLOOKUP(AA40,'シフト記号表（勤務時間帯）'!$C$5:$Y$46,23,FALSE)) ->  | AB42: =IF(AB40="","",VLOOKUP(AB40,'シフト記号表（勤務時間帯）'!$C$5:$Y$46,23,FALSE)) ->  | AC42: =IF(AC40="","",VLOOKUP(AC40,'シフト記号表（勤務時間帯）'!$C$5:$Y$46,23,FALSE)) ->  | AD42: =IF(AD40="","",VLOOKUP(AD40,'シフト記号表（勤務時間帯）'!$C$5:$Y$46,23,FALSE)) ->  | AE42: =IF(AE40="","",VLOOKUP(AE40,'シフト記号表（勤務時間帯）'!$C$5:$Y$46,23,FALSE)) ->  | AF42: =IF(AF40="","",VLOOKUP(AF40,'シフト記号表（勤務時間帯）'!$C$5:$Y$46,23,FALSE)) ->  | AG42: =IF(AG40="","",VLOOKUP(AG40,'シフト記号表（勤務時間帯）'!$C$5:$Y$46,23,FALSE)) ->  | AH42: =IF(AH40="","",VLOOKUP(AH40,'シフト記号表（勤務時間帯）'!$C$5:$Y$46,23,FALSE)) ->  | AI42: =IF(AI40="","",VLOOKUP(AI40,'シフト記号表（勤務時間帯）'!$C$5:$Y$46,23,FALSE)) ->  | AJ42: =IF(AJ40="","",VLOOKUP(AJ40,'シフト記号表（勤務時間帯）'!$C$5:$Y$46,23,FALSE)) ->  | AK42: =IF(AK40="","",VLOOKUP(AK40,'シフト記号表（勤務時間帯）'!$C$5:$Y$46,23,FALSE)) ->  | AL42: =IF(AL40="","",VLOOKUP(AL40,'シフト記号表（勤務時間帯）'!$C$5:$Y$46,23,FALSE)) ->  | AM42: =IF(AM40="","",VLOOKUP(AM40,'シフト記号表（勤務時間帯）'!$C$5:$Y$46,23,FALSE)) ->  | AN42: =IF(AN40="","",VLOOKUP(AN40,'シフト記号表（勤務時間帯）'!$C$5:$Y$46,23,FALSE)) ->  | AO42: =IF(AO40="","",VLOOKUP(AO40,'シフト記号表（勤務時間帯）'!$C$5:$Y$46,23,FALSE)) ->  | AP42: =IF(AP40="","",VLOOKUP(AP40,'シフト記号表（勤務時間帯）'!$C$5:$Y$46,23,FALSE)) ->  | AQ42: =IF(AQ40="","",VLOOKUP(AQ40,'シフト記号表（勤務時間帯）'!$C$5:$Y$46,23,FALSE)) ->  | AR42: =IF(AR40="","",VLOOKUP(AR40,'シフト記号表（勤務時間帯）'!$C$5:$Y$46,23,FALSE)) ->  | AS42: =IF(AS40="","",VLOOKUP(AS40,'シフト記号表（勤務時間帯）'!$C$5:$Y$46,23,FALSE)) ->  | AT42: =IF(AT40="","",VLOOKUP(AT40,'シフト記号表（勤務時間帯）'!$C$5:$Y$46,23,FALSE)) ->  | AU42: =IF(AU40="","",VLOOKUP(AU40,'シフト記号表（勤務時間帯）'!$C$5:$Y$46,23,FALSE)) ->  | AV42: =IF(AV40="","",VLOOKUP(AV40,'シフト記号表（勤務時間帯）'!$C$5:$Y$46,23,FALSE)) ->  | AW42: =IF(AW40="","",VLOOKUP(AW40,'シフト記号表（勤務時間帯）'!$C$5:$Y$46,23,FALSE)) ->  | AX42: =IF(AX40="","",VLOOKUP(AX40,'シフト記号表（勤務時間帯）'!$C$5:$Y$46,23,FALSE)) ->  | AY42: =IF($BB$3="計画",SUM(T42:AU42),IF($BB$3="実績",SUM(T42:AX42),"")) -> 0 | BA42: =IF($BB$3="計画",AY42/4,IF($BB$3="実績",(AY42/($BB$7/7)),"")) -> 0
O43: シフト記号
B44: =B41+1 -> 9 | O44: 日中の勤務時間数 | T44: =IF(T43="","",VLOOKUP(T43,'シフト記号表（勤務時間帯）'!$C$5:$W$46,21,FALSE)) ->  | U44: =IF(U43="","",VLOOKUP(U43,'シフト記号表（勤務時間帯）'!$C$5:$W$46,21,FALSE)) ->  | V44: =IF(V43="","",VLOOKUP(V43,'シフト記号表（勤務時間帯）'!$C$5:$W$46,21,FALSE)) ->  | W44: =IF(W43="","",VLOOKUP(W43,'シフト記号表（勤務時間帯）'!$C$5:$W$46,21,FALSE)) ->  | X44: =IF(X43="","",VLOOKUP(X43,'シフト記号表（勤務時間帯）'!$C$5:$W$46,21,FALSE)) ->  | Y44: =IF(Y43="","",VLOOKUP(Y43,'シフト記号表（勤務時間帯）'!$C$5:$W$46,21,FALSE)) ->  | Z44: =IF(Z43="","",VLOOKUP(Z43,'シフト記号表（勤務時間帯）'!$C$5:$W$46,21,FALSE)) ->  | AA44: =IF(AA43="","",VLOOKUP(AA43,'シフト記号表（勤務時間帯）'!$C$5:$W$46,21,FALSE)) ->  | AB44: =IF(AB43="","",VLOOKUP(AB43,'シフト記号表（勤務時間帯）'!$C$5:$W$46,21,FALSE)) ->  | AC44: =IF(AC43="","",VLOOKUP(AC43,'シフト記号表（勤務時間帯）'!$C$5:$W$46,21,FALSE)) ->  | AD44: =IF(AD43="","",VLOOKUP(AD43,'シフト記号表（勤務時間帯）'!$C$5:$W$46,21,FALSE)) ->  | AE44: =IF(AE43="","",VLOOKUP(AE43,'シフト記号表（勤務時間帯）'!$C$5:$W$46,21,FALSE)) ->  | AF44: =IF(AF43="","",VLOOKUP(AF43,'シフト記号表（勤務時間帯）'!$C$5:$W$46,21,FALSE)) ->  | AG44: =IF(AG43="","",VLOOKUP(AG43,'シフト記号表（勤務時間帯）'!$C$5:$W$46,21,FALSE)) ->  | AH44: =IF(AH43="","",VLOOKUP(AH43,'シフト記号表（勤務時間帯）'!$C$5:$W$46,21,FALSE)) ->  | AI44: =IF(AI43="","",VLOOKUP(AI43,'シフト記号表（勤務時間帯）'!$C$5:$W$46,21,FALSE)) ->  | AJ44: =IF(AJ43="","",VLOOKUP(AJ43,'シフト記号表（勤務時間帯）'!$C$5:$W$46,21,FALSE)) ->  | AK44: =IF(AK43="","",VLOOKUP(AK43,'シフト記号表（勤務時間帯）'!$C$5:$W$46,21,FALSE)) ->  | AL44: =IF(AL43="","",VLOOKUP(AL43,'シフト記号表（勤務時間帯）'!$C$5:$W$46,21,FALSE)) ->  | AM44: =IF(AM43="","",VLOOKUP(AM43,'シフト記号表（勤務時間帯）'!$C$5:$W$46,21,FALSE)) ->  | AN44: =IF(AN43="","",VLOOKUP(AN43,'シフト記号表（勤務時間帯）'!$C$5:$W$46,21,FALSE)) ->  | AO44: =IF(AO43="","",VLOOKUP(AO43,'シフト記号表（勤務時間帯）'!$C$5:$W$46,21,FALSE)) ->  | AP44: =IF(AP43="","",VLOOKUP(AP43,'シフト記号表（勤務時間帯）'!$C$5:$W$46,21,FALSE)) ->  | AQ44: =IF(AQ43="","",VLOOKUP(AQ43,'シフト記号表（勤務時間帯）'!$C$5:$W$46,21,FALSE)) ->  | AR44: =IF(AR43="","",VLOOKUP(AR43,'シフト記号表（勤務時間帯）'!$C$5:$W$46,21,FALSE)) ->  | AS44: =IF(AS43="","",VLOOKUP(AS43,'シフト記号表（勤務時間帯）'!$C$5:$W$46,21,FALSE)) ->  | AT44: =IF(AT43="","",VLOOKUP(AT43,'シフト記号表（勤務時間帯）'!$C$5:$W$46,21,FALSE)) ->  | AU44: =IF(AU43="","",VLOOKUP(AU43,'シフト記号表（勤務時間帯）'!$C$5:$W$46,21,FALSE)) ->  | AV44: =IF(AV43="","",VLOOKUP(AV43,'シフト記号表（勤務時間帯）'!$C$5:$W$46,21,FALSE)) ->  | AW44: =IF(AW43="","",VLOOKUP(AW43,'シフト記号表（勤務時間帯）'!$C$5:$W$46,21,FALSE)) ->  | AX44: =IF(AX43="","",VLOOKUP(AX43,'シフト記号表（勤務時間帯）'!$C$5:$W$46,21,FALSE)) ->  | AY44: =IF($BB$3="計画",SUM(T44:AU44),IF($BB$3="実績",SUM(T44:AX44),"")) -> 0 | BA44: =IF($BB$3="計画",AY44/4,IF($BB$3="実績",(AY44/($BB$7/7)),"")) -> 0
F45: =C44 -> 0 | O45: 夜間・深夜の勤務時間数 | T45: =IF(T43="","",VLOOKUP(T43,'シフト記号表（勤務時間帯）'!$C$5:$Y$46,23,FALSE)) ->  | U45: =IF(U43="","",VLOOKUP(U43,'シフト記号表（勤務時間帯）'!$C$5:$Y$46,23,FALSE)) ->  | V45: =IF(V43="","",VLOOKUP(V43,'シフト記号表（勤務時間帯）'!$C$5:$Y$46,23,FALSE)) ->  | W45: =IF(W43="","",VLOOKUP(W43,'シフト記号表（勤務時間帯）'!$C$5:$Y$46,23,FALSE)) ->  | X45: =IF(X43="","",VLOOKUP(X43,'シフト記号表（勤務時間帯）'!$C$5:$Y$46,23,FALSE)) ->  | Y45: =IF(Y43="","",VLOOKUP(Y43,'シフト記号表（勤務時間帯）'!$C$5:$Y$46,23,FALSE)) ->  | Z45: =IF(Z43="","",VLOOKUP(Z43,'シフト記号表（勤務時間帯）'!$C$5:$Y$46,23,FALSE)) ->  | AA45: =IF(AA43="","",VLOOKUP(AA43,'シフト記号表（勤務時間帯）'!$C$5:$Y$46,23,FALSE)) ->  | AB45: =IF(AB43="","",VLOOKUP(AB43,'シフト記号表（勤務時間帯）'!$C$5:$Y$46,23,FALSE)) ->  | AC45: =IF(AC43="","",VLOOKUP(AC43,'シフト記号表（勤務時間帯）'!$C$5:$Y$46,23,FALSE)) ->  | AD45: =IF(AD43="","",VLOOKUP(AD43,'シフト記号表（勤務時間帯）'!$C$5:$Y$46,23,FALSE)) ->  | AE45: =IF(AE43="","",VLOOKUP(AE43,'シフト記号表（勤務時間帯）'!$C$5:$Y$46,23,FALSE)) ->  | AF45: =IF(AF43="","",VLOOKUP(AF43,'シフト記号表（勤務時間帯）'!$C$5:$Y$46,23,FALSE)) ->  | AG45: =IF(AG43="","",VLOOKUP(AG43,'シフト記号表（勤務時間帯）'!$C$5:$Y$46,23,FALSE)) ->  | AH45: =IF(AH43="","",VLOOKUP(AH43,'シフト記号表（勤務時間帯）'!$C$5:$Y$46,23,FALSE)) ->  | AI45: =IF(AI43="","",VLOOKUP(AI43,'シフト記号表（勤務時間帯）'!$C$5:$Y$46,23,FALSE)) ->  | AJ45: =IF(AJ43="","",VLOOKUP(AJ43,'シフト記号表（勤務時間帯）'!$C$5:$Y$46,23,FALSE)) ->  | AK45: =IF(AK43="","",VLOOKUP(AK43,'シフト記号表（勤務時間帯）'!$C$5:$Y$46,23,FALSE)) ->  | AL45: =IF(AL43="","",VLOOKUP(AL43,'シフト記号表（勤務時間帯）'!$C$5:$Y$46,23,FALSE)) ->  | AM45: =IF(AM43="","",VLOOKUP(AM43,'シフト記号表（勤務時間帯）'!$C$5:$Y$46,23,FALSE)) ->  | AN45: =IF(AN43="","",VLOOKUP(AN43,'シフト記号表（勤務時間帯）'!$C$5:$Y$46,23,FALSE)) ->  | AO45: =IF(AO43="","",VLOOKUP(AO43,'シフト記号表（勤務時間帯）'!$C$5:$Y$46,23,FALSE)) ->  | AP45: =IF(AP43="","",VLOOKUP(AP43,'シフト記号表（勤務時間帯）'!$C$5:$Y$46,23,FALSE)) ->  | AQ45: =IF(AQ43="","",VLOOKUP(AQ43,'シフト記号表（勤務時間帯）'!$C$5:$Y$46,23,FALSE)) ->  | AR45: =IF(AR43="","",VLOOKUP(AR43,'シフト記号表（勤務時間帯）'!$C$5:$Y$46,23,FALSE)) ->  | AS45: =IF(AS43="","",VLOOKUP(AS43,'シフト記号表（勤務時間帯）'!$C$5:$Y$46,23,FALSE)) ->  | AT45: =IF(AT43="","",VLOOKUP(AT43,'シフト記号表（勤務時間帯）'!$C$5:$Y$46,23,FALSE)) ->  | AU45: =IF(AU43="","",VLOOKUP(AU43,'シフト記号表（勤務時間帯）'!$C$5:$Y$46,23,FALSE)) ->  | AV45: =IF(AV43="","",VLOOKUP(AV43,'シフト記号表（勤務時間帯）'!$C$5:$Y$46,23,FALSE)) ->  | AW45: =IF(AW43="","",VLOOKUP(AW43,'シフト記号表（勤務時間帯）'!$C$5:$Y$46,23,FALSE)) ->  | AX45: =IF(AX43="","",VLOOKUP(AX43,'シフト記号表（勤務時間帯）'!$C$5:$Y$46,23,FALSE)) ->  | AY45: =IF($BB$3="計画",SUM(T45:AU45),IF($BB$3="実績",SUM(T45:AX45),"")) -> 0 | BA45: =IF($BB$3="計画",AY45/4,IF($BB$3="実績",(AY45/($BB$7/7)),"")) -> 0
O46: シフト記号
B47: =B44+1 -> 10 | O47: 日中の勤務時間数 | T47: =IF(T46="","",VLOOKUP(T46,'シフト記号表（勤務時間帯）'!$C$5:$W$46,21,FALSE)) ->  | U47: =IF(U46="","",VLOOKUP(U46,'シフト記号表（勤務時間帯）'!$C$5:$W$46,21,FALSE)) ->  | V47: =IF(V46="","",VLOOKUP(V46,'シフト記号表（勤務時間帯）'!$C$5:$W$46,21,FALSE)) ->  | W47: =IF(W46="","",VLOOKUP(W46,'シフト記号表（勤務時間帯）'!$C$5:$W$46,21,FALSE)) ->  | X47: =IF(X46="","",VLOOKUP(X46,'シフト記号表（勤務時間帯）'!$C$5:$W$46,21,FALSE)) ->  | Y47: =IF(Y46="","",VLOOKUP(Y46,'シフト記号表（勤務時間帯）'!$C$5:$W$46,21,FALSE)) ->  | Z47: =IF(Z46="","",VLOOKUP(Z46,'シフト記号表（勤務時間帯）'!$C$5:$W$46,21,FALSE)) ->  | AA47: =IF(AA46="","",VLOOKUP(AA46,'シフト記号表（勤務時間帯）'!$C$5:$W$46,21,FALSE)) ->  | AB47: =IF(AB46="","",VLOOKUP(AB46,'シフト記号表（勤務時間帯）'!$C$5:$W$46,21,FALSE)) ->  | AC47: =IF(AC46="","",VLOOKUP(AC46,'シフト記号表（勤務時間帯）'!$C$5:$W$46,21,FALSE)) ->  | AD47: =IF(AD46="","",VLOOKUP(AD46,'シフト記号表（勤務時間帯）'!$C$5:$W$46,21,FALSE)) ->  | AE47: =IF(AE46="","",VLOOKUP(AE46,'シフト記号表（勤務時間帯）'!$C$5:$W$46,21,FALSE)) ->  | AF47: =IF(AF46="","",VLOOKUP(AF46,'シフト記号表（勤務時間帯）'!$C$5:$W$46,21,FALSE)) ->  | AG47: =IF(AG46="","",VLOOKUP(AG46,'シフト記号表（勤務時間帯）'!$C$5:$W$46,21,FALSE)) ->  | AH47: =IF(AH46="","",VLOOKUP(AH46,'シフト記号表（勤務時間帯）'!$C$5:$W$46,21,FALSE)) ->  | AI47: =IF(AI46="","",VLOOKUP(AI46,'シフト記号表（勤務時間帯）'!$C$5:$W$46,21,FALSE)) ->  | AJ47: =IF(AJ46="","",VLOOKUP(AJ46,'シフト記号表（勤務時間帯）'!$C$5:$W$46,21,FALSE)) ->  | AK47: =IF(AK46="","",VLOOKUP(AK46,'シフト記号表（勤務時間帯）'!$C$5:$W$46,21,FALSE)) ->  | AL47: =IF(AL46="","",VLOOKUP(AL46,'シフト記号表（勤務時間帯）'!$C$5:$W$46,21,FALSE)) ->  | AM47: =IF(AM46="","",VLOOKUP(AM46,'シフト記号表（勤務時間帯）'!$C$5:$W$46,21,FALSE)) ->  | AN47: =IF(AN46="","",VLOOKUP(AN46,'シフト記号表（勤務時間帯）'!$C$5:$W$46,21,FALSE)) ->  | AO47: =IF(AO46="","",VLOOKUP(AO46,'シフト記号表（勤務時間帯）'!$C$5:$W$46,21,FALSE)) ->  | AP47: =IF(AP46="","",VLOOKUP(AP46,'シフト記号表（勤務時間帯）'!$C$5:$W$46,21,FALSE)) ->  | AQ47: =IF(AQ46="","",VLOOKUP(AQ46,'シフト記号表（勤務時間帯）'!$C$5:$W$46,21,FALSE)) ->  | AR47: =IF(AR46="","",VLOOKUP(AR46,'シフト記号表（勤務時間帯）'!$C$5:$W$46,21,FALSE)) ->  | AS47: =IF(AS46="","",VLOOKUP(AS46,'シフト記号表（勤務時間帯）'!$C$5:$W$46,21,FALSE)) ->  | AT47: =IF(AT46="","",VLOOKUP(AT46,'シフト記号表（勤務時間帯）'!$C$5:$W$46,21,FALSE)) ->  | AU47: =IF(AU46="","",VLOOKUP(AU46,'シフト記号表（勤務時間帯）'!$C$5:$W$46,21,FALSE)) ->  | AV47: =IF(AV46="","",VLOOKUP(AV46,'シフト記号表（勤務時間帯）'!$C$5:$W$46,21,FALSE)) ->  | AW47: =IF(AW46="","",VLOOKUP(AW46,'シフト記号表（勤務時間帯）'!$C$5:$W$46,21,FALSE)) ->  | AX47: =IF(AX46="","",VLOOKUP(AX46,'シフト記号表（勤務時間帯）'!$C$5:$W$46,21,FALSE)) ->  | AY47: =IF($BB$3="計画",SUM(T47:AU47),IF($BB$3="実績",SUM(T47:AX47),"")) -> 0 | BA47: =IF($BB$3="計画",AY47/4,IF($BB$3="実績",(AY47/($BB$7/7)),"")) -> 0
F48: =C47 -> 0 | O48: 夜間・深夜の勤務時間数 | T48: =IF(T46="","",VLOOKUP(T46,'シフト記号表（勤務時間帯）'!$C$5:$Y$46,23,FALSE)) ->  | U48: =IF(U46="","",VLOOKUP(U46,'シフト記号表（勤務時間帯）'!$C$5:$Y$46,23,FALSE)) ->  | V48: =IF(V46="","",VLOOKUP(V46,'シフト記号表（勤務時間帯）'!$C$5:$Y$46,23,FALSE)) ->  | W48: =IF(W46="","",VLOOKUP(W46,'シフト記号表（勤務時間帯）'!$C$5:$Y$46,23,FALSE)) ->  | X48: =IF(X46="","",VLOOKUP(X46,'シフト記号表（勤務時間帯）'!$C$5:$Y$46,23,FALSE)) ->  | Y48: =IF(Y46="","",VLOOKUP(Y46,'シフト記号表（勤務時間帯）'!$C$5:$Y$46,23,FALSE)) ->  | Z48: =IF(Z46="","",VLOOKUP(Z46,'シフト記号表（勤務時間帯）'!$C$5:$Y$46,23,FALSE)) ->  | AA48: =IF(AA46="","",VLOOKUP(AA46,'シフト記号表（勤務時間帯）'!$C$5:$Y$46,23,FALSE)) ->  | AB48: =IF(AB46="","",VLOOKUP(AB46,'シフト記号表（勤務時間帯）'!$C$5:$Y$46,23,FALSE)) ->  | AC48: =IF(AC46="","",VLOOKUP(AC46,'シフト記号表（勤務時間帯）'!$C$5:$Y$46,23,FALSE)) ->  | AD48: =IF(AD46="","",VLOOKUP(AD46,'シフト記号表（勤務時間帯）'!$C$5:$Y$46,23,FALSE)) ->  | AE48: =IF(AE46="","",VLOOKUP(AE46,'シフト記号表（勤務時間帯）'!$C$5:$Y$46,23,FALSE)) ->  | AF48: =IF(AF46="","",VLOOKUP(AF46,'シフト記号表（勤務時間帯）'!$C$5:$Y$46,23,FALSE)) ->  | AG48: =IF(AG46="","",VLOOKUP(AG46,'シフト記号表（勤務時間帯）'!$C$5:$Y$46,23,FALSE)) ->  | AH48: =IF(AH46="","",VLOOKUP(AH46,'シフト記号表（勤務時間帯）'!$C$5:$Y$46,23,FALSE)) ->  | AI48: =IF(AI46="","",VLOOKUP(AI46,'シフト記号表（勤務時間帯）'!$C$5:$Y$46,23,FALSE)) ->  | AJ48: =IF(AJ46="","",VLOOKUP(AJ46,'シフト記号表（勤務時間帯）'!$C$5:$Y$46,23,FALSE)) ->  | AK48: =IF(AK46="","",VLOOKUP(AK46,'シフト記号表（勤務時間帯）'!$C$5:$Y$46,23,FALSE)) ->  | AL48: =IF(AL46="","",VLOOKUP(AL46,'シフト記号表（勤務時間帯）'!$C$5:$Y$46,23,FALSE)) ->  | AM48: =IF(AM46="","",VLOOKUP(AM46,'シフト記号表（勤務時間帯）'!$C$5:$Y$46,23,FALSE)) ->  | AN48: =IF(AN46="","",VLOOKUP(AN46,'シフト記号表（勤務時間帯）'!$C$5:$Y$46,23,FALSE)) ->  | AO48: =IF(AO46="","",VLOOKUP(AO46,'シフト記号表（勤務時間帯）'!$C$5:$Y$46,23,FALSE)) ->  | AP48: =IF(AP46="","",VLOOKUP(AP46,'シフト記号表（勤務時間帯）'!$C$5:$Y$46,23,FALSE)) ->  | AQ48: =IF(AQ46="","",VLOOKUP(AQ46,'シフト記号表（勤務時間帯）'!$C$5:$Y$46,23,FALSE)) ->  | AR48: =IF(AR46="","",VLOOKUP(AR46,'シフト記号表（勤務時間帯）'!$C$5:$Y$46,23,FALSE)) ->  | AS48: =IF(AS46="","",VLOOKUP(AS46,'シフト記号表（勤務時間帯）'!$C$5:$Y$46,23,FALSE)) ->  | AT48: =IF(AT46="","",VLOOKUP(AT46,'シフト記号表（勤務時間帯）'!$C$5:$Y$46,23,FALSE)) ->  | AU48: =IF(AU46="","",VLOOKUP(AU46,'シフト記号表（勤務時間帯）'!$C$5:$Y$46,23,FALSE)) ->  | AV48: =IF(AV46="","",VLOOKUP(AV46,'シフト記号表（勤務時間帯）'!$C$5:$Y$46,23,FALSE)) ->  | AW48: =IF(AW46="","",VLOOKUP(AW46,'シフト記号表（勤務時間帯）'!$C$5:$Y$46,23,FALSE)) ->  | AX48: =IF(AX46="","",VLOOKUP(AX46,'シフト記号表（勤務時間帯）'!$C$5:$Y$46,23,FALSE)) ->  | AY48: =IF($BB$3="計画",SUM(T48:AU48),IF($BB$3="実績",SUM(T48:AX48),"")) -> 0 | BA48: =IF($BB$3="計画",AY48/4,IF($BB$3="実績",(AY48/($BB$7/7)),"")) -> 0
O49: シフト記号
B50: =B47+1 -> 11 | O50: 日中の勤務時間数 | T50: =IF(T49="","",VLOOKUP(T49,'シフト記号表（勤務時間帯）'!$C$5:$W$46,21,FALSE)) ->  | U50: =IF(U49="","",VLOOKUP(U49,'シフト記号表（勤務時間帯）'!$C$5:$W$46,21,FALSE)) ->  | V50: =IF(V49="","",VLOOKUP(V49,'シフト記号表（勤務時間帯）'!$C$5:$W$46,21,FALSE)) ->  | W50: =IF(W49="","",VLOOKUP(W49,'シフト記号表（勤務時間帯）'!$C$5:$W$46,21,FALSE)) ->  | X50: =IF(X49="","",VLOOKUP(X49,'シフト記号表（勤務時間帯）'!$C$5:$W$46,21,FALSE)) ->  | Y50: =IF(Y49="","",VLOOKUP(Y49,'シフト記号表（勤務時間帯）'!$C$5:$W$46,21,FALSE)) ->  | Z50: =IF(Z49="","",VLOOKUP(Z49,'シフト記号表（勤務時間帯）'!$C$5:$W$46,21,FALSE)) ->  | AA50: =IF(AA49="","",VLOOKUP(AA49,'シフト記号表（勤務時間帯）'!$C$5:$W$46,21,FALSE)) ->  | AB50: =IF(AB49="","",VLOOKUP(AB49,'シフト記号表（勤務時間帯）'!$C$5:$W$46,21,FALSE)) ->  | AC50: =IF(AC49="","",VLOOKUP(AC49,'シフト記号表（勤務時間帯）'!$C$5:$W$46,21,FALSE)) ->  | AD50: =IF(AD49="","",VLOOKUP(AD49,'シフト記号表（勤務時間帯）'!$C$5:$W$46,21,FALSE)) ->  | AE50: =IF(AE49="","",VLOOKUP(AE49,'シフト記号表（勤務時間帯）'!$C$5:$W$46,21,FALSE)) ->  | AF50: =IF(AF49="","",VLOOKUP(AF49,'シフト記号表（勤務時間帯）'!$C$5:$W$46,21,FALSE)) ->  | AG50: =IF(AG49="","",VLOOKUP(AG49,'シフト記号表（勤務時間帯）'!$C$5:$W$46,21,FALSE)) ->  | AH50: =IF(AH49="","",VLOOKUP(AH49,'シフト記号表（勤務時間帯）'!$C$5:$W$46,21,FALSE)) ->  | AI50: =IF(AI49="","",VLOOKUP(AI49,'シフト記号表（勤務時間帯）'!$C$5:$W$46,21,FALSE)) ->  | AJ50: =IF(AJ49="","",VLOOKUP(AJ49,'シフト記号表（勤務時間帯）'!$C$5:$W$46,21,FALSE)) ->  | AK50: =IF(AK49="","",VLOOKUP(AK49,'シフト記号表（勤務時間帯）'!$C$5:$W$46,21,FALSE)) ->  | AL50: =IF(AL49="","",VLOOKUP(AL49,'シフト記号表（勤務時間帯）'!$C$5:$W$46,21,FALSE)) ->  | AM50: =IF(AM49="","",VLOOKUP(AM49,'シフト記号表（勤務時間帯）'!$C$5:$W$46,21,FALSE)) ->  | AN50: =IF(AN49="","",VLOOKUP(AN49,'シフト記号表（勤務時間帯）'!$C$5:$W$46,21,FALSE)) ->  | AO50: =IF(AO49="","",VLOOKUP(AO49,'シフト記号表（勤務時間帯）'!$C$5:$W$46,21,FALSE)) ->  | AP50: =IF(AP49="","",VLOOKUP(AP49,'シフト記号表（勤務時間帯）'!$C$5:$W$46,21,FALSE)) ->  | AQ50: =IF(AQ49="","",VLOOKUP(AQ49,'シフト記号表（勤務時間帯）'!$C$5:$W$46,21,FALSE)) ->  | AR50: =IF(AR49="","",VLOOKUP(AR49,'シフト記号表（勤務時間帯）'!$C$5:$W$46,21,FALSE)) ->  | AS50: =IF(AS49="","",VLOOKUP(AS49,'シフト記号表（勤務時間帯）'!$C$5:$W$46,21,FALSE)) ->  | AT50: =IF(AT49="","",VLOOKUP(AT49,'シフト記号表（勤務時間帯）'!$C$5:$W$46,21,FALSE)) ->  | AU50: =IF(AU49="","",VLOOKUP(AU49,'シフト記号表（勤務時間帯）'!$C$5:$W$46,21,FALSE)) ->  | AV50: =IF(AV49="","",VLOOKUP(AV49,'シフト記号表（勤務時間帯）'!$C$5:$W$46,21,FALSE)) ->  | AW50: =IF(AW49="","",VLOOKUP(AW49,'シフト記号表（勤務時間帯）'!$C$5:$W$46,21,FALSE)) ->  | AX50: =IF(AX49="","",VLOOKUP(AX49,'シフト記号表（勤務時間帯）'!$C$5:$W$46,21,FALSE)) ->  | AY50: =IF($BB$3="計画",SUM(T50:AU50),IF($BB$3="実績",SUM(T50:AX50),"")) -> 0 | BA50: =IF($BB$3="計画",AY50/4,IF($BB$3="実績",(AY50/($BB$7/7)),"")) -> 0
F51: =C50 -> 0 | O51: 夜間・深夜の勤務時間数 | T51: =IF(T49="","",VLOOKUP(T49,'シフト記号表（勤務時間帯）'!$C$5:$Y$46,23,FALSE)) ->  | U51: =IF(U49="","",VLOOKUP(U49,'シフト記号表（勤務時間帯）'!$C$5:$Y$46,23,FALSE)) ->  | V51: =IF(V49="","",VLOOKUP(V49,'シフト記号表（勤務時間帯）'!$C$5:$Y$46,23,FALSE)) ->  | W51: =IF(W49="","",VLOOKUP(W49,'シフト記号表（勤務時間帯）'!$C$5:$Y$46,23,FALSE)) ->  | X51: =IF(X49="","",VLOOKUP(X49,'シフト記号表（勤務時間帯）'!$C$5:$Y$46,23,FALSE)) ->  | Y51: =IF(Y49="","",VLOOKUP(Y49,'シフト記号表（勤務時間帯）'!$C$5:$Y$46,23,FALSE)) ->  | Z51: =IF(Z49="","",VLOOKUP(Z49,'シフト記号表（勤務時間帯）'!$C$5:$Y$46,23,FALSE)) ->  | AA51: =IF(AA49="","",VLOOKUP(AA49,'シフト記号表（勤務時間帯）'!$C$5:$Y$46,23,FALSE)) ->  | AB51: =IF(AB49="","",VLOOKUP(AB49,'シフト記号表（勤務時間帯）'!$C$5:$Y$46,23,FALSE)) ->  | AC51: =IF(AC49="","",VLOOKUP(AC49,'シフト記号表（勤務時間帯）'!$C$5:$Y$46,23,FALSE)) ->  | AD51: =IF(AD49="","",VLOOKUP(AD49,'シフト記号表（勤務時間帯）'!$C$5:$Y$46,23,FALSE)) ->  | AE51: =IF(AE49="","",VLOOKUP(AE49,'シフト記号表（勤務時間帯）'!$C$5:$Y$46,23,FALSE)) ->  | AF51: =IF(AF49="","",VLOOKUP(AF49,'シフト記号表（勤務時間帯）'!$C$5:$Y$46,23,FALSE)) ->  | AG51: =IF(AG49="","",VLOOKUP(AG49,'シフト記号表（勤務時間帯）'!$C$5:$Y$46,23,FALSE)) ->  | AH51: =IF(AH49="","",VLOOKUP(AH49,'シフト記号表（勤務時間帯）'!$C$5:$Y$46,23,FALSE)) ->  | AI51: =IF(AI49="","",VLOOKUP(AI49,'シフト記号表（勤務時間帯）'!$C$5:$Y$46,23,FALSE)) ->  | AJ51: =IF(AJ49="","",VLOOKUP(AJ49,'シフト記号表（勤務時間帯）'!$C$5:$Y$46,23,FALSE)) ->  | AK51: =IF(AK49="","",VLOOKUP(AK49,'シフト記号表（勤務時間帯）'!$C$5:$Y$46,23,FALSE)) ->  | AL51: =IF(AL49="","",VLOOKUP(AL49,'シフト記号表（勤務時間帯）'!$C$5:$Y$46,23,FALSE)) ->  | AM51: =IF(AM49="","",VLOOKUP(AM49,'シフト記号表（勤務時間帯）'!$C$5:$Y$46,23,FALSE)) ->  | AN51: =IF(AN49="","",VLOOKUP(AN49,'シフト記号表（勤務時間帯）'!$C$5:$Y$46,23,FALSE)) ->  | AO51: =IF(AO49="","",VLOOKUP(AO49,'シフト記号表（勤務時間帯）'!$C$5:$Y$46,23,FALSE)) ->  | AP51: =IF(AP49="","",VLOOKUP(AP49,'シフト記号表（勤務時間帯）'!$C$5:$Y$46,23,FALSE)) ->  | AQ51: =IF(AQ49="","",VLOOKUP(AQ49,'シフト記号表（勤務時間帯）'!$C$5:$Y$46,23,FALSE)) ->  | AR51: =IF(AR49="","",VLOOKUP(AR49,'シフト記号表（勤務時間帯）'!$C$5:$Y$46,23,FALSE)) ->  | AS51: =IF(AS49="","",VLOOKUP(AS49,'シフト記号表（勤務時間帯）'!$C$5:$Y$46,23,FALSE)) ->  | AT51: =IF(AT49="","",VLOOKUP(AT49,'シフト記号表（勤務時間帯）'!$C$5:$Y$46,23,FALSE)) ->  | AU51: =IF(AU49="","",VLOOKUP(AU49,'シフト記号表（勤務時間帯）'!$C$5:$Y$46,23,FALSE)) ->  | AV51: =IF(AV49="","",VLOOKUP(AV49,'シフト記号表（勤務時間帯）'!$C$5:$Y$46,23,FALSE)) ->  | AW51: =IF(AW49="","",VLOOKUP(AW49,'シフト記号表（勤務時間帯）'!$C$5:$Y$46,23,FALSE)) ->  | AX51: =IF(AX49="","",VLOOKUP(AX49,'シフト記号表（勤務時間帯）'!$C$5:$Y$46,23,FALSE)) ->  | AY51: =IF($BB$3="計画",SUM(T51:AU51),IF($BB$3="実績",SUM(T51:AX51),"")) -> 0 | BA51: =IF($BB$3="計画",AY51/4,IF($BB$3="実績",(AY51/($BB$7/7)),"")) -> 0
O52: シフト記号
B53: =B50+1 -> 12 | O53: 日中の勤務時間数 | T53: =IF(T52="","",VLOOKUP(T52,'シフト記号表（勤務時間帯）'!$C$5:$W$46,21,FALSE)) ->  | U53: =IF(U52="","",VLOOKUP(U52,'シフト記号表（勤務時間帯）'!$C$5:$W$46,21,FALSE)) ->  | V53: =IF(V52="","",VLOOKUP(V52,'シフト記号表（勤務時間帯）'!$C$5:$W$46,21,FALSE)) ->  | W53: =IF(W52="","",VLOOKUP(W52,'シフト記号表（勤務時間帯）'!$C$5:$W$46,21,FALSE)) ->  | X53: =IF(X52="","",VLOOKUP(X52,'シフト記号表（勤務時間帯）'!$C$5:$W$46,21,FALSE)) ->  | Y53: =IF(Y52="","",VLOOKUP(Y52,'シフト記号表（勤務時間帯）'!$C$5:$W$46,21,FALSE)) ->  | Z53: =IF(Z52="","",VLOOKUP(Z52,'シフト記号表（勤務時間帯）'!$C$5:$W$46,21,FALSE)) ->  | AA53: =IF(AA52="","",VLOOKUP(AA52,'シフト記号表（勤務時間帯）'!$C$5:$W$46,21,FALSE)) ->  | AB53: =IF(AB52="","",VLOOKUP(AB52,'シフト記号表（勤務時間帯）'!$C$5:$W$46,21,FALSE)) ->  | AC53: =IF(AC52="","",VLOOKUP(AC52,'シフト記号表（勤務時間帯）'!$C$5:$W$46,21,FALSE)) ->  | AD53: =IF(AD52="","",VLOOKUP(AD52,'シフト記号表（勤務時間帯）'!$C$5:$W$46,21,FALSE)) ->  | AE53: =IF(AE52="","",VLOOKUP(AE52,'シフト記号表（勤務時間帯）'!$C$5:$W$46,21,FALSE)) ->  | AF53: =IF(AF52="","",VLOOKUP(AF52,'シフト記号表（勤務時間帯）'!$C$5:$W$46,21,FALSE)) ->  | AG53: =IF(AG52="","",VLOOKUP(AG52,'シフト記号表（勤務時間帯）'!$C$5:$W$46,21,FALSE)) ->  | AH53: =IF(AH52="","",VLOOKUP(AH52,'シフト記号表（勤務時間帯）'!$C$5:$W$46,21,FALSE)) ->  | AI53: =IF(AI52="","",VLOOKUP(AI52,'シフト記号表（勤務時間帯）'!$C$5:$W$46,21,FALSE)) ->  | AJ53: =IF(AJ52="","",VLOOKUP(AJ52,'シフト記号表（勤務時間帯）'!$C$5:$W$46,21,FALSE)) ->  | AK53: =IF(AK52="","",VLOOKUP(AK52,'シフト記号表（勤務時間帯）'!$C$5:$W$46,21,FALSE)) ->  | AL53: =IF(AL52="","",VLOOKUP(AL52,'シフト記号表（勤務時間帯）'!$C$5:$W$46,21,FALSE)) ->  | AM53: =IF(AM52="","",VLOOKUP(AM52,'シフト記号表（勤務時間帯）'!$C$5:$W$46,21,FALSE)) ->  | AN53: =IF(AN52="","",VLOOKUP(AN52,'シフト記号表（勤務時間帯）'!$C$5:$W$46,21,FALSE)) ->  | AO53: =IF(AO52="","",VLOOKUP(AO52,'シフト記号表（勤務時間帯）'!$C$5:$W$46,21,FALSE)) ->  | AP53: =IF(AP52="","",VLOOKUP(AP52,'シフト記号表（勤務時間帯）'!$C$5:$W$46,21,FALSE)) ->  | AQ53: =IF(AQ52="","",VLOOKUP(AQ52,'シフト記号表（勤務時間帯）'!$C$5:$W$46,21,FALSE)) ->  | AR53: =IF(AR52="","",VLOOKUP(AR52,'シフト記号表（勤務時間帯）'!$C$5:$W$46,21,FALSE)) ->  | AS53: =IF(AS52="","",VLOOKUP(AS52,'シフト記号表（勤務時間帯）'!$C$5:$W$46,21,FALSE)) ->  | AT53: =IF(AT52="","",VLOOKUP(AT52,'シフト記号表（勤務時間帯）'!$C$5:$W$46,21,FALSE)) ->  | AU53: =IF(AU52="","",VLOOKUP(AU52,'シフト記号表（勤務時間帯）'!$C$5:$W$46,21,FALSE)) ->  | AV53: =IF(AV52="","",VLOOKUP(AV52,'シフト記号表（勤務時間帯）'!$C$5:$W$46,21,FALSE)) ->  | AW53: =IF(AW52="","",VLOOKUP(AW52,'シフト記号表（勤務時間帯）'!$C$5:$W$46,21,FALSE)) ->  | AX53: =IF(AX52="","",VLOOKUP(AX52,'シフト記号表（勤務時間帯）'!$C$5:$W$46,21,FALSE)) ->  | AY53: =IF($BB$3="計画",SUM(T53:AU53),IF($BB$3="実績",SUM(T53:AX53),"")) -> 0 | BA53: =IF($BB$3="計画",AY53/4,IF($BB$3="実績",(AY53/($BB$7/7)),"")) -> 0
F54: =C53 -> 0 | O54: 夜間・深夜の勤務時間数 | T54: =IF(T52="","",VLOOKUP(T52,'シフト記号表（勤務時間帯）'!$C$5:$Y$46,23,FALSE)) ->  | U54: =IF(U52="","",VLOOKUP(U52,'シフト記号表（勤務時間帯）'!$C$5:$Y$46,23,FALSE)) ->  | V54: =IF(V52="","",VLOOKUP(V52,'シフト記号表（勤務時間帯）'!$C$5:$Y$46,23,FALSE)) ->  | W54: =IF(W52="","",VLOOKUP(W52,'シフト記号表（勤務時間帯）'!$C$5:$Y$46,23,FALSE)) ->  | X54: =IF(X52="","",VLOOKUP(X52,'シフト記号表（勤務時間帯）'!$C$5:$Y$46,23,FALSE)) ->  | Y54: =IF(Y52="","",VLOOKUP(Y52,'シフト記号表（勤務時間帯）'!$C$5:$Y$46,23,FALSE)) ->  | Z54: =IF(Z52="","",VLOOKUP(Z52,'シフト記号表（勤務時間帯）'!$C$5:$Y$46,23,FALSE)) ->  | AA54: =IF(AA52="","",VLOOKUP(AA52,'シフト記号表（勤務時間帯）'!$C$5:$Y$46,23,FALSE)) ->  | AB54: =IF(AB52="","",VLOOKUP(AB52,'シフト記号表（勤務時間帯）'!$C$5:$Y$46,23,FALSE)) ->  | AC54: =IF(AC52="","",VLOOKUP(AC52,'シフト記号表（勤務時間帯）'!$C$5:$Y$46,23,FALSE)) ->  | AD54: =IF(AD52="","",VLOOKUP(AD52,'シフト記号表（勤務時間帯）'!$C$5:$Y$46,23,FALSE)) ->  | AE54: =IF(AE52="","",VLOOKUP(AE52,'シフト記号表（勤務時間帯）'!$C$5:$Y$46,23,FALSE)) ->  | AF54: =IF(AF52="","",VLOOKUP(AF52,'シフト記号表（勤務時間帯）'!$C$5:$Y$46,23,FALSE)) ->  | AG54: =IF(AG52="","",VLOOKUP(AG52,'シフト記号表（勤務時間帯）'!$C$5:$Y$46,23,FALSE)) ->  | AH54: =IF(AH52="","",VLOOKUP(AH52,'シフト記号表（勤務時間帯）'!$C$5:$Y$46,23,FALSE)) ->  | AI54: =IF(AI52="","",VLOOKUP(AI52,'シフト記号表（勤務時間帯）'!$C$5:$Y$46,23,FALSE)) ->  | AJ54: =IF(AJ52="","",VLOOKUP(AJ52,'シフト記号表（勤務時間帯）'!$C$5:$Y$46,23,FALSE)) ->  | AK54: =IF(AK52="","",VLOOKUP(AK52,'シフト記号表（勤務時間帯）'!$C$5:$Y$46,23,FALSE)) ->  | AL54: =IF(AL52="","",VLOOKUP(AL52,'シフト記号表（勤務時間帯）'!$C$5:$Y$46,23,FALSE)) ->  | AM54: =IF(AM52="","",VLOOKUP(AM52,'シフト記号表（勤務時間帯）'!$C$5:$Y$46,23,FALSE)) ->  | AN54: =IF(AN52="","",VLOOKUP(AN52,'シフト記号表（勤務時間帯）'!$C$5:$Y$46,23,FALSE)) ->  | AO54: =IF(AO52="","",VLOOKUP(AO52,'シフト記号表（勤務時間帯）'!$C$5:$Y$46,23,FALSE)) ->  | AP54: =IF(AP52="","",VLOOKUP(AP52,'シフト記号表（勤務時間帯）'!$C$5:$Y$46,23,FALSE)) ->  | AQ54: =IF(AQ52="","",VLOOKUP(AQ52,'シフト記号表（勤務時間帯）'!$C$5:$Y$46,23,FALSE)) ->  | AR54: =IF(AR52="","",VLOOKUP(AR52,'シフト記号表（勤務時間帯）'!$C$5:$Y$46,23,FALSE)) ->  | AS54: =IF(AS52="","",VLOOKUP(AS52,'シフト記号表（勤務時間帯）'!$C$5:$Y$46,23,FALSE)) ->  | AT54: =IF(AT52="","",VLOOKUP(AT52,'シフト記号表（勤務時間帯）'!$C$5:$Y$46,23,FALSE)) ->  | AU54: =IF(AU52="","",VLOOKUP(AU52,'シフト記号表（勤務時間帯）'!$C$5:$Y$46,23,FALSE)) ->  | AV54: =IF(AV52="","",VLOOKUP(AV52,'シフト記号表（勤務時間帯）'!$C$5:$Y$46,23,FALSE)) ->  | AW54: =IF(AW52="","",VLOOKUP(AW52,'シフト記号表（勤務時間帯）'!$C$5:$Y$46,23,FALSE)) ->  | AX54: =IF(AX52="","",VLOOKUP(AX52,'シフト記号表（勤務時間帯）'!$C$5:$Y$46,23,FALSE)) ->  | AY54: =IF($BB$3="計画",SUM(T54:AU54),IF($BB$3="実績",SUM(T54:AX54),"")) -> 0 | BA54: =IF($BB$3="計画",AY54/4,IF($BB$3="実績",(AY54/($BB$7/7)),"")) -> 0
O55: シフト記号
B56: =B53+1 -> 13 | O56: 日中の勤務時間数 | T56: =IF(T55="","",VLOOKUP(T55,'シフト記号表（勤務時間帯）'!$C$5:$W$46,21,FALSE)) ->  | U56: =IF(U55="","",VLOOKUP(U55,'シフト記号表（勤務時間帯）'!$C$5:$W$46,21,FALSE)) ->  | V56: =IF(V55="","",VLOOKUP(V55,'シフト記号表（勤務時間帯）'!$C$5:$W$46,21,FALSE)) ->  | W56: =IF(W55="","",VLOOKUP(W55,'シフト記号表（勤務時間帯）'!$C$5:$W$46,21,FALSE)) ->  | X56: =IF(X55="","",VLOOKUP(X55,'シフト記号表（勤務時間帯）'!$C$5:$W$46,21,FALSE)) ->  | Y56: =IF(Y55="","",VLOOKUP(Y55,'シフト記号表（勤務時間帯）'!$C$5:$W$46,21,FALSE)) ->  | Z56: =IF(Z55="","",VLOOKUP(Z55,'シフト記号表（勤務時間帯）'!$C$5:$W$46,21,FALSE)) ->  | AA56: =IF(AA55="","",VLOOKUP(AA55,'シフト記号表（勤務時間帯）'!$C$5:$W$46,21,FALSE)) ->  | AB56: =IF(AB55="","",VLOOKUP(AB55,'シフト記号表（勤務時間帯）'!$C$5:$W$46,21,FALSE)) ->  | AC56: =IF(AC55="","",VLOOKUP(AC55,'シフト記号表（勤務時間帯）'!$C$5:$W$46,21,FALSE)) ->  | AD56: =IF(AD55="","",VLOOKUP(AD55,'シフト記号表（勤務時間帯）'!$C$5:$W$46,21,FALSE)) ->  | AE56: =IF(AE55="","",VLOOKUP(AE55,'シフト記号表（勤務時間帯）'!$C$5:$W$46,21,FALSE)) ->  | AF56: =IF(AF55="","",VLOOKUP(AF55,'シフト記号表（勤務時間帯）'!$C$5:$W$46,21,FALSE)) ->  | AG56: =IF(AG55="","",VLOOKUP(AG55,'シフト記号表（勤務時間帯）'!$C$5:$W$46,21,FALSE)) ->  | AH56: =IF(AH55="","",VLOOKUP(AH55,'シフト記号表（勤務時間帯）'!$C$5:$W$46,21,FALSE)) ->  | AI56: =IF(AI55="","",VLOOKUP(AI55,'シフト記号表（勤務時間帯）'!$C$5:$W$46,21,FALSE)) ->  | AJ56: =IF(AJ55="","",VLOOKUP(AJ55,'シフト記号表（勤務時間帯）'!$C$5:$W$46,21,FALSE)) ->  | AK56: =IF(AK55="","",VLOOKUP(AK55,'シフト記号表（勤務時間帯）'!$C$5:$W$46,21,FALSE)) ->  | AL56: =IF(AL55="","",VLOOKUP(AL55,'シフト記号表（勤務時間帯）'!$C$5:$W$46,21,FALSE)) ->  | AM56: =IF(AM55="","",VLOOKUP(AM55,'シフト記号表（勤務時間帯）'!$C$5:$W$46,21,FALSE)) ->  | AN56: =IF(AN55="","",VLOOKUP(AN55,'シフト記号表（勤務時間帯）'!$C$5:$W$46,21,FALSE)) ->  | AO56: =IF(AO55="","",VLOOKUP(AO55,'シフト記号表（勤務時間帯）'!$C$5:$W$46,21,FALSE)) ->  | AP56: =IF(AP55="","",VLOOKUP(AP55,'シフト記号表（勤務時間帯）'!$C$5:$W$46,21,FALSE)) ->  | AQ56: =IF(AQ55="","",VLOOKUP(AQ55,'シフト記号表（勤務時間帯）'!$C$5:$W$46,21,FALSE)) ->  | AR56: =IF(AR55="","",VLOOKUP(AR55,'シフト記号表（勤務時間帯）'!$C$5:$W$46,21,FALSE)) ->  | AS56: =IF(AS55="","",VLOOKUP(AS55,'シフト記号表（勤務時間帯）'!$C$5:$W$46,21,FALSE)) ->  | AT56: =IF(AT55="","",VLOOKUP(AT55,'シフト記号表（勤務時間帯）'!$C$5:$W$46,21,FALSE)) ->  | AU56: =IF(AU55="","",VLOOKUP(AU55,'シフト記号表（勤務時間帯）'!$C$5:$W$46,21,FALSE)) ->  | AV56: =IF(AV55="","",VLOOKUP(AV55,'シフト記号表（勤務時間帯）'!$C$5:$W$46,21,FALSE)) ->  | AW56: =IF(AW55="","",VLOOKUP(AW55,'シフト記号表（勤務時間帯）'!$C$5:$W$46,21,FALSE)) ->  | AX56: =IF(AX55="","",VLOOKUP(AX55,'シフト記号表（勤務時間帯）'!$C$5:$W$46,21,FALSE)) ->  | AY56: =IF($BB$3="計画",SUM(T56:AU56),IF($BB$3="実績",SUM(T56:AX56),"")) -> 0 | BA56: =IF($BB$3="計画",AY56/4,IF($BB$3="実績",(AY56/($BB$7/7)),"")) -> 0
F57: =C56 -> 0 | O57: 夜間・深夜の勤務時間数 | T57: =IF(T55="","",VLOOKUP(T55,'シフト記号表（勤務時間帯）'!$C$5:$Y$46,23,FALSE)) ->  | U57: =IF(U55="","",VLOOKUP(U55,'シフト記号表（勤務時間帯）'!$C$5:$Y$46,23,FALSE)) ->  | V57: =IF(V55="","",VLOOKUP(V55,'シフト記号表（勤務時間帯）'!$C$5:$Y$46,23,FALSE)) ->  | W57: =IF(W55="","",VLOOKUP(W55,'シフト記号表（勤務時間帯）'!$C$5:$Y$46,23,FALSE)) ->  | X57: =IF(X55="","",VLOOKUP(X55,'シフト記号表（勤務時間帯）'!$C$5:$Y$46,23,FALSE)) ->  | Y57: =IF(Y55="","",VLOOKUP(Y55,'シフト記号表（勤務時間帯）'!$C$5:$Y$46,23,FALSE)) ->  | Z57: =IF(Z55="","",VLOOKUP(Z55,'シフト記号表（勤務時間帯）'!$C$5:$Y$46,23,FALSE)) ->  | AA57: =IF(AA55="","",VLOOKUP(AA55,'シフト記号表（勤務時間帯）'!$C$5:$Y$46,23,FALSE)) ->  | AB57: =IF(AB55="","",VLOOKUP(AB55,'シフト記号表（勤務時間帯）'!$C$5:$Y$46,23,FALSE)) ->  | AC57: =IF(AC55="","",VLOOKUP(AC55,'シフト記号表（勤務時間帯）'!$C$5:$Y$46,23,FALSE)) ->  | AD57: =IF(AD55="","",VLOOKUP(AD55,'シフト記号表（勤務時間帯）'!$C$5:$Y$46,23,FALSE)) ->  | AE57: =IF(AE55="","",VLOOKUP(AE55,'シフト記号表（勤務時間帯）'!$C$5:$Y$46,23,FALSE)) ->  | AF57: =IF(AF55="","",VLOOKUP(AF55,'シフト記号表（勤務時間帯）'!$C$5:$Y$46,23,FALSE)) ->  | AG57: =IF(AG55="","",VLOOKUP(AG55,'シフト記号表（勤務時間帯）'!$C$5:$Y$46,23,FALSE)) ->  | AH57: =IF(AH55="","",VLOOKUP(AH55,'シフト記号表（勤務時間帯）'!$C$5:$Y$46,23,FALSE)) ->  | AI57: =IF(AI55="","",VLOOKUP(AI55,'シフト記号表（勤務時間帯）'!$C$5:$Y$46,23,FALSE)) ->  | AJ57: =IF(AJ55="","",VLOOKUP(AJ55,'シフト記号表（勤務時間帯）'!$C$5:$Y$46,23,FALSE)) ->  | AK57: =IF(AK55="","",VLOOKUP(AK55,'シフト記号表（勤務時間帯）'!$C$5:$Y$46,23,FALSE)) ->  | AL57: =IF(AL55="","",VLOOKUP(AL55,'シフト記号表（勤務時間帯）'!$C$5:$Y$46,23,FALSE)) ->  | AM57: =IF(AM55="","",VLOOKUP(AM55,'シフト記号表（勤務時間帯）'!$C$5:$Y$46,23,FALSE)) ->  | AN57: =IF(AN55="","",VLOOKUP(AN55,'シフト記号表（勤務時間帯）'!$C$5:$Y$46,23,FALSE)) ->  | AO57: =IF(AO55="","",VLOOKUP(AO55,'シフト記号表（勤務時間帯）'!$C$5:$Y$46,23,FALSE)) ->  | AP57: =IF(AP55="","",VLOOKUP(AP55,'シフト記号表（勤務時間帯）'!$C$5:$Y$46,23,FALSE)) ->  | AQ57: =IF(AQ55="","",VLOOKUP(AQ55,'シフト記号表（勤務時間帯）'!$C$5:$Y$46,23,FALSE)) ->  | AR57: =IF(AR55="","",VLOOKUP(AR55,'シフト記号表（勤務時間帯）'!$C$5:$Y$46,23,FALSE)) ->  | AS57: =IF(AS55="","",VLOOKUP(AS55,'シフト記号表（勤務時間帯）'!$C$5:$Y$46,23,FALSE)) ->  | AT57: =IF(AT55="","",VLOOKUP(AT55,'シフト記号表（勤務時間帯）'!$C$5:$Y$46,23,FALSE)) ->  | AU57: =IF(AU55="","",VLOOKUP(AU55,'シフト記号表（勤務時間帯）'!$C$5:$Y$46,23,FALSE)) ->  | AV57: =IF(AV55="","",VLOOKUP(AV55,'シフト記号表（勤務時間帯）'!$C$5:$Y$46,23,FALSE)) ->  | AW57: =IF(AW55="","",VLOOKUP(AW55,'シフト記号表（勤務時間帯）'!$C$5:$Y$46,23,FALSE)) ->  | AX57: =IF(AX55="","",VLOOKUP(AX55,'シフト記号表（勤務時間帯）'!$C$5:$Y$46,23,FALSE)) ->  | AY57: =IF($BB$3="計画",SUM(T57:AU57),IF($BB$3="実績",SUM(T57:AX57),"")) -> 0 | BA57: =IF($BB$3="計画",AY57/4,IF($BB$3="実績",(AY57/($BB$7/7)),"")) -> 0
O58: シフト記号
B59: =B56+1 -> 14 | O59: 日中の勤務時間数 | T59: =IF(T58="","",VLOOKUP(T58,'シフト記号表（勤務時間帯）'!$C$5:$W$46,21,FALSE)) ->  | U59: =IF(U58="","",VLOOKUP(U58,'シフト記号表（勤務時間帯）'!$C$5:$W$46,21,FALSE)) ->  | V59: =IF(V58="","",VLOOKUP(V58,'シフト記号表（勤務時間帯）'!$C$5:$W$46,21,FALSE)) ->  | W59: =IF(W58="","",VLOOKUP(W58,'シフト記号表（勤務時間帯）'!$C$5:$W$46,21,FALSE)) ->  | X59: =IF(X58="","",VLOOKUP(X58,'シフト記号表（勤務時間帯）'!$C$5:$W$46,21,FALSE)) ->  | Y59: =IF(Y58="","",VLOOKUP(Y58,'シフト記号表（勤務時間帯）'!$C$5:$W$46,21,FALSE)) ->  | Z59: =IF(Z58="","",VLOOKUP(Z58,'シフト記号表（勤務時間帯）'!$C$5:$W$46,21,FALSE)) ->  | AA59: =IF(AA58="","",VLOOKUP(AA58,'シフト記号表（勤務時間帯）'!$C$5:$W$46,21,FALSE)) ->  | AB59: =IF(AB58="","",VLOOKUP(AB58,'シフト記号表（勤務時間帯）'!$C$5:$W$46,21,FALSE)) ->  | AC59: =IF(AC58="","",VLOOKUP(AC58,'シフト記号表（勤務時間帯）'!$C$5:$W$46,21,FALSE)) ->  | AD59: =IF(AD58="","",VLOOKUP(AD58,'シフト記号表（勤務時間帯）'!$C$5:$W$46,21,FALSE)) ->  | AE59: =IF(AE58="","",VLOOKUP(AE58,'シフト記号表（勤務時間帯）'!$C$5:$W$46,21,FALSE)) ->  | AF59: =IF(AF58="","",VLOOKUP(AF58,'シフト記号表（勤務時間帯）'!$C$5:$W$46,21,FALSE)) ->  | AG59: =IF(AG58="","",VLOOKUP(AG58,'シフト記号表（勤務時間帯）'!$C$5:$W$46,21,FALSE)) ->  | AH59: =IF(AH58="","",VLOOKUP(AH58,'シフト記号表（勤務時間帯）'!$C$5:$W$46,21,FALSE)) ->  | AI59: =IF(AI58="","",VLOOKUP(AI58,'シフト記号表（勤務時間帯）'!$C$5:$W$46,21,FALSE)) ->  | AJ59: =IF(AJ58="","",VLOOKUP(AJ58,'シフト記号表（勤務時間帯）'!$C$5:$W$46,21,FALSE)) ->  | AK59: =IF(AK58="","",VLOOKUP(AK58,'シフト記号表（勤務時間帯）'!$C$5:$W$46,21,FALSE)) ->  | AL59: =IF(AL58="","",VLOOKUP(AL58,'シフト記号表（勤務時間帯）'!$C$5:$W$46,21,FALSE)) ->  | AM59: =IF(AM58="","",VLOOKUP(AM58,'シフト記号表（勤務時間帯）'!$C$5:$W$46,21,FALSE)) ->  | AN59: =IF(AN58="","",VLOOKUP(AN58,'シフト記号表（勤務時間帯）'!$C$5:$W$46,21,FALSE)) ->  | AO59: =IF(AO58="","",VLOOKUP(AO58,'シフト記号表（勤務時間帯）'!$C$5:$W$46,21,FALSE)) ->  | AP59: =IF(AP58="","",VLOOKUP(AP58,'シフト記号表（勤務時間帯）'!$C$5:$W$46,21,FALSE)) ->  | AQ59: =IF(AQ58="","",VLOOKUP(AQ58,'シフト記号表（勤務時間帯）'!$C$5:$W$46,21,FALSE)) ->  | AR59: =IF(AR58="","",VLOOKUP(AR58,'シフト記号表（勤務時間帯）'!$C$5:$W$46,21,FALSE)) ->  | AS59: =IF(AS58="","",VLOOKUP(AS58,'シフト記号表（勤務時間帯）'!$C$5:$W$46,21,FALSE)) ->  | AT59: =IF(AT58="","",VLOOKUP(AT58,'シフト記号表（勤務時間帯）'!$C$5:$W$46,21,FALSE)) ->  | AU59: =IF(AU58="","",VLOOKUP(AU58,'シフト記号表（勤務時間帯）'!$C$5:$W$46,21,FALSE)) ->  | AV59: =IF(AV58="","",VLOOKUP(AV58,'シフト記号表（勤務時間帯）'!$C$5:$W$46,21,FALSE)) ->  | AW59: =IF(AW58="","",VLOOKUP(AW58,'シフト記号表（勤務時間帯）'!$C$5:$W$46,21,FALSE)) ->  | AX59: =IF(AX58="","",VLOOKUP(AX58,'シフト記号表（勤務時間帯）'!$C$5:$W$46,21,FALSE)) ->  | AY59: =IF($BB$3="計画",SUM(T59:AU59),IF($BB$3="実績",SUM(T59:AX59),"")) -> 0 | BA59: =IF($BB$3="計画",AY59/4,IF($BB$3="実績",(AY59/($BB$7/7)),"")) -> 0
F60: =C59 -> 0 | O60: 夜間・深夜の勤務時間数 | T60: =IF(T58="","",VLOOKUP(T58,'シフト記号表（勤務時間帯）'!$C$5:$Y$46,23,FALSE)) ->  | U60: =IF(U58="","",VLOOKUP(U58,'シフト記号表（勤務時間帯）'!$C$5:$Y$46,23,FALSE)) ->  | V60: =IF(V58="","",VLOOKUP(V58,'シフト記号表（勤務時間帯）'!$C$5:$Y$46,23,FALSE)) ->  | W60: =IF(W58="","",VLOOKUP(W58,'シフト記号表（勤務時間帯）'!$C$5:$Y$46,23,FALSE)) ->  | X60: =IF(X58="","",VLOOKUP(X58,'シフト記号表（勤務時間帯）'!$C$5:$Y$46,23,FALSE)) ->  | Y60: =IF(Y58="","",VLOOKUP(Y58,'シフト記号表（勤務時間帯）'!$C$5:$Y$46,23,FALSE)) ->  | Z60: =IF(Z58="","",VLOOKUP(Z58,'シフト記号表（勤務時間帯）'!$C$5:$Y$46,23,FALSE)) ->  | AA60: =IF(AA58="","",VLOOKUP(AA58,'シフト記号表（勤務時間帯）'!$C$5:$Y$46,23,FALSE)) ->  | AB60: =IF(AB58="","",VLOOKUP(AB58,'シフト記号表（勤務時間帯）'!$C$5:$Y$46,23,FALSE)) ->  | AC60: =IF(AC58="","",VLOOKUP(AC58,'シフト記号表（勤務時間帯）'!$C$5:$Y$46,23,FALSE)) ->  | AD60: =IF(AD58="","",VLOOKUP(AD58,'シフト記号表（勤務時間帯）'!$C$5:$Y$46,23,FALSE)) ->  | AE60: =IF(AE58="","",VLOOKUP(AE58,'シフト記号表（勤務時間帯）'!$C$5:$Y$46,23,FALSE)) ->  | AF60: =IF(AF58="","",VLOOKUP(AF58,'シフト記号表（勤務時間帯）'!$C$5:$Y$46,23,FALSE)) ->  | AG60: =IF(AG58="","",VLOOKUP(AG58,'シフト記号表（勤務時間帯）'!$C$5:$Y$46,23,FALSE)) ->  | AH60: =IF(AH58="","",VLOOKUP(AH58,'シフト記号表（勤務時間帯）'!$C$5:$Y$46,23,FALSE)) ->  | AI60: =IF(AI58="","",VLOOKUP(AI58,'シフト記号表（勤務時間帯）'!$C$5:$Y$46,23,FALSE)) ->  | AJ60: =IF(AJ58="","",VLOOKUP(AJ58,'シフト記号表（勤務時間帯）'!$C$5:$Y$46,23,FALSE)) ->  | AK60: =IF(AK58="","",VLOOKUP(AK58,'シフト記号表（勤務時間帯）'!$C$5:$Y$46,23,FALSE)) ->  | AL60: =IF(AL58="","",VLOOKUP(AL58,'シフト記号表（勤務時間帯）'!$C$5:$Y$46,23,FALSE)) ->  | AM60: =IF(AM58="","",VLOOKUP(AM58,'シフト記号表（勤務時間帯）'!$C$5:$Y$46,23,FALSE)) ->  | AN60: =IF(AN58="","",VLOOKUP(AN58,'シフト記号表（勤務時間帯）'!$C$5:$Y$46,23,FALSE)) ->  | AO60: =IF(AO58="","",VLOOKUP(AO58,'シフト記号表（勤務時間帯）'!$C$5:$Y$46,23,FALSE)) ->  | AP60: =IF(AP58="","",VLOOKUP(AP58,'シフト記号表（勤務時間帯）'!$C$5:$Y$46,23,FALSE)) ->  | AQ60: =IF(AQ58="","",VLOOKUP(AQ58,'シフト記号表（勤務時間帯）'!$C$5:$Y$46,23,FALSE)) ->  | AR60: =IF(AR58="","",VLOOKUP(AR58,'シフト記号表（勤務時間帯）'!$C$5:$Y$46,23,FALSE)) ->  | AS60: =IF(AS58="","",VLOOKUP(AS58,'シフト記号表（勤務時間帯）'!$C$5:$Y$46,23,FALSE)) ->  | AT60: =IF(AT58="","",VLOOKUP(AT58,'シフト記号表（勤務時間帯）'!$C$5:$Y$46,23,FALSE)) ->  | AU60: =IF(AU58="","",VLOOKUP(AU58,'シフト記号表（勤務時間帯）'!$C$5:$Y$46,23,FALSE)) ->  | AV60: =IF(AV58="","",VLOOKUP(AV58,'シフト記号表（勤務時間帯）'!$C$5:$Y$46,23,FALSE)) ->  | AW60: =IF(AW58="","",VLOOKUP(AW58,'シフト記号表（勤務時間帯）'!$C$5:$Y$46,23,FALSE)) ->  | AX60: =IF(AX58="","",VLOOKUP(AX58,'シフト記号表（勤務時間帯）'!$C$5:$Y$46,23,FALSE)) ->  | AY60: =IF($BB$3="計画",SUM(T60:AU60),IF($BB$3="実績",SUM(T60:AX60),"")) -> 0 | BA60: =IF($BB$3="計画",AY60/4,IF($BB$3="実績",(AY60/($BB$7/7)),"")) -> 0
O61: シフト記号
B62: =B59+1 -> 15 | O62: 日中の勤務時間数 | T62: =IF(T61="","",VLOOKUP(T61,'シフト記号表（勤務時間帯）'!$C$5:$W$46,21,FALSE)) ->  | U62: =IF(U61="","",VLOOKUP(U61,'シフト記号表（勤務時間帯）'!$C$5:$W$46,21,FALSE)) ->  | V62: =IF(V61="","",VLOOKUP(V61,'シフト記号表（勤務時間帯）'!$C$5:$W$46,21,FALSE)) ->  | W62: =IF(W61="","",VLOOKUP(W61,'シフト記号表（勤務時間帯）'!$C$5:$W$46,21,FALSE)) ->  | X62: =IF(X61="","",VLOOKUP(X61,'シフト記号表（勤務時間帯）'!$C$5:$W$46,21,FALSE)) ->  | Y62: =IF(Y61="","",VLOOKUP(Y61,'シフト記号表（勤務時間帯）'!$C$5:$W$46,21,FALSE)) ->  | Z62: =IF(Z61="","",VLOOKUP(Z61,'シフト記号表（勤務時間帯）'!$C$5:$W$46,21,FALSE)) ->  | AA62: =IF(AA61="","",VLOOKUP(AA61,'シフト記号表（勤務時間帯）'!$C$5:$W$46,21,FALSE)) ->  | AB62: =IF(AB61="","",VLOOKUP(AB61,'シフト記号表（勤務時間帯）'!$C$5:$W$46,21,FALSE)) ->  | AC62: =IF(AC61="","",VLOOKUP(AC61,'シフト記号表（勤務時間帯）'!$C$5:$W$46,21,FALSE)) ->  | AD62: =IF(AD61="","",VLOOKUP(AD61,'シフト記号表（勤務時間帯）'!$C$5:$W$46,21,FALSE)) ->  | AE62: =IF(AE61="","",VLOOKUP(AE61,'シフト記号表（勤務時間帯）'!$C$5:$W$46,21,FALSE)) ->  | AF62: =IF(AF61="","",VLOOKUP(AF61,'シフト記号表（勤務時間帯）'!$C$5:$W$46,21,FALSE)) ->  | AG62: =IF(AG61="","",VLOOKUP(AG61,'シフト記号表（勤務時間帯）'!$C$5:$W$46,21,FALSE)) ->  | AH62: =IF(AH61="","",VLOOKUP(AH61,'シフト記号表（勤務時間帯）'!$C$5:$W$46,21,FALSE)) ->  | AI62: =IF(AI61="","",VLOOKUP(AI61,'シフト記号表（勤務時間帯）'!$C$5:$W$46,21,FALSE)) ->  | AJ62: =IF(AJ61="","",VLOOKUP(AJ61,'シフト記号表（勤務時間帯）'!$C$5:$W$46,21,FALSE)) ->  | AK62: =IF(AK61="","",VLOOKUP(AK61,'シフト記号表（勤務時間帯）'!$C$5:$W$46,21,FALSE)) ->  | AL62: =IF(AL61="","",VLOOKUP(AL61,'シフト記号表（勤務時間帯）'!$C$5:$W$46,21,FALSE)) ->  | AM62: =IF(AM61="","",VLOOKUP(AM61,'シフト記号表（勤務時間帯）'!$C$5:$W$46,21,FALSE)) ->  | AN62: =IF(AN61="","",VLOOKUP(AN61,'シフト記号表（勤務時間帯）'!$C$5:$W$46,21,FALSE)) ->  | AO62: =IF(AO61="","",VLOOKUP(AO61,'シフト記号表（勤務時間帯）'!$C$5:$W$46,21,FALSE)) ->  | AP62: =IF(AP61="","",VLOOKUP(AP61,'シフト記号表（勤務時間帯）'!$C$5:$W$46,21,FALSE)) ->  | AQ62: =IF(AQ61="","",VLOOKUP(AQ61,'シフト記号表（勤務時間帯）'!$C$5:$W$46,21,FALSE)) ->  | AR62: =IF(AR61="","",VLOOKUP(AR61,'シフト記号表（勤務時間帯）'!$C$5:$W$46,21,FALSE)) ->  | AS62: =IF(AS61="","",VLOOKUP(AS61,'シフト記号表（勤務時間帯）'!$C$5:$W$46,21,FALSE)) ->  | AT62: =IF(AT61="","",VLOOKUP(AT61,'シフト記号表（勤務時間帯）'!$C$5:$W$46,21,FALSE)) ->  | AU62: =IF(AU61="","",VLOOKUP(AU61,'シフト記号表（勤務時間帯）'!$C$5:$W$46,21,FALSE)) ->  | AV62: =IF(AV61="","",VLOOKUP(AV61,'シフト記号表（勤務時間帯）'!$C$5:$W$46,21,FALSE)) ->  | AW62: =IF(AW61="","",VLOOKUP(AW61,'シフト記号表（勤務時間帯）'!$C$5:$W$46,21,FALSE)) ->  | AX62: =IF(AX61="","",VLOOKUP(AX61,'シフト記号表（勤務時間帯）'!$C$5:$W$46,21,FALSE)) ->  | AY62: =IF($BB$3="計画",SUM(T62:AU62),IF($BB$3="実績",SUM(T62:AX62),"")) -> 0 | BA62: =IF($BB$3="計画",AY62/4,IF($BB$3="実績",(AY62/($BB$7/7)),"")) -> 0
F63: =C62 -> 0 | O63: 夜間・深夜の勤務時間数 | T63: =IF(T61="","",VLOOKUP(T61,'シフト記号表（勤務時間帯）'!$C$5:$Y$46,23,FALSE)) ->  | U63: =IF(U61="","",VLOOKUP(U61,'シフト記号表（勤務時間帯）'!$C$5:$Y$46,23,FALSE)) ->  | V63: =IF(V61="","",VLOOKUP(V61,'シフト記号表（勤務時間帯）'!$C$5:$Y$46,23,FALSE)) ->  | W63: =IF(W61="","",VLOOKUP(W61,'シフト記号表（勤務時間帯）'!$C$5:$Y$46,23,FALSE)) ->  | X63: =IF(X61="","",VLOOKUP(X61,'シフト記号表（勤務時間帯）'!$C$5:$Y$46,23,FALSE)) ->  | Y63: =IF(Y61="","",VLOOKUP(Y61,'シフト記号表（勤務時間帯）'!$C$5:$Y$46,23,FALSE)) ->  | Z63: =IF(Z61="","",VLOOKUP(Z61,'シフト記号表（勤務時間帯）'!$C$5:$Y$46,23,FALSE)) ->  | AA63: =IF(AA61="","",VLOOKUP(AA61,'シフト記号表（勤務時間帯）'!$C$5:$Y$46,23,FALSE)) ->  | AB63: =IF(AB61="","",VLOOKUP(AB61,'シフト記号表（勤務時間帯）'!$C$5:$Y$46,23,FALSE)) ->  | AC63: =IF(AC61="","",VLOOKUP(AC61,'シフト記号表（勤務時間帯）'!$C$5:$Y$46,23,FALSE)) ->  | AD63: =IF(AD61="","",VLOOKUP(AD61,'シフト記号表（勤務時間帯）'!$C$5:$Y$46,23,FALSE)) ->  | AE63: =IF(AE61="","",VLOOKUP(AE61,'シフト記号表（勤務時間帯）'!$C$5:$Y$46,23,FALSE)) ->  | AF63: =IF(AF61="","",VLOOKUP(AF61,'シフト記号表（勤務時間帯）'!$C$5:$Y$46,23,FALSE)) ->  | AG63: =IF(AG61="","",VLOOKUP(AG61,'シフト記号表（勤務時間帯）'!$C$5:$Y$46,23,FALSE)) ->  | AH63: =IF(AH61="","",VLOOKUP(AH61,'シフト記号表（勤務時間帯）'!$C$5:$Y$46,23,FALSE)) ->  | AI63: =IF(AI61="","",VLOOKUP(AI61,'シフト記号表（勤務時間帯）'!$C$5:$Y$46,23,FALSE)) ->  | AJ63: =IF(AJ61="","",VLOOKUP(AJ61,'シフト記号表（勤務時間帯）'!$C$5:$Y$46,23,FALSE)) ->  | AK63: =IF(AK61="","",VLOOKUP(AK61,'シフト記号表（勤務時間帯）'!$C$5:$Y$46,23,FALSE)) ->  | AL63: =IF(AL61="","",VLOOKUP(AL61,'シフト記号表（勤務時間帯）'!$C$5:$Y$46,23,FALSE)) ->  | AM63: =IF(AM61="","",VLOOKUP(AM61,'シフト記号表（勤務時間帯）'!$C$5:$Y$46,23,FALSE)) ->  | AN63: =IF(AN61="","",VLOOKUP(AN61,'シフト記号表（勤務時間帯）'!$C$5:$Y$46,23,FALSE)) ->  | AO63: =IF(AO61="","",VLOOKUP(AO61,'シフト記号表（勤務時間帯）'!$C$5:$Y$46,23,FALSE)) ->  | AP63: =IF(AP61="","",VLOOKUP(AP61,'シフト記号表（勤務時間帯）'!$C$5:$Y$46,23,FALSE)) ->  | AQ63: =IF(AQ61="","",VLOOKUP(AQ61,'シフト記号表（勤務時間帯）'!$C$5:$Y$46,23,FALSE)) ->  | AR63: =IF(AR61="","",VLOOKUP(AR61,'シフト記号表（勤務時間帯）'!$C$5:$Y$46,23,FALSE)) ->  | AS63: =IF(AS61="","",VLOOKUP(AS61,'シフト記号表（勤務時間帯）'!$C$5:$Y$46,23,FALSE)) ->  | AT63: =IF(AT61="","",VLOOKUP(AT61,'シフト記号表（勤務時間帯）'!$C$5:$Y$46,23,FALSE)) ->  | AU63: =IF(AU61="","",VLOOKUP(AU61,'シフト記号表（勤務時間帯）'!$C$5:$Y$46,23,FALSE)) ->  | AV63: =IF(AV61="","",VLOOKUP(AV61,'シフト記号表（勤務時間帯）'!$C$5:$Y$46,23,FALSE)) ->  | AW63: =IF(AW61="","",VLOOKUP(AW61,'シフト記号表（勤務時間帯）'!$C$5:$Y$46,23,FALSE)) ->  | AX63: =IF(AX61="","",VLOOKUP(AX61,'シフト記号表（勤務時間帯）'!$C$5:$Y$46,23,FALSE)) ->  | AY63: =IF($BB$3="計画",SUM(T63:AU63),IF($BB$3="実績",SUM(T63:AX63),"")) -> 0 | BA63: =IF($BB$3="計画",AY63/4,IF($BB$3="実績",(AY63/($BB$7/7)),"")) -> 0
B64: (14) 宿直① （上記における該当者のNoを記載）
B65: (14) 宿直② （上記における該当者のNoを記載）
B66: (15) 日ごとの通いサービスの実利用者数
B67: (16) 日ごとの宿泊サービスの実利用者数
B68: (17) 介護従業者（看護職員を含む）の日中の勤務時間の合計 | T68: =IF((SUMIF($C$19:$E$63,"介護従業者",T19:T63)+SUMIF($C$19:$E$63,"看護職員",T19:T63))=0,"",SUMIF($C$19:$E$63,"介護従業者",T19:T63)+SUMIF($C$19:$E$63,"看護職員",T19:T63)) ->  | AY68: =IF($BB$3="計画",SUM(T68:AU68),IF($BB$3="実績",SUM(T68:AX68),"")) -> 0
B69: (18) 看護職員の日中の勤務時間の合計 | T69: =IF(SUMIF($C$19:$E$63,"看護職員",T19:T63)=0,"",SUMIF($C$19:$E$63,"看護職員",T19:T63)) ->  | AY69: =IF($BB$3="計画",SUM(T69:AU69),IF($BB$3="実績",SUM(T69:AX69),"")) -> 0
B70: (19) 介護従業者（看護職員を含む）の夜間・深夜の勤務時間の合計 | T70: =IF((SUMIF($F$19:$F$63,"介護従業者",T19:T63)+SUMIF($F$19:$F$63,"看護職員",T19:T63))=0,"",(SUMIF($F$19:$F$63,"介護従業者",T19:T63)+SUMIF($F$19:$F$63,"看護職員",T19:T63))) ->  | U70: =IF((SUMIF($F$19:$F$63,"介護従業者",U19:U63)+SUMIF($F$19:$F$63,"看護職員",U19:U63))=0,"",(SUMIF($F$19:$F$63,"介護従業者",U19:U63)+SUMIF($F$19:$F$63,"看護職員",U19:U63))) ->  | AY70: =IF($BB$3="計画",SUM(T70:AU70),IF($BB$3="実績",SUM(T70:AX70),"")) -> 0

Sheet シフト記号表（勤務時間帯）
B1: ≪要 提出≫
B2: ■シフト記号表（勤務時間帯） | E2: ※24時間表記 | I2: 休憩時間1時間は「1:00」、休憩時間45分は「00:45」と入力してください。
E3: 勤務時間 | M3: 日中の時間帯 | Q3: 日中の勤務時間 | Y3: 夜間及び深夜
B4: （記号の意味） | C4: 記号 | E4: 始業時間 | G4: 終業時間 | I4: うち、休憩時間 | K4: 勤務時間 | M4: 開始 | O4: 終了 | Q4: 開始 | S4: 終了 | U4: うち、休憩時間 | W4: 勤務時間 | Y4: の勤務時間
B5: 休：休暇 | C5: 休 | D5: ： | E5: - | F5: ～ | G5: - | H5: （ | I5: - | J5: ） | K5: - | M5: - | N5: ～ | O5: - | Q5: - | R5: ～ | S5: - | T5: （ | U5: - | V5: ） | W5: - | Y5: -
B6: 出：出張 | C6: 出 | D6: ： | E6: - | F6: ～ | G6: - | H6: （ | I6: - | J6: ） | K6: - | M6: - | N6: ～ | O6: - | Q6: - | R6: ～ | S6: - | T6: （ | U6: - | V6: ） | W6: - | Y6: -
B7: 研：研修 | C7: 研 | D7: ： | E7: - | F7: ～ | G7: - | H7: （ | I7: - | J7: ） | K7: - | M7: - | N7: ～ | O7: - | Q7: - | R7: ～ | S7: - | T7: （ | U7: - | V7: ） | W7: - | Y7: -
C8: a | D8: ： | E8: 12:00:00 | F8: ～ | G8: 16:00:00 | H8: （ | I8: 01:00:00 | J8: ） | K8: =IF(OR(E8="",G8=""),"",(G8+IF(E8>G8,1,0)-E8-I8)*24) -> 3 | M8: =看多機!$J$11 -> 07:00:00 | N8: ～ | O8: =看多機!$N$11 -> 20:00:00 | Q8: =IF(E8="","",IF(E8<M8,M8,IF(E8>=O8,"",E8))) -> 12:00:00 | R8: ～ | S8: =IF(G8="","",IF(G8>E8,IF(G8<O8,G8,O8),O8)) -> 16:00:00 | T8: （ | U8: =I8 -> 01:00:00 | V8: ） | W8: =IF(Q8="","",IF((S8+IF(Q8>S8,1,0)-Q8-U8)*24=0,"",(S8+IF(Q8>S8,1,0)-Q8-U8)*24)) -> 3 | Y8: =IF(W8="",K8,IF(OR(K8-W8=0,K8-W8<0),"-",K8-W8)) -> -
C9: b | D9: ： | E9: 11:00:00 | F9: ～ | G9: 20:00:00 | H9: （ | I9: 01:00:00 | J9: ） | K9: =IF(OR(E9="",G9=""),"",(G9+IF(E9>G9,1,0)-E9-I9)*24) -> 8 | M9: =看多機!$J$11 -> 07:00:00 | N9: ～ | O9: =看多機!$N$11 -> 20:00:00 | Q9: 11:00:00 | R9: ～ | S9: 20:00:00 | T9: （ | U9: =I9 -> 01:00:00 | V9: ） | W9: =IF(Q9="","",IF((S9+IF(Q9>S9,1,0)-Q9-U9)*24=0,"",(S9+IF(Q9>S9,1,0)-Q9-U9)*24)) -> 8 | Y9: =IF(W9="",K9,IF(OR(K9-W9=0,K9-W9<0),"-",K9-W9)) -> -
C10: c | D10: ： | E10: 09:00:00 | F10: ～ | G10: 18:00:00 | H10: （ | I10: 01:00:00 | J10: ） | K10: 8 | M10: =看多機!$J$11 -> 07:00:00 | N10: ～ | O10: =看多機!$N$11 -> 20:00:00 | Q10: 09:00:00 | R10: ～ | S10: 18:00:00 | T10: （ | U10: 01:00:00 | V10: ） | W10: 8 | Y10: -
C11: d | D11: ： | E11: 08:30:00 | F11: ～ | G11: 17:30:00 | H11: （ | I11: 01:00:00 | J11: ） | K11: 8 | M11: =看多機!$J$11 -> 07:00:00 | N11: ～ | O11: =看多機!$N$11 -> 20:00:00 | Q11: 08:30:00 | R11: ～ | S11: 17:30:00 | T11: （ | U11: 01:00:00 | V11: ） | W11: 8 | Y11: -
C12: e | D12: ： | E12: 09:00:00 | F12: ～ | G12: 14:30:00 | H12: （ | I12: 00:00:00 | J12: ） | K12: 5.5 | M12: =看多機!$J$11 -> 07:00:00 | N12: ～ | O12: =看多機!$N$11 -> 20:00:00 | Q12: 09:00:00 | R12: ～ | S12: 14:30:00 | T12: （ | U12: 00:00:00 | V12: ） | W12: 5.5 | Y12: -
C13: f | D13: ： | E13: 09:00:00 | F13: ～ | G13: 15:00:00 | H13: （ | I13: 00:30:00 | J13: ） | K13: 5.5 | M13: =看多機!$J$11 -> 07:00:00 | N13: ～ | O13: =看多機!$N$11 -> 20:00:00 | Q13: 09:00:00 | R13: ～ | S13: 15:00:00 | T13: （ | U13: 00:30:00 | V13: ） | W13: 5.5 | Y13: -
C14: g | D14: ： | E14: 07:00:00 | F14: ～ | G14: 09:30:00 | H14: （ | I14: 00:00:00 | J14: ） | K14: 2.5 | M14: =看多機!$J$11 -> 07:00:00 | N14: ～ | O14: =看多機!$N$11 -> 20:00:00 | Q14: 07:00:00 | R14: ～ | S14: 09:30:00 | T14: （ | U14: 00:00:00 | V14: ） | W14: 2.5 | Y14: -
C15: h | D15: ： | E15: 16:30:00 | F15: ～ | G15: 20:00:00 | H15: （ | I15: 00:00:00 | J15: ） | K15: 3.5 | M15: =看多機!$J$11 -> 07:00:00 | N15: ～ | O15: =看多機!$N$11 -> 20:00:00 | Q15: 16:30:00 | R15: ～ | S15: 20:00:00 | T15: （ | U15: 00:00:00 | V15: ） | W15: 3.5 | Y15: -
C16: i | D16: ： | E16: 16:00:00 | F16: ～ | G16: 07:00:00 | H16: （ | I16: 01:00:00 | J16: ） | K16: 14 | M16: =看多機!$J$11 -> 07:00:00 | N16: ～ | O16: =看多機!$N$11 -> 20:00:00 | Q16: 16:00:00 | R16: ～ | S16: 20:00:00 | T16: （ | U16: 01:00:00 | V16: ） | W16: 3 | Y16: 11
C17: j | D17: ： | E17: 07:00:00 | F17: ～ | G17: 09:00:00 | H17: （ | I17: 00:00:00 | J17: ） | K17: 2 | M17: =看多機!$J$11 -> 07:00:00 | N17: ～ | O17: =看多機!$N$11 -> 20:00:00 | Q17: 07:00:00 | R17: ～ | S17: 09:00:00 | T17: （ | U17: 00:00:00 | V17: ） | W17: 2 | Y17: -
C18: k | D18: ： | F18: ～ | H18: （ | I18: 00:00:00 | J18: ） | M18: =看多機!$J$11 -> 07:00:00 | N18: ～ | O18: =看多機!$N$11 -> 20:00:00 | R18: ～ | T18: （ | U18: 00:00:00 | V18: ）
C19: l | D19: ： | F19: ～ | H19: （ | I19: 00:00:00 | J19: ） | M19: =看多機!$J$11 -> 07:00:00 | N19: ～ | O19: =看多機!$N$11 -> 20:00:00 | R19: ～ | T19: （ | U19: 00:00:00 | V19: ）
C20: m | D20: ： | F20: ～ | H20: （ | I20: 00:00:00 | J20: ） | M20: =看多機!$J$11 -> 07:00:00 | N20: ～ | O20: =看多機!$N$11 -> 20:00:00 | R20: ～ | T20: （ | U20: 00:00:00 | V20: ）
C21: n | D21: ： | F21: ～ | H21: （ | I21: 00:00:00 | J21: ） | M21: =看多機!$J$11 -> 07:00:00 | N21: ～ | O21: =看多機!$N$11 -> 20:00:00 | R21: ～ | T21: （ | U21: 00:00:00 | V21: ）
C22: o | D22: ： | F22: ～ | H22: （ | J22: ） | K22: 1 | N22: ～ | R22: ～ | T22: （ | V22: ） | W22: 1 | Y22: -
C23: p | D23: ： | F23: ～ | H23: （ | J23: ） | K23: 2 | N23: ～ | R23: ～ | T23: （ | V23: ） | W23: 2 | Y23: -
C24: q | D24: ： | F24: ～ | H24: （ | J24: ） | K24: 3 | N24: ～ | R24: ～ | T24: （ | V24: ） | W24: 3 | Y24: -
C25: r | D25: ： | F25: ～ | H25: （ | J25: ） | K25: 4 | N25: ～ | R25: ～ | T25: （ | V25: ） | W25: 4 | Y25: -
C26: s | D26: ： | F26: ～ | H26: （ | J26: ） | K26: 5 | N26: ～ | R26: ～ | T26: （ | V26: ） | W26: 5 | Y26: -
C27: t | D27: ： | F27: ～ | H27: （ | J27: ） | K27: 6 | N27: ～ | R27: ～ | T27: （ | V27: ） | W27: 6 | Y27: -
C28: u | D28: ： | F28: ～ | H28: （ | J28: ） | K28: 7 | N28: ～ | R28: ～ | T28: （ | V28: ） | W28: 7 | Y28: -
C29: v | D29: ： | F29: ～ | H29: （ | J29: ） | K29: 8 | N29: ～ | R29: ～ | T29: （ | V29: ） | W29: 8 | Y29: -
C30: w | D30: ： | F30: ～ | H30: （ | J30: ） | K30: 1 | N30: ～ | R30: ～ | T30: （ | V30: ） | W30: - | Y30: 1
C31: x | D31: ： | F31: ～ | H31: （ | J31: ） | K31: 2 | N31: ～ | R31: ～ | T31: （ | V31: ） | W31: - | Y31: 2
C32: y | D32: ： | F32: ～ | H32: （ | J32: ） | K32: 3 | N32: ～ | R32: ～ | T32: （ | V32: ） | W32: - | Y32: 3
C33: z | D33: ： | F33: ～ | H33: （ | J33: ） | K33: 4 | N33: ～ | R33: ～ | T33: （ | V33: ） | W33: - | Y33: 4
C34: aa | D34: ： | F34: ～ | H34: （ | J34: ） | K34: 5 | N34: ～ | R34: ～ | T34: （ | V34: ） | W34: - | Y34: 5
C35: ab | D35: ： | F35: ～ | H35: （ | J35: ） | K35: 6 | N35: ～ | R35: ～ | T35: （ | V35: ） | W35: - | Y35: 6
C36: ac | D36: ： | F36: ～ | H36: （ | J36: ） | K36: 7 | N36: ～ | R36: ～ | T36: （ | V36: ） | W36: - | Y36: 7
C37: ad | D37: ： | F37: ～ | H37: （ | J37: ） | K37: 8 | N37: ～ | R37: ～ | T37: （ | V37: ） | W37: - | Y37: 8
C38: ae | D38: ： | F38: ～ | H38: （ | I38: 00:00:00 | J38: ） | K38: =IF(OR(E38="",G38=""),"",(G38+IF(E38>G38,1,0)-E38-I38)*24) ->  | M38: =看多機!$J$11 -> 07:00:00 | N38: ～ | O38: =看多機!$N$11 -> 20:00:00 | Q38: =IF(E38="","",IF(E38<M38,M38,IF(E38>=O38,"",E38))) ->  | R38: ～ | S38: =IF(G38="","",IF(G38>E38,IF(G38<O38,G38,O38),O38)) ->  | T38: （ | U38: =I38 -> 00:00:00 | V38: ） | W38: =IF(Q38="","",IF((S38+IF(Q38>S38,1,0)-Q38-U38)*24=0,"",(S38+IF(Q38>S38,1,0)-Q38-U38)*24)) ->  | Y38: =IF(W38="",K38,IF(OR(K38-W38=0,K38-W38<0),"-",K38-W38)) -> 
C39: af | D39: ： | F39: ～ | H39: （ | I39: 00:00:00 | J39: ） | M39: =看多機!$J$11 -> 07:00:00 | N39: ～ | O39: =看多機!$N$11 -> 20:00:00 | R39: ～ | T39: （ | U39: =I39 -> 00:00:00 | V39: ） | Y39: =IF(W39="",K39,IF(OR(K39-W39=0,K39-W39<0),"-",K39-W39)) -> 
C40: ag | D40: ： | F40: ～ | H40: （ | I40: 00:00:00 | J40: ） | M40: =看多機!$J$11 -> 07:00:00 | N40: ～ | O40: =看多機!$N$11 -> 20:00:00 | R40: ～ | T40: （ | U40: 00:00:00 | V40: ）
C41: 早退(1) | D41: ： | F41: ～ | H41: （ | I41: 00:00:00 | J41: ） | M41: =看多機!$J$11 -> 07:00:00 | N41: ～ | O41: =看多機!$N$11 -> 20:00:00 | R41: ～ | T41: （ | U41: 00:00:00 | V41: ） | AA41: 実績で早退者がいた場合に使用
C42: 早退(2) | D42: ： | F42: ～ | H42: （ | I42: 00:00:00 | J42: ） | M42: =看多機!$J$11 -> 07:00:00 | N42: ～ | O42: =看多機!$N$11 -> 20:00:00 | R42: ～ | T42: （ | U42: 00:00:00 | V42: ） | AA42: 実績で早退者がいた場合に使用
C43: az | D43: ： | F43: ～ | H43: （ | I43: 00:00:00 | J43: ） | M43: =看多機!$J$11 -> 07:00:00 | N43: ～ | O43: =看多機!$N$11 -> 20:00:00 | R43: ～ | T43: （ | U43: 00:00:00 | V43: ）
B44: 1日のうち | D44: ： | E44: 07:00:00 | F44: ～ | G44: 09:30:00 | H44: （ | I44: 00:00:00 | J44: ） | K44: 2.5 | M44: =看多機!$J$11 -> 07:00:00 | N44: ～ | O44: =看多機!$N$11 -> 20:00:00 | Q44: 07:00:00 | R44: ～ | S44: 09:30:00 | T44: （ | U44: 00:00:00 | V44: ） | W44: 2.5 | Y44: -
B45: 朝・夜の2回 | D45: ： | E45: 16:30:00 | F45: ～ | G45: 20:00:00 | H45: （ | I45: 00:00:00 | J45: ） | K45: 3.5 | M45: =看多機!$J$11 -> 07:00:00 | N45: ～ | O45: =看多機!$N$11 -> 20:00:00 | Q45: 16:30:00 | R45: ～ | S45: 20:00:00 | T45: （ | U45: 00:00:00 | V45: ） | W45: 3.5 | Y45: -
B46: 勤務の場合 | C46: ba | D46: ： | E46: - | F46: ～ | G46: - | H46: （ | I46: - | J46: ） | K46: =K44+K45 -> 6 | M46: =看多機!$J$11 -> 07:00:00 | N46: ～ | O46: =看多機!$N$11 -> 20:00:00 | R46: ～ | S46: 20:00:00 | T46: （ | U46: - | V46: ） | W46: =W44+W45 -> 6 | Y46: -
B47: （プルダウン対象外）→ | C47: 宿直 | D47: ： | E47: 20:00:00 | F47: ～ | G47: 07:00:00 | H47: （ | J47: ） | K47: =IF(OR(E47="",G47=""),"",(G47+IF(E47>G47,1,0)-E47-I47)*24) -> 11 | M47: =看多機!$J$11 -> 07:00:00 | N47: ～ | O47: =看多機!$N$11 -> 20:00:00 | R47: ～ | S47: 20:00:00 | T47: （ | U47: 00:00:00 | V47: ） | W47: =IF(Q47="","",IF((S47+IF(Q47>S47,1,0)-Q47-U47)*24=0,"",(S47+IF(Q47>S47,1,0)-Q47-U47)*24)) ->  | Y47: 11

Sheet 記入方法
B1: ≪提出不要≫
B2: 従業者の勤務の体制及び勤務形態一覧表 記入方法 （看護小規模多機能型居宅介護）
C4: ・・・直接入力する必要がある箇所です。 | F4: 下記の記入方法に従って、入力してください。
C5: ・・・プルダウンから選択して入力する必要がある箇所です。
B6: なお、「従業者の勤務の体制及び勤務形態一覧表」に「シフト記号表（勤務時間帯）」も必ず添付して提出してください。
B8: ・最初に「年月欄」「サービス種別」「事業所名」を入力してください。
B10: (1) 「計画」・「実績」のいずれかを選択してください。
B11: 指定基準の確認に際しては、「計画」を選択し、４週分の勤務時間を入力してください。
B12: 実績を表す場合は、「実績」を選択し、暦月分で勤務時間を入力してください。
B14: (2) 事業所における常勤の従業者が勤務すべき時間数を入力してください。
B16: (3) 事業所における日中、夜間及び深夜の時間帯の区分を入力してください。
B18: (4) 事業所の定員数を入力してください。
B20: (5) 通いサービスの利用者数を入力してください。利用者数は、前年度の平均値（前年度の全利用者等の延数を当該前年度の日数で除して得た数。小数点第2位以下を切り上げ）を入力してください。
B21: 新規又は再開の場合は、推定数を入力してください。
B23: (6) 従業者の職種について、下記のうち該当する職種をプルダウンより選択してください。
B24: 記入の順序は、職種ごとにまとめてください。
C26: No | D26: 職種名
C27: 1 | D27: 管理者
C28: 2 | D28: 介護従業者 | E28: （正式名称：看護小規模多機能型居宅介護従事者）
C29: 3 | D29: 看護職員 | E29: （介護従業者のうち、保健師、看護師又は准看護師は、看護職員とします。）
C30: 4 | D30: 介護支援専門員
C31: 5 | D31: 計画作成担当者 | E31: （サテライトの場合に選択）
B33: (7) 従業者の勤務形態について、下記のうち該当する区分の記号をプルダウンより選択してください。
B34: 記入の順序は、各職種の中で勤務形態の区分ごとにまとめてください。
C36: 記号 | D36: 区分
C37: A | D37: 常勤で専従
C38: B | D38: 常勤で兼務
C39: C | D39: 非常勤で専従
C40: D | D40: 非常勤で兼務
C42: （注）常勤・非常勤の区分について
C43: 当該事業所における勤務時間が、当該事業所において定められている常勤の従業者が勤務すべき時間数に達していることをいいます。雇用の形態は考慮しません。
C44: （例えば、常勤者は週に40時間勤務することとされた事業所であれば、非正規雇用であっても、週40時間勤務する従業者は常勤扱いとなります。）
B46: (8) 従業者の保有する資格について、該当する資格名称をプルダウンより選択してください。
B47: 保有資格を全て記入するのではなく、人員基準上、求められる資格等を入力してください。
B48: ※選択した資格及び研修に関して、必要に応じて、資格証又は研修修了証等の写しを添付資料として提出してください。
B50: (9) 従業者の氏名を記入してください。
B52: (10) 申請する事業に係る従業者（管理者を含む。）の1ヶ月分の勤務時間数を入力してください。（別シートの「シフト記号表」を作成し、シフト記号を選択または入力してください。）
B53: ※指定基準の確認に際しては、4週分の入力で可とします。実績を表す場合には、暦月で入力ください。
B55: (11) 従業者ごとに、合計勤務時間数が自動計算されますので、誤りがないか確認してください。
B56: ※入力することができる勤務時間数は、当該事業所において常勤の従業者が勤務すべき勤務時間数を上限とします。
B58: (12) 従業者ごとに、週平均の勤務時間数が自動計算されますので、誤りがないか確認してください。
B60: (13) 申請する事業所以外の事業所・施設との兼務がある場合は、兼務先の事業所・施設の名称、兼務する職務の内容、兼務時間数について記入してください。
B61: 同一事業所内の兼務についても兼務する職務の内容を記入してください。
B63: (14) 宿直の従業者の「No（ナンバー）」（本一覧表におけるNo）を記載してください。入力すると従業者の該当の日付のセルが | M63: に色づけされます。
B65: (15) 通いサービスの利用者数を入力してください。新規又は再開の場合は、推定数を入力してください。
B67: (16) 宿泊サービスの利用者数を入力してください。新規又は再開の場合は、推定数を入力してください。
B69: (17) 介護従業者（看護職員を含む）の日中の勤務時間の合計が自動計算されますので、誤りがないか確認してください。
B71: (18) 看護職員の日中の勤務時間の合計が自動計算されますので、誤りがないか確認してください。
B73: (19) 介護従業者（看護職員を含む）の夜間・深夜の勤務時間の合計が自動計算されますので、誤りがないか確認してください。

Sheet プルダウン・リスト
B1: １．サービス種別
B3: No | C3: サービス種別
B4: 1 | C4: 看護小規模多機能型居宅介護
B5: 2 | C5: （サテライト型）看護小規模多機能型居宅介護
B6: 3
B7: 4
B8: 5
B9: 6
B10: 7
B12: ２．職種名・資格名称
B14: 職種名 | C14: 管理者 | D14: 介護従業者 | E14: 看護職員 | F14: 介護支援専門員 | G14: 計画作成担当者
B15: 資格 | C15: 認知症対応型サービス事業管理者研修修了 | D15: 介護福祉士 | E15: 保健師 | F15: 介護支援専門員 | G15: 小規模多機能型サービス等計画作成担当者研修修了
C16: みなし措置 | D16: ー | E16: 看護師 | F16: 小規模多機能型サービス等計画作成担当者研修修了
C17: 保健師 | E17: 准看護師
C18: 看護師
C25: ※看護小規模多機能型居宅介護従業者（正式名称）
C26: ※介護従業者のうち、保健師、看護師、准看護師の資格を持つ者は職種名を看護職員とします。
C27: ※計画作成担当者 ⇒ サテライトの場合。（サテライトではない場合は介護支援専門員が計画を作成）
C29: 【自治体の皆様へ】
C30: ※ INDIRECT関数使用のため、以下のとおりセルに「名前の定義」をしています。
C31: C14～L14・・・「職種」
C32: C列・・・「管理者」
C33: D列・・・「介護従業者」
C34: E列・・・「看護職員」
C35: F列・・・「介護支援専門員」
C36: G列・・・「計画作成担当者」
C37: ※自治体の条例により定められた資格等、自治体独自の資格を追加する必要がある場合は、上表の空欄に資格名称を追加してください。
C38: 行が足りない場合は、適宜追加してください。
C40: ※職種を追加したい場合は、14行目に職種名を追加し、それぞれの列に必要資格を入力してください。
C41: その後、以下の手順で必要資格について「名前の定義」をします。
C42: ・「数式」タブ ⇒ 「名前の定義」を選択
C43: ・「名前」に職種名を入力
C44: ・「参照範囲」にその職種の必要資格を範囲設定する ⇒ OKボタン
C45: 編集したい場合は、「数式」タブ ⇒ 「名前の管理」で編集してください。
